Body Name,Body,Date,Department,Beneficiary,Summary of Purpose (SeRCOP),Amount,Merchant Code,Transaction Number,Supplier ID
Sandwell Metropolitan Borough Council,http://www.sandwell.gov.uk/info/200202/performance_and_spending/1079/payments_over_500,01-Jan-2022,Adults Social Care Capital,AXIS EUROPE PLC ,Adults Social Care Capital,5341.24,Deferred Charges/Grant Payments,2122P10_CR00001,64946
Sandwell Metropolitan Borough Council,http://www.sandwell.gov.uk/info/200202/performance_and_spending/1079/payments_over_500,01-Jan-2022,Adults Social Care Capital,AXIS EUROPE PLC ,Adults Social Care Capital,5786.54,Deferred Charges/Grant Payments,2122P10_CR00002,64946
Sandwell Metropolitan Borough Council,http://www.sandwell.gov.uk/info/200202/performance_and_spending/1079/payments_over_500,26-Jan-2022,Adults Social Care Capital,AXIS EUROPE PLC ,Adults Social Care Capital,6898.63,Deferred Charges/Grant Payments,2122P10_CR00003,64946
Sandwell Metropolitan Borough Council,http://www.sandwell.gov.uk/info/200202/performance_and_spending/1079/payments_over_500,07-Jan-2022,Adults Social Care Capital,AXIS EUROPE PLC ,Adults Social Care Capital,7564.98,Deferred Charges/Grant Payments,2122P10_CR00004,64946
Sandwell Metropolitan Borough Council,http://www.sandwell.gov.uk/info/200202/performance_and_spending/1079/payments_over_500,01-Jan-2022,Adults Social Care Capital,DLM BUILDING & MAINTENANCE LTD,Adults Social Care Capital,6087.15,Deferred Charges/Grant Payments,2122P10_CR00005,137596
Sandwell Metropolitan Borough Council,http://www.sandwell.gov.uk/info/200202/performance_and_spending/1079/payments_over_500,07-Jan-2022,Adults Social Care Capital,DOLPHIN LIFTS MIDLANDS LTD,Adults Social Care Capital,1145.25,Deferred Charges/Grant Payments,2122P10_CR00006,123852
Sandwell Metropolitan Borough Council,http://www.sandwell.gov.uk/info/200202/performance_and_spending/1079/payments_over_500,07-Jan-2022,Adults Social Care Capital,DOLPHIN LIFTS MIDLANDS LTD,Adults Social Care Capital,1258.75,Deferred Charges/Grant Payments,2122P10_CR00007,123852
Sandwell Metropolitan Borough Council,http://www.sandwell.gov.uk/info/200202/performance_and_spending/1079/payments_over_500,07-Jan-2022,Adults Social Care Capital,DOLPHIN LIFTS MIDLANDS LTD,Adults Social Care Capital,4375.41,Deferred Charges/Grant Payments,2122P10_CR00008,123852
Sandwell Metropolitan Borough Council,http://www.sandwell.gov.uk/info/200202/performance_and_spending/1079/payments_over_500,07-Jan-2022,Adults Social Care Capital,DOLPHIN LIFTS MIDLANDS LTD,Adults Social Care Capital,1355.40,Deferred Charges/Grant Payments,2122P10_CR00009,123852
Sandwell Metropolitan Borough Council,http://www.sandwell.gov.uk/info/200202/performance_and_spending/1079/payments_over_500,07-Jan-2022,Adults Social Care Capital,DOLPHIN LIFTS MIDLANDS LTD,Adults Social Care Capital,1550.00,Deferred Charges/Grant Payments,2122P10_CR00010,123852
Sandwell Metropolitan Borough Council,http://www.sandwell.gov.uk/info/200202/performance_and_spending/1079/payments_over_500,11-Jan-2022,Adults Social Care Capital,DOLPHIN LIFTS MIDLANDS LTD,Adults Social Care Capital,12458.83,Deferred Charges/Grant Payments,2122P10_CR00011,123852
Sandwell Metropolitan Borough Council,http://www.sandwell.gov.uk/info/200202/performance_and_spending/1079/payments_over_500,11-Jan-2022,Adults Social Care Capital,DOLPHIN LIFTS MIDLANDS LTD,Adults Social Care Capital,12192.62,Deferred Charges/Grant Payments,2122P10_CR00012,123852
Sandwell Metropolitan Borough Council,http://www.sandwell.gov.uk/info/200202/performance_and_spending/1079/payments_over_500,01-Jan-2022,Adults Social Care Capital,DOLPHIN LIFTS MIDLANDS LTD,Adults Social Care Capital,3379.22,Deferred Charges/Grant Payments,2122P10_CR00013,123852
Sandwell Metropolitan Borough Council,http://www.sandwell.gov.uk/info/200202/performance_and_spending/1079/payments_over_500,11-Jan-2022,Adults Social Care Capital,LIFT & ENGINEERING SERVICES LTD,Adults Social Care Capital,7057.08,"CIP - New Construction,Conversion, Enhancement & Reno",2122P10_CR00014,77003962
Sandwell Metropolitan Borough Council,http://www.sandwell.gov.uk/info/200202/performance_and_spending/1079/payments_over_500,18-Jan-2022,Adults Social Care Capital,LIFT & ENGINEERING SERVICES LTD,Adults Social Care Capital,5281.58,"CIP - New Construction,Conversion, Enhancement & Reno",2122P10_CR00015,77003962
Sandwell Metropolitan Borough Council,http://www.sandwell.gov.uk/info/200202/performance_and_spending/1079/payments_over_500,01-Jan-2022,Adults Social Care Capital,PR PROPERTY MAINTENANCE,Adults Social Care Capital,6565.58,Deferred Charges/Grant Payments,2122P10_CR00016,33836
Sandwell Metropolitan Borough Council,http://www.sandwell.gov.uk/info/200202/performance_and_spending/1079/payments_over_500,01-Jan-2022,Adults Social Care Capital,RIDGE & PARTNERS LLP,Adults Social Care Capital,1500.00,"CIP - New Construction,Conversion, Enhancement & Reno",2122P10_CR00017,134994
Sandwell Metropolitan Borough Council,http://www.sandwell.gov.uk/info/200202/performance_and_spending/1079/payments_over_500,01-Jan-2022,Adults Social Care Capital,TERRY GROUP LIMITED,Adults Social Care Capital,12559.25,Deferred Charges/Grant Payments,2122P10_CR00018,77002029
Sandwell Metropolitan Borough Council,http://www.sandwell.gov.uk/info/200202/performance_and_spending/1079/payments_over_500,01-Jan-2022,Adults Social Care Capital,VINCI CONSTRUCTION LTD,Adults Social Care Capital,7031.30,Deferred Charges/Grant Payments,2122P10_CR00019,36361
Sandwell Metropolitan Borough Council,http://www.sandwell.gov.uk/info/200202/performance_and_spending/1079/payments_over_500,11-Jan-2022,Adults Social Care Capital,WILLMOTT DIXON CONSTRUCTION LIMITED,Adults Social Care Capital,568610.64,"CIP - New Construction,Conversion, Enhancement & Reno",2122P10_CR00020,34081
Sandwell Metropolitan Borough Council,http://www.sandwell.gov.uk/info/200202/performance_and_spending/1079/payments_over_500,01-Jan-2022,Adults Social Care Capital,DIGNITY ACCESS LTD,Adults Social Care Capital,19600.00,Deferred Charges/Grant Payments,2122P10_CR00021,157606
Sandwell Metropolitan Borough Council,http://www.sandwell.gov.uk/info/200202/performance_and_spending/1079/payments_over_500,01-Jan-2022,Adults Social Care Capital,R SHARPLES & ASSOCIATES,Adults Social Care Capital,11400.00,Deferred Charges/Grant Payments,2122P10_CR00022,148340
Sandwell Metropolitan Borough Council,http://www.sandwell.gov.uk/info/200202/performance_and_spending/1079/payments_over_500,04-Jan-2022,Adults Social Care Capital,REDACTED PERSONAL DATA,Adults Social Care Capital,6000.00,Deferred Charges/Grant Payments,2122P10_CR00023,REDACTED PERSONAL DATA
Sandwell Metropolitan Borough Council,http://www.sandwell.gov.uk/info/200202/performance_and_spending/1079/payments_over_500,01-Jan-2022,Adults Social Care Capital,TDF DESIGN LIMITED,Adults Social Care Capital,18000.00,Deferred Charges/Grant Payments,2122P10_CR00024,10320
Sandwell Metropolitan Borough Council,http://www.sandwell.gov.uk/info/200202/performance_and_spending/1079/payments_over_500,06-Jan-2022,Childrens Services,121 CARZ,Childrens Services,1272.00,Public Transport,2122P10_CR00025,116848
Sandwell Metropolitan Borough Council,http://www.sandwell.gov.uk/info/200202/performance_and_spending/1079/payments_over_500,06-Jan-2022,Childrens Services,121 CARZ,Childrens Services,2117.04,Public Transport,2122P10_CR00026,116848
Sandwell Metropolitan Borough Council,http://www.sandwell.gov.uk/info/200202/performance_and_spending/1079/payments_over_500,06-Jan-2022,Childrens Services,121 CARZ,Childrens Services,1646.67,Public Transport,2122P10_CR00027,116848
Sandwell Metropolitan Borough Council,http://www.sandwell.gov.uk/info/200202/performance_and_spending/1079/payments_over_500,06-Jan-2022,Childrens Services,121 CARZ,Childrens Services,3575.22,Public Transport,2122P10_CR00028,116848
Sandwell Metropolitan Borough Council,http://www.sandwell.gov.uk/info/200202/performance_and_spending/1079/payments_over_500,01-Jan-2022,Childrens Services,4 COMMUNITY TRUST CIC,Childrens Services,716.39,Externally Purchased Professional Services ,2122P10_CR00029,137880
Sandwell Metropolitan Borough Council,http://www.sandwell.gov.uk/info/200202/performance_and_spending/1079/payments_over_500,07-Jan-2022,Childrens Services,4 COMMUNITY TRUST CIC,Childrens Services,716.39,Externally Purchased Professional Services ,2122P10_CR00030,137880
Sandwell Metropolitan Borough Council,http://www.sandwell.gov.uk/info/200202/performance_and_spending/1079/payments_over_500,07-Jan-2022,Childrens Services,ACTION FOR CHILDREN SERVICES LIMITED,Childrens Services,227637.23,Contract Payments,2122P10_CR00031,111189
Sandwell Metropolitan Borough Council,http://www.sandwell.gov.uk/info/200202/performance_and_spending/1079/payments_over_500,06-Jan-2022,Childrens Services,ACTION FOR CHILDREN SERVICES LIMITED,Childrens Services,262189.79,Contract Payments,2122P10_CR00032,111189
Sandwell Metropolitan Borough Council,http://www.sandwell.gov.uk/info/200202/performance_and_spending/1079/payments_over_500,07-Jan-2022,Childrens Services,ACTION FOR CHILDREN SERVICES LIMITED,Childrens Services,30551.56,Externally Purchased Professional Services ,2122P10_CR00033,111189
Sandwell Metropolitan Borough Council,http://www.sandwell.gov.uk/info/200202/performance_and_spending/1079/payments_over_500,06-Jan-2022,Childrens Services,AMP BIOMASS FUEL LTD T/A AMP CLEAN ENERGY,Childrens Services,1480.05,Ingestre Hall Arts Centre.Energy Costs-Bio Energy Costs.Bio Mass Fuel,2122P10_CR00034,128761
Sandwell Metropolitan Borough Council,http://www.sandwell.gov.uk/info/200202/performance_and_spending/1079/payments_over_500,01-Jan-2022,Childrens Services,AMP BIOMASS FUEL LTD T/A AMP CLEAN ENERGY,Childrens Services,2277.18,Ingestre Hall Arts Centre.Energy Costs-Bio Energy Costs.Bio Mass Fuel,2122P10_CR00035,128761
Sandwell Metropolitan Borough Council,http://www.sandwell.gov.uk/info/200202/performance_and_spending/1079/payments_over_500,01-Jan-2022,Childrens Services,AMY HARRIS,Childrens Services,1195.37,Externally Purchased Professional Services ,2122P10_CR00036,159883
Sandwell Metropolitan Borough Council,http://www.sandwell.gov.uk/info/200202/performance_and_spending/1079/payments_over_500,14-Jan-2022,Childrens Services,ANTONIO SANTORELLI,Childrens Services,1672.00,Externally Purchased Professional Services ,2122P10_CR00037,80057
Sandwell Metropolitan Borough Council,http://www.sandwell.gov.uk/info/200202/performance_and_spending/1079/payments_over_500,18-Jan-2022,Childrens Services,ANTONIO SANTORELLI,Childrens Services,941.16,Externally Purchased Professional Services ,2122P10_CR00038,80057
Sandwell Metropolitan Borough Council,http://www.sandwell.gov.uk/info/200202/performance_and_spending/1079/payments_over_500,18-Jan-2022,Childrens Services,ANTONIO SANTORELLI,Childrens Services,560.00,Grants,2122P10_CR00039,80057
Sandwell Metropolitan Borough Council,http://www.sandwell.gov.uk/info/200202/performance_and_spending/1079/payments_over_500,26-Jan-2022,Childrens Services,APD PRINT & DESIGN,Childrens Services,2700.00,Advertising & Publicity,2122P10_CR00040,49454
Sandwell Metropolitan Borough Council,http://www.sandwell.gov.uk/info/200202/performance_and_spending/1079/payments_over_500,13-Jan-2022,Childrens Services,APD PRINT & DESIGN,Childrens Services,1208.00,Advertising & Publicity,2122P10_CR00041,49454
Sandwell Metropolitan Borough Council,http://www.sandwell.gov.uk/info/200202/performance_and_spending/1079/payments_over_500,13-Jan-2022,Childrens Services,APD PRINT & DESIGN,Childrens Services,4064.00,Advertising & Publicity,2122P10_CR00042,49454
Sandwell Metropolitan Borough Council,http://www.sandwell.gov.uk/info/200202/performance_and_spending/1079/payments_over_500,26-Jan-2022,Childrens Services,APD PRINT & DESIGN,Childrens Services,3020.00,Advertising & Publicity,2122P10_CR00043,49454
Sandwell Metropolitan Borough Council,http://www.sandwell.gov.uk/info/200202/performance_and_spending/1079/payments_over_500,26-Jan-2022,Childrens Services,APD PRINT & DESIGN,Childrens Services,1340.00,Externally Purchased Professional Services ,2122P10_CR00044,49454
Sandwell Metropolitan Borough Council,http://www.sandwell.gov.uk/info/200202/performance_and_spending/1079/payments_over_500,01-Jan-2022,Childrens Services,ASPECT POWDER COATINGS LTD,Childrens Services,1010.75,Externally Purchased Professional Services ,2122P10_CR00045,56653
Sandwell Metropolitan Borough Council,http://www.sandwell.gov.uk/info/200202/performance_and_spending/1079/payments_over_500,01-Jan-2022,Childrens Services,AUTISM WEST MIDLANDS                                                           01,Childrens Services,9215.50,Grant Payments,2122P10_CR00046,65002404
Sandwell Metropolitan Borough Council,http://www.sandwell.gov.uk/info/200202/performance_and_spending/1079/payments_over_500,01-Jan-2022,Childrens Services,AVANTI GAS LIMITED,Childrens Services,2303.24,Gas,2122P10_CR00047,60069
Sandwell Metropolitan Borough Council,http://www.sandwell.gov.uk/info/200202/performance_and_spending/1079/payments_over_500,06-Jan-2022,Childrens Services,BAINS TRAVEL,Childrens Services,1378.00,Public Transport,2122P10_CR00048,06002298
Sandwell Metropolitan Borough Council,http://www.sandwell.gov.uk/info/200202/performance_and_spending/1079/payments_over_500,06-Jan-2022,Childrens Services,BAINS TRAVEL,Childrens Services,2084.67,Public Transport,2122P10_CR00049,06002298
Sandwell Metropolitan Borough Council,http://www.sandwell.gov.uk/info/200202/performance_and_spending/1079/payments_over_500,01-Jan-2022,Childrens Services,BAINS TRAVEL,Childrens Services,2080.00,Public Transport,2122P10_CR00050,06002298
Sandwell Metropolitan Borough Council,http://www.sandwell.gov.uk/info/200202/performance_and_spending/1079/payments_over_500,10-Jan-2022,Childrens Services,BANGLADESHI WOMEN'S ASSOCIATION LIMITED,Childrens Services,716.39,Grants,2122P10_CR00051,69648
Sandwell Metropolitan Borough Council,http://www.sandwell.gov.uk/info/200202/performance_and_spending/1079/payments_over_500,05-Jan-2022,Childrens Services,BEN SEMP,Childrens Services,950.00,Externally Purchased Professional Services ,2122P10_CR00052,107250
Sandwell Metropolitan Borough Council,http://www.sandwell.gov.uk/info/200202/performance_and_spending/1079/payments_over_500,13-Jan-2022,Childrens Services,BLACKHEATH PRIMARY SCHOOL                                 01,Childrens Services,1000.00,Grants,2122P10_CR00053,04024198
Sandwell Metropolitan Borough Council,http://www.sandwell.gov.uk/info/200202/performance_and_spending/1079/payments_over_500,12-Jan-2022,Childrens Services,BLAKEMORE FOOD SERVICE LTD,Childrens Services,507.88,Catering Provisions,2122P10_CR00054,2518
Sandwell Metropolitan Borough Council,http://www.sandwell.gov.uk/info/200202/performance_and_spending/1079/payments_over_500,01-Jan-2022,Childrens Services,"BRYAN HANCOX,",Childrens Services,1500.00,Externally Purchased Professional Services ,2122P10_CR00055,160331
Sandwell Metropolitan Borough Council,http://www.sandwell.gov.uk/info/200202/performance_and_spending/1079/payments_over_500,06-Jan-2022,Childrens Services,BSN ASSOCIATES LIMITED,Childrens Services,1010.75,Externally Purchased Professional Services ,2122P10_CR00056,152374
Sandwell Metropolitan Borough Council,http://www.sandwell.gov.uk/info/200202/performance_and_spending/1079/payments_over_500,24-Jan-2022,Childrens Services,BUTT TAXIS,Childrens Services,4213.32,Public Transport,2122P10_CR00057,109306
Sandwell Metropolitan Borough Council,http://www.sandwell.gov.uk/info/200202/performance_and_spending/1079/payments_over_500,01-Jan-2022,Childrens Services,CARLYLE LTD,Childrens Services,716.39,Externally Purchased Professional Services ,2122P10_CR00058,01507965
Sandwell Metropolitan Borough Council,http://www.sandwell.gov.uk/info/200202/performance_and_spending/1079/payments_over_500,19-Jan-2022,Childrens Services,CARLYLE LTD,Childrens Services,716.39,Externally Purchased Professional Services ,2122P10_CR00059,01507965
Sandwell Metropolitan Borough Council,http://www.sandwell.gov.uk/info/200202/performance_and_spending/1079/payments_over_500,19-Jan-2022,Childrens Services,CARLYLE LTD,Childrens Services,1010.75,Externally Purchased Professional Services ,2122P10_CR00060,01507965
Sandwell Metropolitan Borough Council,http://www.sandwell.gov.uk/info/200202/performance_and_spending/1079/payments_over_500,19-Jan-2022,Childrens Services,CARLYLE LTD,Childrens Services,941.16,Externally Purchased Professional Services ,2122P10_CR00061,01507965
Sandwell Metropolitan Borough Council,http://www.sandwell.gov.uk/info/200202/performance_and_spending/1079/payments_over_500,06-Jan-2022,Childrens Services,CLASSIC CARS 1997,Childrens Services,50372.26,Public Transport,2122P10_CR00062,06005093
Sandwell Metropolitan Borough Council,http://www.sandwell.gov.uk/info/200202/performance_and_spending/1079/payments_over_500,01-Jan-2022,Childrens Services,COMMUNITY FOUNDATION,Childrens Services,1010.75,Externally Purchased Professional Services ,2122P10_CR00063,121601
Sandwell Metropolitan Borough Council,http://www.sandwell.gov.uk/info/200202/performance_and_spending/1079/payments_over_500,12-Jan-2022,Childrens Services,COMMUNITY FOUNDATION,Childrens Services,1010.75,Externally Purchased Professional Services ,2122P10_CR00064,121601
Sandwell Metropolitan Borough Council,http://www.sandwell.gov.uk/info/200202/performance_and_spending/1079/payments_over_500,12-Jan-2022,Childrens Services,COMMUNITY FOUNDATION,Childrens Services,1010.75,Externally Purchased Professional Services ,2122P10_CR00065,121601
Sandwell Metropolitan Borough Council,http://www.sandwell.gov.uk/info/200202/performance_and_spending/1079/payments_over_500,12-Jan-2022,Childrens Services,COMMUNITY FOUNDATION,Childrens Services,1010.75,Externally Purchased Professional Services ,2122P10_CR00066,121601
Sandwell Metropolitan Borough Council,http://www.sandwell.gov.uk/info/200202/performance_and_spending/1079/payments_over_500,12-Jan-2022,Childrens Services,CONFEDERATION OF BANGLADESHI ORGANISATIONS (CBO) LIMITED,Childrens Services,560.00,Externally Purchased Professional Services ,2122P10_CR00067,10034
Sandwell Metropolitan Borough Council,http://www.sandwell.gov.uk/info/200202/performance_and_spending/1079/payments_over_500,12-Jan-2022,Childrens Services,CONFEDERATION OF BANGLADESHI ORGANISATIONS (CBO) LIMITED,Childrens Services,941.16,Externally Purchased Professional Services ,2122P10_CR00068,10034
Sandwell Metropolitan Borough Council,http://www.sandwell.gov.uk/info/200202/performance_and_spending/1079/payments_over_500,10-Jan-2022,Childrens Services,CORONA ENERGY RETAIL 2 LIMITED,Childrens Services,2932.90,Gas,2122P10_CR00069,118395
Sandwell Metropolitan Borough Council,http://www.sandwell.gov.uk/info/200202/performance_and_spending/1079/payments_over_500,06-Jan-2022,Childrens Services,COUNTY CARS (2003) LIMITED,Childrens Services,35309.07,Public Transport,2122P10_CR00070,06002387
Sandwell Metropolitan Borough Council,http://www.sandwell.gov.uk/info/200202/performance_and_spending/1079/payments_over_500,06-Jan-2022,Childrens Services,COUNTY CARS (2003) LIMITED,Childrens Services,11607.77,Public Transport,2122P10_CR00071,06002387
Sandwell Metropolitan Borough Council,http://www.sandwell.gov.uk/info/200202/performance_and_spending/1079/payments_over_500,06-Jan-2022,Childrens Services,COUNTY CARS (2003) LIMITED,Childrens Services,38109.83,Public Transport,2122P10_CR00072,06002387
Sandwell Metropolitan Borough Council,http://www.sandwell.gov.uk/info/200202/performance_and_spending/1079/payments_over_500,01-Jan-2022,Childrens Services,COUNTY CARS (2003) LIMITED,Childrens Services,87307.64,Public Transport,2122P10_CR00073,06002387
Sandwell Metropolitan Borough Council,http://www.sandwell.gov.uk/info/200202/performance_and_spending/1079/payments_over_500,01-Jan-2022,Childrens Services,COUNTY CARS (2003) LIMITED,Childrens Services,86977.19,Public Transport,2122P10_CR00074,06002387
Sandwell Metropolitan Borough Council,http://www.sandwell.gov.uk/info/200202/performance_and_spending/1079/payments_over_500,01-Jan-2022,Childrens Services,CREATIVE ACADEMIES LTD,Childrens Services,2625.00,Conference Expenses,2122P10_CR00075,116825
Sandwell Metropolitan Borough Council,http://www.sandwell.gov.uk/info/200202/performance_and_spending/1079/payments_over_500,01-Jan-2022,Childrens Services,CREATIVE ACADEMIES LTD,Childrens Services,1050.00,Conference Expenses,2122P10_CR00076,116825
Sandwell Metropolitan Borough Council,http://www.sandwell.gov.uk/info/200202/performance_and_spending/1079/payments_over_500,01-Jan-2022,Childrens Services,CREATIVE ACADEMIES LTD,Childrens Services,2130.00,Conference Expenses,2122P10_CR00077,116825
Sandwell Metropolitan Borough Council,http://www.sandwell.gov.uk/info/200202/performance_and_spending/1079/payments_over_500,01-Jan-2022,Childrens Services,CREATIVE ACADEMIES LTD,Childrens Services,2214.75,Conference Expenses,2122P10_CR00078,116825
Sandwell Metropolitan Borough Council,http://www.sandwell.gov.uk/info/200202/performance_and_spending/1079/payments_over_500,01-Jan-2022,Childrens Services,CREATIVE ACADEMIES LTD,Childrens Services,2000.00,Externally Purchased Professional Services ,2122P10_CR00079,116825
Sandwell Metropolitan Borough Council,http://www.sandwell.gov.uk/info/200202/performance_and_spending/1079/payments_over_500,01-Jan-2022,Childrens Services,CREATIVE ACADEMIES LTD,Childrens Services,2455.00,Hire of Facilities,2122P10_CR00080,116825
Sandwell Metropolitan Borough Council,http://www.sandwell.gov.uk/info/200202/performance_and_spending/1079/payments_over_500,06-Jan-2022,Childrens Services,D J TRAVEL,Childrens Services,2968.00,Public Transport,2122P10_CR00081,96415
Sandwell Metropolitan Borough Council,http://www.sandwell.gov.uk/info/200202/performance_and_spending/1079/payments_over_500,01-Jan-2022,Childrens Services,DAFFODILS DAY NURSERY,Childrens Services,716.39,Externally Purchased Professional Services ,2122P10_CR00082,122616
Sandwell Metropolitan Borough Council,http://www.sandwell.gov.uk/info/200202/performance_and_spending/1079/payments_over_500,13-Jan-2022,Childrens Services,DAFFODILS DAY NURSERY,Childrens Services,560.00,Grants,2122P10_CR00083,122616
Sandwell Metropolitan Borough Council,http://www.sandwell.gov.uk/info/200202/performance_and_spending/1079/payments_over_500,10-Jan-2022,Childrens Services,DIGBETH DINING CLUB CIC,Childrens Services,3564.00,Catering Provisions,2122P10_CR00084,153646
Sandwell Metropolitan Borough Council,http://www.sandwell.gov.uk/info/200202/performance_and_spending/1079/payments_over_500,12-Jan-2022,Childrens Services,DIGBETH DINING CLUB CIC,Childrens Services,615.00,Catering Provisions,2122P10_CR00085,153646
Sandwell Metropolitan Borough Council,http://www.sandwell.gov.uk/info/200202/performance_and_spending/1079/payments_over_500,26-Jan-2022,Childrens Services,DIRECTION TRAINING & MANAGEMENT,Childrens Services,1000.00,Externally Purchased Professional Services ,2122P10_CR00086,01727395
Sandwell Metropolitan Borough Council,http://www.sandwell.gov.uk/info/200202/performance_and_spending/1079/payments_over_500,11-Jan-2022,Childrens Services,DOT DIGITAL CREATIVE LTD,Childrens Services,1010.76,Externally Purchased Professional Services ,2122P10_CR00087,151805
Sandwell Metropolitan Borough Council,http://www.sandwell.gov.uk/info/200202/performance_and_spending/1079/payments_over_500,01-Jan-2022,Childrens Services,DOT DIGITAL CREATIVE LTD,Childrens Services,560.00,Grants,2122P10_CR00088,151805
Sandwell Metropolitan Borough Council,http://www.sandwell.gov.uk/info/200202/performance_and_spending/1079/payments_over_500,01-Jan-2022,Childrens Services,DR PRINT (UK) LTD,Childrens Services,1297.04,Advertising & Publicity,2122P10_CR00089,63228
Sandwell Metropolitan Borough Council,http://www.sandwell.gov.uk/info/200202/performance_and_spending/1079/payments_over_500,13-Jan-2022,Childrens Services,DROACH TRAVEL LTD,Childrens Services,20385.14,Public Transport,2122P10_CR00090,06002707
Sandwell Metropolitan Borough Council,http://www.sandwell.gov.uk/info/200202/performance_and_spending/1079/payments_over_500,13-Jan-2022,Childrens Services,DROACH TRAVEL LTD,Childrens Services,20693.04,Public Transport,2122P10_CR00091,06002707
Sandwell Metropolitan Borough Council,http://www.sandwell.gov.uk/info/200202/performance_and_spending/1079/payments_over_500,05-Jan-2022,Childrens Services,ENVIRONMENTAL TRAINING CENTRE LTD,Childrens Services,1540.00,Externally Purchased Professional Services ,2122P10_CR00092,157144
Sandwell Metropolitan Borough Council,http://www.sandwell.gov.uk/info/200202/performance_and_spending/1079/payments_over_500,07-Jan-2022,Childrens Services,EON NEXT ENERGY LTD,Childrens Services,557.47,Electricity,2122P10_CR00093,149566
Sandwell Metropolitan Borough Council,http://www.sandwell.gov.uk/info/200202/performance_and_spending/1079/payments_over_500,07-Jan-2022,Childrens Services,EON NEXT ENERGY LTD,Childrens Services,563.38,Electricity,2122P10_CR00094,149566
Sandwell Metropolitan Borough Council,http://www.sandwell.gov.uk/info/200202/performance_and_spending/1079/payments_over_500,13-Jan-2022,Childrens Services,FIVE STAR TAXIS (DUDLEY) LTD,Childrens Services,92948.99,Public Transport,2122P10_CR00095,133542
Sandwell Metropolitan Borough Council,http://www.sandwell.gov.uk/info/200202/performance_and_spending/1079/payments_over_500,18-Jan-2022,Childrens Services,FRANCESCA RICHARDS,Childrens Services,950.00,Externally Purchased Professional Services ,2122P10_CR00096,159458
Sandwell Metropolitan Borough Council,http://www.sandwell.gov.uk/info/200202/performance_and_spending/1079/payments_over_500,06-Jan-2022,Childrens Services,GREEN DESTINATIONS LTD,Childrens Services,87846.58,Public Transport,2122P10_CR00097,109275
Sandwell Metropolitan Borough Council,http://www.sandwell.gov.uk/info/200202/performance_and_spending/1079/payments_over_500,01-Jan-2022,Childrens Services,GREEN DESTINATIONS LTD,Childrens Services,682.47,Public Transport,2122P10_CR00098,109275
Sandwell Metropolitan Borough Council,http://www.sandwell.gov.uk/info/200202/performance_and_spending/1079/payments_over_500,01-Jan-2022,Childrens Services,GTG TRAINING LTD,Childrens Services,1115.00,Externally Purchased Professional Services ,2122P10_CR00099,148595
Sandwell Metropolitan Borough Council,http://www.sandwell.gov.uk/info/200202/performance_and_spending/1079/payments_over_500,18-Jan-2022,Childrens Services,HEART & SOUL COMMUNITY CIC LTD,Childrens Services,1048.24,Externally Purchased Professional Services ,2122P10_CR00100,133378
Sandwell Metropolitan Borough Council,http://www.sandwell.gov.uk/info/200202/performance_and_spending/1079/payments_over_500,18-Jan-2022,Childrens Services,HEART & SOUL COMMUNITY CIC LTD,Childrens Services,1048.24,Externally Purchased Professional Services ,2122P10_CR00101,133378
Sandwell Metropolitan Borough Council,http://www.sandwell.gov.uk/info/200202/performance_and_spending/1079/payments_over_500,18-Jan-2022,Childrens Services,HEART & SOUL COMMUNITY CIC LTD,Childrens Services,1048.24,Externally Purchased Professional Services ,2122P10_CR00102,133378
Sandwell Metropolitan Borough Council,http://www.sandwell.gov.uk/info/200202/performance_and_spending/1079/payments_over_500,18-Jan-2022,Childrens Services,HEART & SOUL COMMUNITY CIC LTD,Childrens Services,1048.24,Externally Purchased Professional Services ,2122P10_CR00103,133378
Sandwell Metropolitan Borough Council,http://www.sandwell.gov.uk/info/200202/performance_and_spending/1079/payments_over_500,18-Jan-2022,Childrens Services,HEART & SOUL COMMUNITY CIC LTD,Childrens Services,1048.24,Externally Purchased Professional Services ,2122P10_CR00104,133378
Sandwell Metropolitan Borough Council,http://www.sandwell.gov.uk/info/200202/performance_and_spending/1079/payments_over_500,18-Jan-2022,Childrens Services,HEART & SOUL COMMUNITY CIC LTD,Childrens Services,1048.24,Externally Purchased Professional Services ,2122P10_CR00105,133378
Sandwell Metropolitan Borough Council,http://www.sandwell.gov.uk/info/200202/performance_and_spending/1079/payments_over_500,18-Jan-2022,Childrens Services,HEART & SOUL COMMUNITY CIC LTD,Childrens Services,1048.24,Externally Purchased Professional Services ,2122P10_CR00106,133378
Sandwell Metropolitan Borough Council,http://www.sandwell.gov.uk/info/200202/performance_and_spending/1079/payments_over_500,10-Jan-2022,Childrens Services,HEART OF ENGLAND COMMUNITY FOUNDATION,Childrens Services,3000.00,Grant Payments,2122P10_CR00107,133427
Sandwell Metropolitan Borough Council,http://www.sandwell.gov.uk/info/200202/performance_and_spending/1079/payments_over_500,01-Jan-2022,Childrens Services,HELPING HANDS,Childrens Services,2700.00,Grant Payments,2122P10_CR00108,89364
Sandwell Metropolitan Borough Council,http://www.sandwell.gov.uk/info/200202/performance_and_spending/1079/payments_over_500,01-Jan-2022,Childrens Services,INGESTRE ORANGERY AND GARDENS,Childrens Services,650.00,Materials & Consumables,2122P10_CR00109,127331
Sandwell Metropolitan Borough Council,http://www.sandwell.gov.uk/info/200202/performance_and_spending/1079/payments_over_500,07-Jan-2022,Childrens Services,JMB GLOBAL LTD,Childrens Services,1010.75,Externally Purchased Professional Services ,2122P10_CR00110,152360
Sandwell Metropolitan Borough Council,http://www.sandwell.gov.uk/info/200202/performance_and_spending/1079/payments_over_500,05-Jan-2022,Childrens Services,JMB GLOBAL LTD,Childrens Services,941.16,Externally Purchased Professional Services ,2122P10_CR00111,152360
Sandwell Metropolitan Borough Council,http://www.sandwell.gov.uk/info/200202/performance_and_spending/1079/payments_over_500,06-Jan-2022,Childrens Services,JPC TRAVEL SOLUTION,Childrens Services,48399.08,Public Transport,2122P10_CR00112,138533
Sandwell Metropolitan Borough Council,http://www.sandwell.gov.uk/info/200202/performance_and_spending/1079/payments_over_500,05-Jan-2022,Childrens Services,KANGAROO POUCH LIMITED,Childrens Services,560.00,Grants,2122P10_CR00113,106981
Sandwell Metropolitan Borough Council,http://www.sandwell.gov.uk/info/200202/performance_and_spending/1079/payments_over_500,02-Jan-2022,Childrens Services,LIFE'S ABOUT ESSENTIALS LTD,Childrens Services,941.16,Externally Purchased Professional Services ,2122P10_CR00114,143969
Sandwell Metropolitan Borough Council,http://www.sandwell.gov.uk/info/200202/performance_and_spending/1079/payments_over_500,02-Jan-2022,Childrens Services,LIFE'S ABOUT ESSENTIALS LTD,Childrens Services,941.16,Externally Purchased Professional Services ,2122P10_CR00115,143969
Sandwell Metropolitan Borough Council,http://www.sandwell.gov.uk/info/200202/performance_and_spending/1079/payments_over_500,19-Jan-2022,Childrens Services,LIFE'S ABOUT ESSENTIALS LTD,Childrens Services,1010.75,Externally Purchased Professional Services ,2122P10_CR00116,143969
Sandwell Metropolitan Borough Council,http://www.sandwell.gov.uk/info/200202/performance_and_spending/1079/payments_over_500,19-Jan-2022,Childrens Services,LIFE'S ABOUT ESSENTIALS LTD,Childrens Services,716.39,Externally Purchased Professional Services ,2122P10_CR00117,143969
Sandwell Metropolitan Borough Council,http://www.sandwell.gov.uk/info/200202/performance_and_spending/1079/payments_over_500,13-Jan-2022,Childrens Services,LIONCOURT HOMES LIMITED,Childrens Services,1010.75,Externally Purchased Professional Services ,2122P10_CR00118,133372
Sandwell Metropolitan Borough Council,http://www.sandwell.gov.uk/info/200202/performance_and_spending/1079/payments_over_500,13-Jan-2022,Childrens Services,LIONCOURT HOMES LIMITED,Childrens Services,716.39,Externally Purchased Professional Services ,2122P10_CR00119,133372
Sandwell Metropolitan Borough Council,http://www.sandwell.gov.uk/info/200202/performance_and_spending/1079/payments_over_500,01-Jan-2022,Childrens Services,MEAL BOX DIRECT LTD,Childrens Services,716.39,Externally Purchased Professional Services ,2122P10_CR00120,155083
Sandwell Metropolitan Borough Council,http://www.sandwell.gov.uk/info/200202/performance_and_spending/1079/payments_over_500,21-Jan-2022,Childrens Services,MERCURIAL DANCE LTD,Childrens Services,850.00,Externally Purchased Professional Services ,2122P10_CR00121,159482
Sandwell Metropolitan Borough Council,http://www.sandwell.gov.uk/info/200202/performance_and_spending/1079/payments_over_500,07-Jan-2022,Childrens Services,MIDLAND NEWS ASSOCIATION LTD,Childrens Services,1700.00,Advertising & Publicity,2122P10_CR00122,01038645
Sandwell Metropolitan Borough Council,http://www.sandwell.gov.uk/info/200202/performance_and_spending/1079/payments_over_500,26-Jan-2022,Childrens Services,MURRAY HALL COMMUNITY TRUST,Childrens Services,95115.39,Contract Payments,2122P10_CR00123,01627284
Sandwell Metropolitan Borough Council,http://www.sandwell.gov.uk/info/200202/performance_and_spending/1079/payments_over_500,01-Jan-2022,Childrens Services,NOTTINGHAMSHIRE COUNTY COUNCIL,Childrens Services,1305.00,External Contract Hire,2122P10_CR00124,01218759
Sandwell Metropolitan Borough Council,http://www.sandwell.gov.uk/info/200202/performance_and_spending/1079/payments_over_500,06-Jan-2022,Childrens Services,ONE 4 YOU SERVICES LTD,Childrens Services,62719.39,Public Transport,2122P10_CR00125,81204
Sandwell Metropolitan Borough Council,http://www.sandwell.gov.uk/info/200202/performance_and_spending/1079/payments_over_500,10-Jan-2022,Childrens Services,OPEN LENS MEDIA,Childrens Services,1559.00,Externally Purchased Professional Services ,2122P10_CR00126,154205
Sandwell Metropolitan Borough Council,http://www.sandwell.gov.uk/info/200202/performance_and_spending/1079/payments_over_500,06-Jan-2022,Childrens Services,PLAYQUEST ADVENTURE PLAY LIMITED,Childrens Services,1450.00,Equipment & Furniture ,2122P10_CR00127,1086
Sandwell Metropolitan Borough Council,http://www.sandwell.gov.uk/info/200202/performance_and_spending/1079/payments_over_500,01-Jan-2022,Childrens Services,PREMIER PRINT & PROMOTIONS LIMITED,Childrens Services,1602.00,Advertising & Publicity,2122P10_CR00128,128540
Sandwell Metropolitan Borough Council,http://www.sandwell.gov.uk/info/200202/performance_and_spending/1079/payments_over_500,11-Jan-2022,Childrens Services,PURE CARE SERVICES LTD,Childrens Services,560.00,Grants,2122P10_CR00129,158100
Sandwell Metropolitan Borough Council,http://www.sandwell.gov.uk/info/200202/performance_and_spending/1079/payments_over_500,04-Jan-2022,Childrens Services,ROZ SHABAZZ-JOHNSON,Childrens Services,2500.00,Externally Purchased Professional Services ,2122P10_CR00130,159497
Sandwell Metropolitan Borough Council,http://www.sandwell.gov.uk/info/200202/performance_and_spending/1079/payments_over_500,01-Jan-2022,Childrens Services,SANDWELL CHILDREN'S TRUST,Childrens Services,5232939.38,Other Establishments,2122P10_CR00131,133302
Sandwell Metropolitan Borough Council,http://www.sandwell.gov.uk/info/200202/performance_and_spending/1079/payments_over_500,31-Jan-2022,Childrens Services,SANDWELL CHILDREN'S TRUST,Childrens Services,420225.00,Other Establishments,2122P10_CR00132,133302
Sandwell Metropolitan Borough Council,http://www.sandwell.gov.uk/info/200202/performance_and_spending/1079/payments_over_500,01-Jan-2022,Childrens Services,SANDWELL CITIZENS ADVICE BUREAUX,Childrens Services,1010.75,Externally Purchased Professional Services ,2122P10_CR00133,01760899
Sandwell Metropolitan Borough Council,http://www.sandwell.gov.uk/info/200202/performance_and_spending/1079/payments_over_500,01-Jan-2022,Childrens Services,SANDWELL CITIZENS ADVICE BUREAUX,Childrens Services,1010.75,Externally Purchased Professional Services ,2122P10_CR00134,01760899
Sandwell Metropolitan Borough Council,http://www.sandwell.gov.uk/info/200202/performance_and_spending/1079/payments_over_500,01-Jan-2022,Childrens Services,SANDWELL CITIZENS ADVICE BUREAUX,Childrens Services,1010.75,Externally Purchased Professional Services ,2122P10_CR00135,01760899
Sandwell Metropolitan Borough Council,http://www.sandwell.gov.uk/info/200202/performance_and_spending/1079/payments_over_500,01-Jan-2022,Childrens Services,SIPS EDUCATION LTD,Childrens Services,43000.00,Contract Payments,2122P10_CR00136,110784
Sandwell Metropolitan Borough Council,http://www.sandwell.gov.uk/info/200202/performance_and_spending/1079/payments_over_500,11-Jan-2022,Childrens Services,TEMPLE MEADOW KIDS CLUB LTD,Childrens Services,2741.40,Grant Payments,2122P10_CR00137,106301
Sandwell Metropolitan Borough Council,http://www.sandwell.gov.uk/info/200202/performance_and_spending/1079/payments_over_500,01-Jan-2022,Childrens Services,TERRA TEK LTD,Childrens Services,2352.88,Externally Purchased Professional Services ,2122P10_CR00138,155508
Sandwell Metropolitan Borough Council,http://www.sandwell.gov.uk/info/200202/performance_and_spending/1079/payments_over_500,01-Jan-2022,Childrens Services,TERRA TEK LTD,Childrens Services,3032.25,Externally Purchased Professional Services ,2122P10_CR00139,155508
Sandwell Metropolitan Borough Council,http://www.sandwell.gov.uk/info/200202/performance_and_spending/1079/payments_over_500,12-Jan-2022,Childrens Services,TERRA TEK LTD,Childrens Services,560.00,Grants,2122P10_CR00140,155508
Sandwell Metropolitan Borough Council,http://www.sandwell.gov.uk/info/200202/performance_and_spending/1079/payments_over_500,01-Jan-2022,Childrens Services,THANDI COACHES,Childrens Services,5250.00,External Contract Hire,2122P10_CR00141,31534
Sandwell Metropolitan Borough Council,http://www.sandwell.gov.uk/info/200202/performance_and_spending/1079/payments_over_500,31-Jan-2022,Childrens Services,THE GAP CHRISTIAN FAMILY CENTRE,Childrens Services,2449.56,Grant Payments,2122P10_CR00142,08588407
Sandwell Metropolitan Borough Council,http://www.sandwell.gov.uk/info/200202/performance_and_spending/1079/payments_over_500,14-Jan-2022,Childrens Services,THE GIFT VOUCHER SHOP LIMITED,Childrens Services,1102.50,Operational Services ,2122P10_CR00143,111545
Sandwell Metropolitan Borough Council,http://www.sandwell.gov.uk/info/200202/performance_and_spending/1079/payments_over_500,25-Jan-2022,Childrens Services,THE PRIORY PRIMARY,Childrens Services,750.00,Grants,2122P10_CR00144,01746051
Sandwell Metropolitan Borough Council,http://www.sandwell.gov.uk/info/200202/performance_and_spending/1079/payments_over_500,01-Jan-2022,Childrens Services,THOMAS CHARLES FACILITIES & MAINTENANCE LTD,Childrens Services,690.00,Contract Cleaning,2122P10_CR00145,114170
Sandwell Metropolitan Borough Council,http://www.sandwell.gov.uk/info/200202/performance_and_spending/1079/payments_over_500,01-Jan-2022,Childrens Services,THOMAS CHARLES FACILITIES & MAINTENANCE LTD,Childrens Services,2790.00,Contract Cleaning,2122P10_CR00146,114170
Sandwell Metropolitan Borough Council,http://www.sandwell.gov.uk/info/200202/performance_and_spending/1079/payments_over_500,01-Jan-2022,Childrens Services,THOMAS CHARLES FACILITIES & MAINTENANCE LTD,Childrens Services,1860.00,Contract Cleaning,2122P10_CR00147,114170
Sandwell Metropolitan Borough Council,http://www.sandwell.gov.uk/info/200202/performance_and_spending/1079/payments_over_500,01-Jan-2022,Childrens Services,THOMAS CHARLES FACILITIES & MAINTENANCE LTD,Childrens Services,1860.00,Contract Cleaning,2122P10_CR00148,114170
Sandwell Metropolitan Borough Council,http://www.sandwell.gov.uk/info/200202/performance_and_spending/1079/payments_over_500,01-Jan-2022,Childrens Services,THOMAS CHARLES FACILITIES & MAINTENANCE LTD,Childrens Services,765.00,Contract Cleaning,2122P10_CR00149,114170
Sandwell Metropolitan Borough Council,http://www.sandwell.gov.uk/info/200202/performance_and_spending/1079/payments_over_500,01-Jan-2022,Childrens Services,THOMAS CHARLES FACILITIES & MAINTENANCE LTD,Childrens Services,1860.00,Contract Cleaning,2122P10_CR00150,114170
Sandwell Metropolitan Borough Council,http://www.sandwell.gov.uk/info/200202/performance_and_spending/1079/payments_over_500,01-Jan-2022,Childrens Services,TIPTON LITTERWATCH,Childrens Services,560.00,Grants,2122P10_CR00151,27921
Sandwell Metropolitan Borough Council,http://www.sandwell.gov.uk/info/200202/performance_and_spending/1079/payments_over_500,06-Jan-2022,Childrens Services,TOH TAXIS,Childrens Services,4380.55,Public Transport,2122P10_CR00152,12250
Sandwell Metropolitan Borough Council,http://www.sandwell.gov.uk/info/200202/performance_and_spending/1079/payments_over_500,06-Jan-2022,Childrens Services,TOH TAXIS,Childrens Services,1059.65,Public Transport,2122P10_CR00153,12250
Sandwell Metropolitan Borough Council,http://www.sandwell.gov.uk/info/200202/performance_and_spending/1079/payments_over_500,06-Jan-2022,Childrens Services,TOH TAXIS,Childrens Services,1469.67,Public Transport,2122P10_CR00154,12250
Sandwell Metropolitan Borough Council,http://www.sandwell.gov.uk/info/200202/performance_and_spending/1079/payments_over_500,05-Jan-2022,Childrens Services,TOPPS MANAGEMENT & SUPPORT SERVICES LTD,Childrens Services,2499.98,Discretionary Awards,2122P10_CR00155,68846
Sandwell Metropolitan Borough Council,http://www.sandwell.gov.uk/info/200202/performance_and_spending/1079/payments_over_500,01-Jan-2022,Childrens Services,TOPPS MANAGEMENT & SUPPORT SERVICES LTD,Childrens Services,996.94,Externally Purchased Professional Services ,2122P10_CR00156,68846
Sandwell Metropolitan Borough Council,http://www.sandwell.gov.uk/info/200202/performance_and_spending/1079/payments_over_500,01-Jan-2022,Childrens Services,TOPPS MANAGEMENT & SUPPORT SERVICES LTD,Childrens Services,732.62,Externally Purchased Professional Services ,2122P10_CR00157,68846
Sandwell Metropolitan Borough Council,http://www.sandwell.gov.uk/info/200202/performance_and_spending/1079/payments_over_500,01-Jan-2022,Childrens Services,TOPPS MANAGEMENT & SUPPORT SERVICES LTD,Childrens Services,996.94,Externally Purchased Professional Services ,2122P10_CR00158,68846
Sandwell Metropolitan Borough Council,http://www.sandwell.gov.uk/info/200202/performance_and_spending/1079/payments_over_500,08-Jan-2022,Childrens Services,TOTALENERGIES GAS & POWER LTD,Childrens Services,1225.29,Electricity,2122P10_CR00159,107605
Sandwell Metropolitan Borough Council,http://www.sandwell.gov.uk/info/200202/performance_and_spending/1079/payments_over_500,08-Jan-2022,Childrens Services,TOTALENERGIES GAS & POWER LTD,Childrens Services,587.43,Electricity,2122P10_CR00160,107605
Sandwell Metropolitan Borough Council,http://www.sandwell.gov.uk/info/200202/performance_and_spending/1079/payments_over_500,01-Jan-2022,Childrens Services,TOTALENERGIES GAS & POWER LTD,Childrens Services,1181.50,Electricity,2122P10_CR00161,107605
Sandwell Metropolitan Borough Council,http://www.sandwell.gov.uk/info/200202/performance_and_spending/1079/payments_over_500,08-Jan-2022,Childrens Services,TOTALENERGIES GAS & POWER LTD,Childrens Services,1295.35,Electricity,2122P10_CR00162,107605
Sandwell Metropolitan Borough Council,http://www.sandwell.gov.uk/info/200202/performance_and_spending/1079/payments_over_500,08-Jan-2022,Childrens Services,TOTALENERGIES GAS & POWER LTD,Childrens Services,675.94,Electricity,2122P10_CR00163,107605
Sandwell Metropolitan Borough Council,http://www.sandwell.gov.uk/info/200202/performance_and_spending/1079/payments_over_500,26-Jan-2022,Childrens Services,TOTALENERGIES GAS & POWER LTD,Childrens Services,800.60,Electricity,2122P10_CR00164,107605
Sandwell Metropolitan Borough Council,http://www.sandwell.gov.uk/info/200202/performance_and_spending/1079/payments_over_500,08-Jan-2022,Childrens Services,TOTALENERGIES GAS & POWER LTD,Childrens Services,567.85,Electricity,2122P10_CR00165,107605
Sandwell Metropolitan Borough Council,http://www.sandwell.gov.uk/info/200202/performance_and_spending/1079/payments_over_500,01-Jan-2022,Childrens Services,TOTALENERGIES GAS & POWER LTD,Childrens Services,858.54,Gas,2122P10_CR00166,107605
Sandwell Metropolitan Borough Council,http://www.sandwell.gov.uk/info/200202/performance_and_spending/1079/payments_over_500,01-Jan-2022,Childrens Services,TOTALENERGIES GAS & POWER LTD,Childrens Services,1109.86,Gas,2122P10_CR00167,107605
Sandwell Metropolitan Borough Council,http://www.sandwell.gov.uk/info/200202/performance_and_spending/1079/payments_over_500,11-Jan-2022,Childrens Services,TOTALENERGIES GAS & POWER LTD,Childrens Services,1299.04,Gas,2122P10_CR00168,107605
Sandwell Metropolitan Borough Council,http://www.sandwell.gov.uk/info/200202/performance_and_spending/1079/payments_over_500,06-Jan-2022,Childrens Services,UNITY TRAVEL,Childrens Services,2000.00,Public Transport,2122P10_CR00169,64986
Sandwell Metropolitan Borough Council,http://www.sandwell.gov.uk/info/200202/performance_and_spending/1079/payments_over_500,01-Jan-2022,Childrens Services,UNITY TRAVEL,Childrens Services,1287.00,Public Transport,2122P10_CR00170,64986
Sandwell Metropolitan Borough Council,http://www.sandwell.gov.uk/info/200202/performance_and_spending/1079/payments_over_500,14-Jan-2022,Childrens Services,WATER PLUS SELECT LIMITED,Childrens Services,688.58,Water Services,2122P10_CR00171,129644
Sandwell Metropolitan Borough Council,http://www.sandwell.gov.uk/info/200202/performance_and_spending/1079/payments_over_500,07-Jan-2022,Childrens Services,WATER PLUS SELECT LIMITED,Childrens Services,1089.03,Water Services,2122P10_CR00172,129644
Sandwell Metropolitan Borough Council,http://www.sandwell.gov.uk/info/200202/performance_and_spending/1079/payments_over_500,24-Jan-2022,Childrens Services,WEST BROMWICH ALBION FC LTD,Childrens Services,841.35,Catering Provisions,2122P10_CR00173,01606624
Sandwell Metropolitan Borough Council,http://www.sandwell.gov.uk/info/200202/performance_and_spending/1079/payments_over_500,11-Jan-2022,Childrens Services,WEST MIDLANDS TRAVEL LIMITED,Childrens Services,4914.40,Public Transport,2122P10_CR00174,01736688
Sandwell Metropolitan Borough Council,http://www.sandwell.gov.uk/info/200202/performance_and_spending/1079/payments_over_500,06-Jan-2022,Childrens Services,YELLOW CARS,Childrens Services,23585.68,Public Transport,2122P10_CR00175,116819
Sandwell Metropolitan Borough Council,http://www.sandwell.gov.uk/info/200202/performance_and_spending/1079/payments_over_500,11-Jan-2022,Childrens Services,L J HILL & J L HILL,Childrens Services,545.45,External Contract Hire,2122P10_CR00176,147930
Sandwell Metropolitan Borough Council,http://www.sandwell.gov.uk/info/200202/performance_and_spending/1079/payments_over_500,11-Jan-2022,Childrens Services,REDACTED PERSONAL DATA,Childrens Services,581.80,External Contract Hire,2122P10_CR00177,REDACTED PERSONAL DATA
Sandwell Metropolitan Borough Council,http://www.sandwell.gov.uk/info/200202/performance_and_spending/1079/payments_over_500,11-Jan-2022,Childrens Services,REDACTED PERSONAL DATA,Childrens Services,727.27,External Contract Hire,2122P10_CR00178,REDACTED PERSONAL DATA
Sandwell Metropolitan Borough Council,http://www.sandwell.gov.uk/info/200202/performance_and_spending/1079/payments_over_500,11-Jan-2022,Childrens Services,REDACTED PERSONAL DATA,Childrens Services,727.27,External Contract Hire,2122P10_CR00179,REDACTED PERSONAL DATA
Sandwell Metropolitan Borough Council,http://www.sandwell.gov.uk/info/200202/performance_and_spending/1079/payments_over_500,11-Jan-2022,Childrens Services,REDACTED PERSONAL DATA,Childrens Services,545.45,External Contract Hire,2122P10_CR00180,REDACTED PERSONAL DATA
Sandwell Metropolitan Borough Council,http://www.sandwell.gov.uk/info/200202/performance_and_spending/1079/payments_over_500,11-Jan-2022,Childrens Services,REDACTED PERSONAL DATA,Childrens Services,545.45,External Contract Hire,2122P10_CR00181,REDACTED PERSONAL DATA
Sandwell Metropolitan Borough Council,http://www.sandwell.gov.uk/info/200202/performance_and_spending/1079/payments_over_500,11-Jan-2022,Childrens Services,REDACTED PERSONAL DATA,Childrens Services,727.28,External Contract Hire,2122P10_CR00182,REDACTED PERSONAL DATA
Sandwell Metropolitan Borough Council,http://www.sandwell.gov.uk/info/200202/performance_and_spending/1079/payments_over_500,11-Jan-2022,Childrens Services,REDACTED PERSONAL DATA,Childrens Services,727.27,External Contract Hire,2122P10_CR00183,REDACTED PERSONAL DATA
Sandwell Metropolitan Borough Council,http://www.sandwell.gov.uk/info/200202/performance_and_spending/1079/payments_over_500,11-Jan-2022,Childrens Services,REDACTED PERSONAL DATA,Childrens Services,727.28,External Contract Hire,2122P10_CR00184,REDACTED PERSONAL DATA
Sandwell Metropolitan Borough Council,http://www.sandwell.gov.uk/info/200202/performance_and_spending/1079/payments_over_500,11-Jan-2022,Childrens Services,REDACTED PERSONAL DATA,Childrens Services,545.45,External Contract Hire,2122P10_CR00185,REDACTED PERSONAL DATA
Sandwell Metropolitan Borough Council,http://www.sandwell.gov.uk/info/200202/performance_and_spending/1079/payments_over_500,11-Jan-2022,Childrens Services,REDACTED PERSONAL DATA,Childrens Services,545.45,External Contract Hire,2122P10_CR00186,REDACTED PERSONAL DATA
Sandwell Metropolitan Borough Council,http://www.sandwell.gov.uk/info/200202/performance_and_spending/1079/payments_over_500,11-Jan-2022,Childrens Services,REDACTED PERSONAL DATA,Childrens Services,545.45,External Contract Hire,2122P10_CR00187,REDACTED PERSONAL DATA
Sandwell Metropolitan Borough Council,http://www.sandwell.gov.uk/info/200202/performance_and_spending/1079/payments_over_500,11-Jan-2022,Childrens Services,REDACTED PERSONAL DATA,Childrens Services,1090.90,External Contract Hire,2122P10_CR00188,REDACTED PERSONAL DATA
Sandwell Metropolitan Borough Council,http://www.sandwell.gov.uk/info/200202/performance_and_spending/1079/payments_over_500,11-Jan-2022,Childrens Services,REDACTED PERSONAL DATA,Childrens Services,545.45,External Contract Hire,2122P10_CR00189,REDACTED PERSONAL DATA
Sandwell Metropolitan Borough Council,http://www.sandwell.gov.uk/info/200202/performance_and_spending/1079/payments_over_500,11-Jan-2022,Childrens Services,REDACTED PERSONAL DATA,Childrens Services,545.45,External Contract Hire,2122P10_CR00190,REDACTED PERSONAL DATA
Sandwell Metropolitan Borough Council,http://www.sandwell.gov.uk/info/200202/performance_and_spending/1079/payments_over_500,11-Jan-2022,Childrens Services,REDACTED PERSONAL DATA,Childrens Services,727.27,External Contract Hire,2122P10_CR00191,REDACTED PERSONAL DATA
Sandwell Metropolitan Borough Council,http://www.sandwell.gov.uk/info/200202/performance_and_spending/1079/payments_over_500,11-Jan-2022,Childrens Services,REDACTED PERSONAL DATA,Childrens Services,909.09,External Contract Hire,2122P10_CR00192,REDACTED PERSONAL DATA
Sandwell Metropolitan Borough Council,http://www.sandwell.gov.uk/info/200202/performance_and_spending/1079/payments_over_500,11-Jan-2022,Childrens Services,REDACTED PERSONAL DATA,Childrens Services,545.45,External Contract Hire,2122P10_CR00193,REDACTED PERSONAL DATA
Sandwell Metropolitan Borough Council,http://www.sandwell.gov.uk/info/200202/performance_and_spending/1079/payments_over_500,11-Jan-2022,Childrens Services,REDACTED PERSONAL DATA,Childrens Services,545.45,External Contract Hire,2122P10_CR00194,REDACTED PERSONAL DATA
Sandwell Metropolitan Borough Council,http://www.sandwell.gov.uk/info/200202/performance_and_spending/1079/payments_over_500,11-Jan-2022,Childrens Services,REDACTED PERSONAL DATA,Childrens Services,545.45,External Contract Hire,2122P10_CR00195,REDACTED PERSONAL DATA
Sandwell Metropolitan Borough Council,http://www.sandwell.gov.uk/info/200202/performance_and_spending/1079/payments_over_500,11-Jan-2022,Childrens Services,REDACTED PERSONAL DATA,Childrens Services,727.28,External Contract Hire,2122P10_CR00196,REDACTED PERSONAL DATA
Sandwell Metropolitan Borough Council,http://www.sandwell.gov.uk/info/200202/performance_and_spending/1079/payments_over_500,11-Jan-2022,Childrens Services,REDACTED PERSONAL DATA,Childrens Services,800.00,External Contract Hire,2122P10_CR00197,REDACTED PERSONAL DATA
Sandwell Metropolitan Borough Council,http://www.sandwell.gov.uk/info/200202/performance_and_spending/1079/payments_over_500,11-Jan-2022,Childrens Services,REDACTED PERSONAL DATA,Childrens Services,545.45,External Contract Hire,2122P10_CR00198,REDACTED PERSONAL DATA
Sandwell Metropolitan Borough Council,http://www.sandwell.gov.uk/info/200202/performance_and_spending/1079/payments_over_500,11-Jan-2022,Childrens Services,REDACTED PERSONAL DATA,Childrens Services,727.28,External Contract Hire,2122P10_CR00199,REDACTED PERSONAL DATA
Sandwell Metropolitan Borough Council,http://www.sandwell.gov.uk/info/200202/performance_and_spending/1079/payments_over_500,11-Jan-2022,Childrens Services,REDACTED PERSONAL DATA,Childrens Services,727.27,External Contract Hire,2122P10_CR00200,REDACTED PERSONAL DATA
Sandwell Metropolitan Borough Council,http://www.sandwell.gov.uk/info/200202/performance_and_spending/1079/payments_over_500,11-Jan-2022,Childrens Services,REDACTED PERSONAL DATA,Childrens Services,545.45,External Contract Hire,2122P10_CR00201,REDACTED PERSONAL DATA
Sandwell Metropolitan Borough Council,http://www.sandwell.gov.uk/info/200202/performance_and_spending/1079/payments_over_500,11-Jan-2022,Childrens Services,REDACTED PERSONAL DATA,Childrens Services,545.45,External Contract Hire,2122P10_CR00202,REDACTED PERSONAL DATA
Sandwell Metropolitan Borough Council,http://www.sandwell.gov.uk/info/200202/performance_and_spending/1079/payments_over_500,05-Jan-2022,Childrens Services,REDACTED PERSONAL DATA,Childrens Services,955.80,External Contract Hire,2122P10_CR00203,REDACTED PERSONAL DATA
Sandwell Metropolitan Borough Council,http://www.sandwell.gov.uk/info/200202/performance_and_spending/1079/payments_over_500,11-Jan-2022,Childrens Services,REDACTED PERSONAL DATA,Childrens Services,545.45,External Contract Hire,2122P10_CR00204,REDACTED PERSONAL DATA
Sandwell Metropolitan Borough Council,http://www.sandwell.gov.uk/info/200202/performance_and_spending/1079/payments_over_500,11-Jan-2022,Childrens Services,REDACTED PERSONAL DATA,Childrens Services,545.45,External Contract Hire,2122P10_CR00205,REDACTED PERSONAL DATA
Sandwell Metropolitan Borough Council,http://www.sandwell.gov.uk/info/200202/performance_and_spending/1079/payments_over_500,11-Jan-2022,Childrens Services,REDACTED PERSONAL DATA,Childrens Services,545.45,External Contract Hire,2122P10_CR00206,REDACTED PERSONAL DATA
Sandwell Metropolitan Borough Council,http://www.sandwell.gov.uk/info/200202/performance_and_spending/1079/payments_over_500,11-Jan-2022,Childrens Services,REDACTED PERSONAL DATA,Childrens Services,545.45,External Contract Hire,2122P10_CR00207,REDACTED PERSONAL DATA
Sandwell Metropolitan Borough Council,http://www.sandwell.gov.uk/info/200202/performance_and_spending/1079/payments_over_500,11-Jan-2022,Childrens Services,REDACTED PERSONAL DATA,Childrens Services,727.27,External Contract Hire,2122P10_CR00208,REDACTED PERSONAL DATA
Sandwell Metropolitan Borough Council,http://www.sandwell.gov.uk/info/200202/performance_and_spending/1079/payments_over_500,11-Jan-2022,Childrens Services,REDACTED PERSONAL DATA,Childrens Services,727.27,External Contract Hire,2122P10_CR00209,REDACTED PERSONAL DATA
Sandwell Metropolitan Borough Council,http://www.sandwell.gov.uk/info/200202/performance_and_spending/1079/payments_over_500,11-Jan-2022,Childrens Services,REDACTED PERSONAL DATA,Childrens Services,727.27,External Contract Hire,2122P10_CR00210,REDACTED PERSONAL DATA
Sandwell Metropolitan Borough Council,http://www.sandwell.gov.uk/info/200202/performance_and_spending/1079/payments_over_500,11-Jan-2022,Childrens Services,REDACTED PERSONAL DATA,Childrens Services,545.45,External Contract Hire,2122P10_CR00211,REDACTED PERSONAL DATA
Sandwell Metropolitan Borough Council,http://www.sandwell.gov.uk/info/200202/performance_and_spending/1079/payments_over_500,11-Jan-2022,Childrens Services,REDACTED PERSONAL DATA,Childrens Services,727.27,External Contract Hire,2122P10_CR00212,REDACTED PERSONAL DATA
Sandwell Metropolitan Borough Council,http://www.sandwell.gov.uk/info/200202/performance_and_spending/1079/payments_over_500,11-Jan-2022,Childrens Services,REDACTED PERSONAL DATA,Childrens Services,545.45,External Contract Hire,2122P10_CR00213,REDACTED PERSONAL DATA
Sandwell Metropolitan Borough Council,http://www.sandwell.gov.uk/info/200202/performance_and_spending/1079/payments_over_500,11-Jan-2022,Childrens Services,REDACTED PERSONAL DATA,Childrens Services,727.27,External Contract Hire,2122P10_CR00214,REDACTED PERSONAL DATA
Sandwell Metropolitan Borough Council,http://www.sandwell.gov.uk/info/200202/performance_and_spending/1079/payments_over_500,11-Jan-2022,Childrens Services,REDACTED PERSONAL DATA,Childrens Services,727.27,External Contract Hire,2122P10_CR00215,REDACTED PERSONAL DATA
Sandwell Metropolitan Borough Council,http://www.sandwell.gov.uk/info/200202/performance_and_spending/1079/payments_over_500,14-Jan-2022,Childrens Services,REDACTED PERSONAL DATA,Childrens Services,510.12,External Contract Hire,2122P10_CR00216,REDACTED PERSONAL DATA
Sandwell Metropolitan Borough Council,http://www.sandwell.gov.uk/info/200202/performance_and_spending/1079/payments_over_500,11-Jan-2022,Childrens Services,REDACTED PERSONAL DATA,Childrens Services,545.45,External Contract Hire,2122P10_CR00217,REDACTED PERSONAL DATA
Sandwell Metropolitan Borough Council,http://www.sandwell.gov.uk/info/200202/performance_and_spending/1079/payments_over_500,11-Jan-2022,Childrens Services,REDACTED PERSONAL DATA,Childrens Services,727.27,External Contract Hire,2122P10_CR00218,REDACTED PERSONAL DATA
Sandwell Metropolitan Borough Council,http://www.sandwell.gov.uk/info/200202/performance_and_spending/1079/payments_over_500,11-Jan-2022,Childrens Services,REDACTED PERSONAL DATA,Childrens Services,545.45,External Contract Hire,2122P10_CR00219,REDACTED PERSONAL DATA
Sandwell Metropolitan Borough Council,http://www.sandwell.gov.uk/info/200202/performance_and_spending/1079/payments_over_500,11-Jan-2022,Childrens Services,REDACTED PERSONAL DATA,Childrens Services,727.27,External Contract Hire,2122P10_CR00220,REDACTED PERSONAL DATA
Sandwell Metropolitan Borough Council,http://www.sandwell.gov.uk/info/200202/performance_and_spending/1079/payments_over_500,05-Jan-2022,Childrens Services,COMMUNITY TRANSPORT,Childrens Services,6125.00,Grant Payments,2122P10_CR00221,01447963
Sandwell Metropolitan Borough Council,http://www.sandwell.gov.uk/info/200202/performance_and_spending/1079/payments_over_500,26-Jan-2022,Childrens Services Capital,INTERCLASS PLC,Childrens Services Capital,64941.49,"CIP - New Construction,Conversion, Enhancement & Reno",2122P10_CR00222,77001959
Sandwell Metropolitan Borough Council,http://www.sandwell.gov.uk/info/200202/performance_and_spending/1079/payments_over_500,01-Jan-2022,Childrens Services Capital,SWANMAC LTD,Childrens Services Capital,500.00,"CIP - New Construction,Conversion, Enhancement & Reno",2122P10_CR00223,150411
Sandwell Metropolitan Borough Council,http://www.sandwell.gov.uk/info/200202/performance_and_spending/1079/payments_over_500,01-Jan-2022,Childrens Services Capital,WCL UK LTD T/A EVEYTHING ICT,Childrens Services Capital,22954.82,CIP - ICT,2122P10_CR00224,152498
Sandwell Metropolitan Borough Council,http://www.sandwell.gov.uk/info/200202/performance_and_spending/1079/payments_over_500,09-Jan-2022,Childrens Services Capital,WCL UK LTD T/A EVEYTHING ICT,Childrens Services Capital,3828.84,CIP - ICT,2122P10_CR00225,152498
Sandwell Metropolitan Borough Council,http://www.sandwell.gov.uk/info/200202/performance_and_spending/1079/payments_over_500,21-Jan-2022,Childrens Services Capital,WSM ENGINEERING FACILITIES LTD,Childrens Services Capital,627.00,"CIP - New Construction,Conversion, Enhancement & Reno",2122P10_CR00226,151265
Sandwell Metropolitan Borough Council,http://www.sandwell.gov.uk/info/200202/performance_and_spending/1079/payments_over_500,11-Jan-2022,Corporate Management,WEST MIDLANDS COMBINED AUTHORITY,Corporate Management,893800.00,Externally Purchased Professional Services ,2122P10_CR00227,126646
Sandwell Metropolitan Borough Council,http://www.sandwell.gov.uk/info/200202/performance_and_spending/1079/payments_over_500,12-Jan-2022,Housing & Communities,AUTO RETRIM,Neighbourhoods,765.00,Fire Service Workshops,2122P10_CR00228,138926
Sandwell Metropolitan Borough Council,http://www.sandwell.gov.uk/info/200202/performance_and_spending/1079/payments_over_500,13-Jan-2022,Housing & Communities,BA BUSH & SON LTD,Neighbourhoods,559.50,Tyres,2122P10_CR00229,159771
Sandwell Metropolitan Borough Council,http://www.sandwell.gov.uk/info/200202/performance_and_spending/1079/payments_over_500,01-Jan-2022,Housing & Communities,BICKFORD TRUCK HIRE LTD,Neighbourhoods,890.00,Vehicle Hiring Charges,2122P10_CR00230,126698
Sandwell Metropolitan Borough Council,http://www.sandwell.gov.uk/info/200202/performance_and_spending/1079/payments_over_500,10-Jan-2022,Housing & Communities,COOPER MOBILE SERVICES LTD,Neighbourhoods,5785.01,Fire Service Workshops,2122P10_CR00231,01304378
Sandwell Metropolitan Borough Council,http://www.sandwell.gov.uk/info/200202/performance_and_spending/1079/payments_over_500,01-Jan-2022,Housing & Communities,DAWSONGROUP VANS,Neighbourhoods,528.55,Vehicle Hiring Charges,2122P10_CR00232,151498
Sandwell Metropolitan Borough Council,http://www.sandwell.gov.uk/info/200202/performance_and_spending/1079/payments_over_500,01-Jan-2022,Housing & Communities,DAWSONGROUP VANS,Neighbourhoods,528.55,Vehicle Hiring Charges,2122P10_CR00233,151498
Sandwell Metropolitan Borough Council,http://www.sandwell.gov.uk/info/200202/performance_and_spending/1079/payments_over_500,01-Jan-2022,Housing & Communities,DAWSONGROUP VANS,Neighbourhoods,627.08,Vehicle Hiring Charges,2122P10_CR00234,151498
Sandwell Metropolitan Borough Council,http://www.sandwell.gov.uk/info/200202/performance_and_spending/1079/payments_over_500,18-Jan-2022,Housing & Communities,DENNIS EAGLE LTD,Neighbourhoods,571.70,Fire Service Workshops,2122P10_CR00235,01004865
Sandwell Metropolitan Borough Council,http://www.sandwell.gov.uk/info/200202/performance_and_spending/1079/payments_over_500,05-Jan-2022,Housing & Communities,DENNIS EAGLE LTD,Neighbourhoods,593.86,Fire Service Workshops,2122P10_CR00236,01004865
Sandwell Metropolitan Borough Council,http://www.sandwell.gov.uk/info/200202/performance_and_spending/1079/payments_over_500,01-Jan-2022,Housing & Communities,FUCHS LUBRICANTS (UK) LTD,Neighbourhoods,889.47,Fire Service Workshops,2122P10_CR00237,130133
Sandwell Metropolitan Borough Council,http://www.sandwell.gov.uk/info/200202/performance_and_spending/1079/payments_over_500,01-Jan-2022,Housing & Communities,FUCHS LUBRICANTS (UK) LTD,Neighbourhoods,773.86,Fire Service Workshops,2122P10_CR00238,130133
Sandwell Metropolitan Borough Council,http://www.sandwell.gov.uk/info/200202/performance_and_spending/1079/payments_over_500,01-Jan-2022,Housing & Communities,HADLEYS STEAM CLEANING LTD,Neighbourhoods,643.00,Repairs & Maintenance,2122P10_CR00239,132536
Sandwell Metropolitan Borough Council,http://www.sandwell.gov.uk/info/200202/performance_and_spending/1079/payments_over_500,04-Jan-2022,Housing & Communities,HARTSHORNE MOTOR SERVICES LTD                                   01,Neighbourhoods,842.10,Fire Service Workshops,2122P10_CR00240,01508668
Sandwell Metropolitan Borough Council,http://www.sandwell.gov.uk/info/200202/performance_and_spending/1079/payments_over_500,01-Jan-2022,Housing & Communities,MARSHALL PEUGEOT PETERBOROUGH,Neighbourhoods,20807.80,Licences & Test Fees,2122P10_CR00241,147845
Sandwell Metropolitan Borough Council,http://www.sandwell.gov.uk/info/200202/performance_and_spending/1079/payments_over_500,01-Jan-2022,Housing & Communities,MARSHALL PEUGEOT PETERBOROUGH,Neighbourhoods,33317.80,Licences & Test Fees,2122P10_CR00242,147845
Sandwell Metropolitan Borough Council,http://www.sandwell.gov.uk/info/200202/performance_and_spending/1079/payments_over_500,14-Jan-2022,Housing & Communities,MARSHALL PEUGEOT PETERBOROUGH,Neighbourhoods,22804.50,Licences & Test Fees,2122P10_CR00243,147845
Sandwell Metropolitan Borough Council,http://www.sandwell.gov.uk/info/200202/performance_and_spending/1079/payments_over_500,01-Jan-2022,Housing & Communities,MIDLAND TRUCK & VAN LTD,Neighbourhoods,505.40,Fire Service Workshops,2122P10_CR00244,128784
Sandwell Metropolitan Borough Council,http://www.sandwell.gov.uk/info/200202/performance_and_spending/1079/payments_over_500,01-Jan-2022,Housing & Communities,MOTUS COMMERCIALS HALESOWEN,Neighbourhoods,1209.98,Fire Service Workshops,2122P10_CR00245,142253
Sandwell Metropolitan Borough Council,http://www.sandwell.gov.uk/info/200202/performance_and_spending/1079/payments_over_500,01-Jan-2022,Housing & Communities,MOTUS COMMERCIALS HALESOWEN,Neighbourhoods,1563.85,Fire Service Workshops,2122P10_CR00246,142253
Sandwell Metropolitan Borough Council,http://www.sandwell.gov.uk/info/200202/performance_and_spending/1079/payments_over_500,01-Jan-2022,Housing & Communities,NATIONWIDE PLATFORMS LTD,Neighbourhoods,758.55,Vehicle Hiring Charges,2122P10_CR00247,82015
Sandwell Metropolitan Borough Council,http://www.sandwell.gov.uk/info/200202/performance_and_spending/1079/payments_over_500,17-Jan-2022,Housing & Communities,NICOL TRANSMISSIONS UK LTD,Neighbourhoods,565.00,Fire Service Workshops,2122P10_CR00248,15941
Sandwell Metropolitan Borough Council,http://www.sandwell.gov.uk/info/200202/performance_and_spending/1079/payments_over_500,01-Jan-2022,Housing & Communities,NORTHGATE VEHICLE HIRE (WEST MIDLANDS) LTD,Neighbourhoods,531.03,Vehicle Hiring Charges,2122P10_CR00249,01057676
Sandwell Metropolitan Borough Council,http://www.sandwell.gov.uk/info/200202/performance_and_spending/1079/payments_over_500,11-Jan-2022,Housing & Communities,OAKLEYS LTD,Neighbourhoods,657.98,Repairs & Maintenance,2122P10_CR00250,01598115
Sandwell Metropolitan Borough Council,http://www.sandwell.gov.uk/info/200202/performance_and_spending/1079/payments_over_500,13-Jan-2022,Housing & Communities,OAKLEYS LTD,Neighbourhoods,523.77,Repairs & Maintenance,2122P10_CR00251,01598115
Sandwell Metropolitan Borough Council,http://www.sandwell.gov.uk/info/200202/performance_and_spending/1079/payments_over_500,09-Jan-2022,Housing & Communities,PHS BESAFE,Neighbourhoods,1054.83,Laundry,2122P10_CR00252,124613
Sandwell Metropolitan Borough Council,http://www.sandwell.gov.uk/info/200202/performance_and_spending/1079/payments_over_500,11-Jan-2022,Housing & Communities,PUGH'S PLANT HIRE,Neighbourhoods,600.00,Vehicle Hiring Charges,2122P10_CR00253,147204
Sandwell Metropolitan Borough Council,http://www.sandwell.gov.uk/info/200202/performance_and_spending/1079/payments_over_500,20-Jan-2022,Housing & Communities,ROBINS & DAY PARTS WEST MIDLANDS,Neighbourhoods,641.30,Fire Service Workshops,2122P10_CR00254,118812
Sandwell Metropolitan Borough Council,http://www.sandwell.gov.uk/info/200202/performance_and_spending/1079/payments_over_500,14-Jan-2022,Housing & Communities,ROBINS & DAY PARTS WEST MIDLANDS,Neighbourhoods,603.35,Fire Service Workshops,2122P10_CR00255,118812
Sandwell Metropolitan Borough Council,http://www.sandwell.gov.uk/info/200202/performance_and_spending/1079/payments_over_500,13-Jan-2022,Housing & Communities,RYGOR COMMERCIALS LTD,Neighbourhoods,509.62,Fire Service Workshops,2122P10_CR00256,3345
Sandwell Metropolitan Borough Council,http://www.sandwell.gov.uk/info/200202/performance_and_spending/1079/payments_over_500,10-Jan-2022,Housing & Communities,SIMON TULLETT MACHINERY COMPANY LIMITED,Neighbourhoods,611.14,Repairs & Maintenance,2122P10_CR00257,109117
Sandwell Metropolitan Borough Council,http://www.sandwell.gov.uk/info/200202/performance_and_spending/1079/payments_over_500,12-Jan-2022,Housing & Communities,SIMON TULLETT MACHINERY COMPANY LIMITED,Neighbourhoods,760.61,Repairs & Maintenance,2122P10_CR00258,109117
Sandwell Metropolitan Borough Council,http://www.sandwell.gov.uk/info/200202/performance_and_spending/1079/payments_over_500,01-Jan-2022,Housing & Communities,TEL SERVICES,Neighbourhoods,1169.35,Fire Service Workshops,2122P10_CR00259,84262
Sandwell Metropolitan Borough Council,http://www.sandwell.gov.uk/info/200202/performance_and_spending/1079/payments_over_500,24-Jan-2022,Housing & Communities,TERBERG MATEC UK LTD,Neighbourhoods,1715.61,Fire Service Workshops,2122P10_CR00260,21235
Sandwell Metropolitan Borough Council,http://www.sandwell.gov.uk/info/200202/performance_and_spending/1079/payments_over_500,01-Jan-2022,Housing & Communities,TH WHITE LIMITED,Neighbourhoods,1714.38,Fire Service Workshops,2122P10_CR00261,01774713
Sandwell Metropolitan Borough Council,http://www.sandwell.gov.uk/info/200202/performance_and_spending/1079/payments_over_500,05-Jan-2022,Housing & Communities,TH WHITE LIMITED,Neighbourhoods,746.57,Repairs & Maintenance,2122P10_CR00262,01774713
Sandwell Metropolitan Borough Council,http://www.sandwell.gov.uk/info/200202/performance_and_spending/1079/payments_over_500,12-Jan-2022,Housing & Communities,TH WHITE LIMITED,Neighbourhoods,583.51,Repairs & Maintenance,2122P10_CR00263,01774713
Sandwell Metropolitan Borough Council,http://www.sandwell.gov.uk/info/200202/performance_and_spending/1079/payments_over_500,20-Jan-2022,Housing & Communities,ACORN ENVIRONMENTAL MANAGEMENT GROUP LIMITED,Neighbourhoods,2100.00,Externally Purchased Professional Services ,2122P10_CR00264,24254
Sandwell Metropolitan Borough Council,http://www.sandwell.gov.uk/info/200202/performance_and_spending/1079/payments_over_500,01-Jan-2022,Housing & Communities,ALLSTAR BUSINESS SOLUTIONS LIMITED,Neighbourhoods,622.96,Fuel ,2122P10_CR00265,104057
Sandwell Metropolitan Borough Council,http://www.sandwell.gov.uk/info/200202/performance_and_spending/1079/payments_over_500,20-Jan-2022,Housing & Communities,AMCORP GROUP LTD,Neighbourhoods,2585.00,Equipment & Furniture ,2122P10_CR00266,155889
Sandwell Metropolitan Borough Council,http://www.sandwell.gov.uk/info/200202/performance_and_spending/1079/payments_over_500,14-Jan-2022,Housing & Communities,ANAND PATEL,Neighbourhoods,2436.66,Building Maintenance & Improvements,2122P10_CR00267,114832
Sandwell Metropolitan Borough Council,http://www.sandwell.gov.uk/info/200202/performance_and_spending/1079/payments_over_500,01-Jan-2022,Housing & Communities,ASHTON FIRE LTD,Housing & Communities,9375.00,CIP - Op Equipment,2122P10_CR00268,141798
Sandwell Metropolitan Borough Council,http://www.sandwell.gov.uk/info/200202/performance_and_spending/1079/payments_over_500,01-Jan-2022,Housing & Communities,ASHTON FIRE LTD,Housing & Communities,9375.00,CIP - Op Equipment,2122P10_CR00269,141798
Sandwell Metropolitan Borough Council,http://www.sandwell.gov.uk/info/200202/performance_and_spending/1079/payments_over_500,26-Jan-2022,Housing & Communities,BAKER ROSS LIMITED,Neighbourhoods,609.50,"Printing, Stationery & General Office Expenses",2122P10_CR00270,01269861
Sandwell Metropolitan Borough Council,http://www.sandwell.gov.uk/info/200202/performance_and_spending/1079/payments_over_500,01-Jan-2022,Housing & Communities,BANNER GROUP LTD,Neighbourhoods,538.40,Equipment & Furniture ,2122P10_CR00271,134506
Sandwell Metropolitan Borough Council,http://www.sandwell.gov.uk/info/200202/performance_and_spending/1079/payments_over_500,11-Jan-2022,Housing & Communities,BEECHWOOD TREES & LANDSCAPE LTD,Neighbourhoods,1260.00,Externally Purchased Professional Services ,2122P10_CR00272,93287
Sandwell Metropolitan Borough Council,http://www.sandwell.gov.uk/info/200202/performance_and_spending/1079/payments_over_500,10-Jan-2022,Housing & Communities,BEECHWOOD TREES & LANDSCAPE LTD,Neighbourhoods,855.00,Externally Purchased Professional Services ,2122P10_CR00273,93287
Sandwell Metropolitan Borough Council,http://www.sandwell.gov.uk/info/200202/performance_and_spending/1079/payments_over_500,13-Jan-2022,Housing & Communities,BEECHWOOD TREES & LANDSCAPE LTD,Neighbourhoods,1550.00,Externally Purchased Professional Services ,2122P10_CR00274,93287
Sandwell Metropolitan Borough Council,http://www.sandwell.gov.uk/info/200202/performance_and_spending/1079/payments_over_500,19-Jan-2022,Housing & Communities,BEECHWOOD TREES & LANDSCAPE LTD,Neighbourhoods,852.00,Externally Purchased Professional Services ,2122P10_CR00275,93287
Sandwell Metropolitan Borough Council,http://www.sandwell.gov.uk/info/200202/performance_and_spending/1079/payments_over_500,19-Jan-2022,Housing & Communities,BEECHWOOD TREES & LANDSCAPE LTD,Neighbourhoods,2830.00,Externally Purchased Professional Services ,2122P10_CR00276,93287
Sandwell Metropolitan Borough Council,http://www.sandwell.gov.uk/info/200202/performance_and_spending/1079/payments_over_500,19-Jan-2022,Housing & Communities,BEECHWOOD TREES & LANDSCAPE LTD,Neighbourhoods,1690.00,Externally Purchased Professional Services ,2122P10_CR00277,93287
Sandwell Metropolitan Borough Council,http://www.sandwell.gov.uk/info/200202/performance_and_spending/1079/payments_over_500,19-Jan-2022,Housing & Communities,BEECHWOOD TREES & LANDSCAPE LTD,Neighbourhoods,1040.00,Externally Purchased Professional Services ,2122P10_CR00278,93287
Sandwell Metropolitan Borough Council,http://www.sandwell.gov.uk/info/200202/performance_and_spending/1079/payments_over_500,07-Jan-2022,Housing & Communities,BELVOIR ERDINGTON,Neighbourhoods,625.00,Rents,2122P10_CR00279,160401
Sandwell Metropolitan Borough Council,http://www.sandwell.gov.uk/info/200202/performance_and_spending/1079/payments_over_500,01-Jan-2022,Housing & Communities,BLACK COUNTRY WOMEN'S AID,Neighbourhoods,10000.00,Grant Payments,2122P10_CR00280,127401
Sandwell Metropolitan Borough Council,http://www.sandwell.gov.uk/info/200202/performance_and_spending/1079/payments_over_500,10-Jan-2022,Housing & Communities,CERTAS ENERGY LIMITED,Neighbourhoods,3361.20,Fuel ,2122P10_CR00281,80421
Sandwell Metropolitan Borough Council,http://www.sandwell.gov.uk/info/200202/performance_and_spending/1079/payments_over_500,14-Jan-2022,Housing & Communities,CERTAS ENERGY LIMITED,Neighbourhoods,10356.30,Fuel ,2122P10_CR00282,80421
Sandwell Metropolitan Borough Council,http://www.sandwell.gov.uk/info/200202/performance_and_spending/1079/payments_over_500,14-Jan-2022,Housing & Communities,CERTAS ENERGY LIMITED,Neighbourhoods,2741.06,Fuel ,2122P10_CR00283,80421
Sandwell Metropolitan Borough Council,http://www.sandwell.gov.uk/info/200202/performance_and_spending/1079/payments_over_500,01-Jan-2022,Housing & Communities,CERTAS ENERGY LIMITED,Neighbourhoods,1090.72,Oil,2122P10_CR00284,80421
Sandwell Metropolitan Borough Council,http://www.sandwell.gov.uk/info/200202/performance_and_spending/1079/payments_over_500,01-Jan-2022,Housing & Communities,CERTAS ENERGY LIMITED,Neighbourhoods,546.30,Oil,2122P10_CR00285,80421
Sandwell Metropolitan Borough Council,http://www.sandwell.gov.uk/info/200202/performance_and_spending/1079/payments_over_500,01-Jan-2022,Housing & Communities,CERTAS ENERGY LIMITED,Neighbourhoods,1092.60,Oil,2122P10_CR00286,80421
Sandwell Metropolitan Borough Council,http://www.sandwell.gov.uk/info/200202/performance_and_spending/1079/payments_over_500,07-Jan-2022,Housing & Communities,CERTAS ENERGY LIMITED,Neighbourhoods,804.48,Oil,2122P10_CR00287,80421
Sandwell Metropolitan Borough Council,http://www.sandwell.gov.uk/info/200202/performance_and_spending/1079/payments_over_500,01-Jan-2022,Housing & Communities,CERTAS ENERGY LIMITED,Neighbourhoods,1365.56,Oil,2122P10_CR00288,80421
Sandwell Metropolitan Borough Council,http://www.sandwell.gov.uk/info/200202/performance_and_spending/1079/payments_over_500,01-Jan-2022,Housing & Communities,CERTAS ENERGY LIMITED,Neighbourhoods,1449.81,Oil,2122P10_CR00289,80421
Sandwell Metropolitan Borough Council,http://www.sandwell.gov.uk/info/200202/performance_and_spending/1079/payments_over_500,01-Jan-2022,Housing & Communities,CITRON HYGIENE UK LTD,Neighbourhoods,1389.45,Materials & Consumables,2122P10_CR00290,140849
Sandwell Metropolitan Borough Council,http://www.sandwell.gov.uk/info/200202/performance_and_spending/1079/payments_over_500,01-Jan-2022,Housing & Communities,CODE RED ENTERTAINMENT,Neighbourhoods,2400.00,Civic Events,2122P10_CR00291,158272
Sandwell Metropolitan Borough Council,http://www.sandwell.gov.uk/info/200202/performance_and_spending/1079/payments_over_500,14-Jan-2022,Housing & Communities,COLEMAN & CO LTD,Neighbourhoods,722.15,Building Maintenance & Improvements,2122P10_CR00292,77004032
Sandwell Metropolitan Borough Council,http://www.sandwell.gov.uk/info/200202/performance_and_spending/1079/payments_over_500,01-Jan-2022,Housing & Communities,COMMUNITY SKILLS AND KNOWLEDGE NETWORK CIC,Neighbourhoods,8910.00,Grant Payments,2122P10_CR00293,133735
Sandwell Metropolitan Borough Council,http://www.sandwell.gov.uk/info/200202/performance_and_spending/1079/payments_over_500,01-Jan-2022,Housing & Communities,CONFETTI MAGIC LIMITED,Neighbourhoods,1900.00,Civic Events,2122P10_CR00294,127611
Sandwell Metropolitan Borough Council,http://www.sandwell.gov.uk/info/200202/performance_and_spending/1079/payments_over_500,06-Jan-2022,Housing & Communities,CREATIVE ACADEMIES LTD,Neighbourhoods,6990.00,Grant Payments,2122P10_CR00295,116825
Sandwell Metropolitan Borough Council,http://www.sandwell.gov.uk/info/200202/performance_and_spending/1079/payments_over_500,05-Jan-2022,Housing & Communities,CREATIVE ACTIVE LIVES CIC,Neighbourhoods,7200.00,Civic Events,2122P10_CR00296,138641
Sandwell Metropolitan Borough Council,http://www.sandwell.gov.uk/info/200202/performance_and_spending/1079/payments_over_500,26-Jan-2022,Housing & Communities,DECORON WALLPAPERS LTD,Neighbourhoods,691.20,Building Maintenance & Improvements,2122P10_CR00297,01004615
Sandwell Metropolitan Borough Council,http://www.sandwell.gov.uk/info/200202/performance_and_spending/1079/payments_over_500,04-Jan-2022,Housing & Communities,DILECTRICS LTD,Neighbourhoods,3150.00,Equipment & Furniture ,2122P10_CR00298,156110
Sandwell Metropolitan Borough Council,http://www.sandwell.gov.uk/info/200202/performance_and_spending/1079/payments_over_500,04-Jan-2022,Housing & Communities,DILECTRICS LTD,Neighbourhoods,1300.00,Equipment & Furniture ,2122P10_CR00299,156110
Sandwell Metropolitan Borough Council,http://www.sandwell.gov.uk/info/200202/performance_and_spending/1079/payments_over_500,04-Jan-2022,Housing & Communities,DILECTRICS LTD,Neighbourhoods,1240.00,Equipment & Furniture ,2122P10_CR00300,156110
Sandwell Metropolitan Borough Council,http://www.sandwell.gov.uk/info/200202/performance_and_spending/1079/payments_over_500,01-Jan-2022,Housing & Communities,DLM DISTRIBUTION LIMITED,Neighbourhoods,611.00,"Printing, Stationery & General Office Expenses",2122P10_CR00301,77838
Sandwell Metropolitan Borough Council,http://www.sandwell.gov.uk/info/200202/performance_and_spending/1079/payments_over_500,11-Jan-2022,Housing & Communities,DLM DISTRIBUTION LIMITED,Neighbourhoods,3270.46,"Printing, Stationery & General Office Expenses",2122P10_CR00302,77838
Sandwell Metropolitan Borough Council,http://www.sandwell.gov.uk/info/200202/performance_and_spending/1079/payments_over_500,31-Jan-2022,Housing & Communities,FISHER GERMAN LLP,Neighbourhoods,1750.00,Consultancy,2122P10_CR00303,69334
Sandwell Metropolitan Borough Council,http://www.sandwell.gov.uk/info/200202/performance_and_spending/1079/payments_over_500,07-Jan-2022,Housing & Communities,G & B KENDALL & SONS,Neighbourhoods,4200.00,Materials & Consumables,2122P10_CR00304,01422772
Sandwell Metropolitan Borough Council,http://www.sandwell.gov.uk/info/200202/performance_and_spending/1079/payments_over_500,01-Jan-2022,Housing & Communities,GIFTWORKS,Neighbourhoods,3517.20,Materials & Consumables,2122P10_CR00305,126079
Sandwell Metropolitan Borough Council,http://www.sandwell.gov.uk/info/200202/performance_and_spending/1079/payments_over_500,01-Jan-2022,Housing & Communities,GILANI ENTERPRISES LIMITED,Neighbourhoods,622.22,Rents,2122P10_CR00306,2696
Sandwell Metropolitan Borough Council,http://www.sandwell.gov.uk/info/200202/performance_and_spending/1079/payments_over_500,01-Jan-2022,Housing & Communities,GILANI ENTERPRISES LIMITED,Neighbourhoods,782.22,Rents,2122P10_CR00307,2696
Sandwell Metropolitan Borough Council,http://www.sandwell.gov.uk/info/200202/performance_and_spending/1079/payments_over_500,01-Jan-2022,Housing & Communities,GILANI ENTERPRISES LIMITED,Neighbourhoods,2311.11,Rents,2122P10_CR00308,2696
Sandwell Metropolitan Borough Council,http://www.sandwell.gov.uk/info/200202/performance_and_spending/1079/payments_over_500,01-Jan-2022,Housing & Communities,GILANI ENTERPRISES LIMITED,Neighbourhoods,5333.33,Rents,2122P10_CR00309,2696
Sandwell Metropolitan Borough Council,http://www.sandwell.gov.uk/info/200202/performance_and_spending/1079/payments_over_500,01-Jan-2022,Housing & Communities,GILANI ENTERPRISES LIMITED,Neighbourhoods,6720.00,Rents,2122P10_CR00310,2696
Sandwell Metropolitan Borough Council,http://www.sandwell.gov.uk/info/200202/performance_and_spending/1079/payments_over_500,01-Jan-2022,Housing & Communities,GILANI ENTERPRISES LIMITED,Neighbourhoods,3413.33,Rents,2122P10_CR00311,2696
Sandwell Metropolitan Borough Council,http://www.sandwell.gov.uk/info/200202/performance_and_spending/1079/payments_over_500,01-Jan-2022,Housing & Communities,GILANI ENTERPRISES LIMITED,Neighbourhoods,4800.00,Rents,2122P10_CR00312,2696
Sandwell Metropolitan Borough Council,http://www.sandwell.gov.uk/info/200202/performance_and_spending/1079/payments_over_500,01-Jan-2022,Housing & Communities,GILANI ENTERPRISES LIMITED,Neighbourhoods,2952.38,Rents,2122P10_CR00313,2696
Sandwell Metropolitan Borough Council,http://www.sandwell.gov.uk/info/200202/performance_and_spending/1079/payments_over_500,01-Jan-2022,Housing & Communities,GILANI ENTERPRISES LIMITED,Neighbourhoods,809.52,Rents,2122P10_CR00314,2696
Sandwell Metropolitan Borough Council,http://www.sandwell.gov.uk/info/200202/performance_and_spending/1079/payments_over_500,01-Jan-2022,Housing & Communities,GILANI ENTERPRISES LIMITED,Neighbourhoods,2752.38,Rents,2122P10_CR00315,2696
Sandwell Metropolitan Borough Council,http://www.sandwell.gov.uk/info/200202/performance_and_spending/1079/payments_over_500,01-Jan-2022,Housing & Communities,GILANI ENTERPRISES LIMITED,Neighbourhoods,533.33,Rents,2122P10_CR00316,2696
Sandwell Metropolitan Borough Council,http://www.sandwell.gov.uk/info/200202/performance_and_spending/1079/payments_over_500,01-Jan-2022,Housing & Communities,GILANI ENTERPRISES LIMITED,Neighbourhoods,746.67,Rents,2122P10_CR00317,2696
Sandwell Metropolitan Borough Council,http://www.sandwell.gov.uk/info/200202/performance_and_spending/1079/payments_over_500,01-Jan-2022,Housing & Communities,GILANI ENTERPRISES LIMITED,Neighbourhoods,2476.19,Rents,2122P10_CR00318,2696
Sandwell Metropolitan Borough Council,http://www.sandwell.gov.uk/info/200202/performance_and_spending/1079/payments_over_500,01-Jan-2022,Housing & Communities,GILANI ENTERPRISES LIMITED,Neighbourhoods,571.43,Rents,2122P10_CR00319,2696
Sandwell Metropolitan Borough Council,http://www.sandwell.gov.uk/info/200202/performance_and_spending/1079/payments_over_500,01-Jan-2022,Housing & Communities,GILANI ENTERPRISES LIMITED,Neighbourhoods,1386.67,Rents,2122P10_CR00320,2696
Sandwell Metropolitan Borough Council,http://www.sandwell.gov.uk/info/200202/performance_and_spending/1079/payments_over_500,11-Jan-2022,Housing & Communities,GRESHAM OFFICE FURNITURE LTD,Neighbourhoods,1920.00,Equipment & Furniture ,2122P10_CR00321,93465
Sandwell Metropolitan Borough Council,http://www.sandwell.gov.uk/info/200202/performance_and_spending/1079/payments_over_500,01-Jan-2022,Housing & Communities,HAYSTOUN CONSTRUCTION LTD,Housing & Communities,3106.35,CIP - Infrastructure,2122P10_CR00322,11849
Sandwell Metropolitan Borough Council,http://www.sandwell.gov.uk/info/200202/performance_and_spending/1079/payments_over_500,11-Jan-2022,Housing & Communities,HAYSTOUN CONSTRUCTION LTD,Neighbourhoods,6000.00,Equipment & Furniture ,2122P10_CR00323,11849
Sandwell Metropolitan Borough Council,http://www.sandwell.gov.uk/info/200202/performance_and_spending/1079/payments_over_500,19-Jan-2022,Housing & Communities,HAYSTOUN CONSTRUCTION LTD,Neighbourhoods,1952.50,Equipment & Furniture ,2122P10_CR00324,11849
Sandwell Metropolitan Borough Council,http://www.sandwell.gov.uk/info/200202/performance_and_spending/1079/payments_over_500,01-Jan-2022,Housing & Communities,HAYSTOUN CONSTRUCTION LTD,Neighbourhoods,5000.00,Operational Services ,2122P10_CR00325,11849
Sandwell Metropolitan Borough Council,http://www.sandwell.gov.uk/info/200202/performance_and_spending/1079/payments_over_500,13-Jan-2022,Housing & Communities,HAYSTOUN CONSTRUCTION LTD,Neighbourhoods,6769.83,Operational Services ,2122P10_CR00326,11849
Sandwell Metropolitan Borough Council,http://www.sandwell.gov.uk/info/200202/performance_and_spending/1079/payments_over_500,26-Jan-2022,Housing & Communities,HAYSTOUN CONSTRUCTION LTD,Neighbourhoods,2712.65,Operational Services ,2122P10_CR00327,11849
Sandwell Metropolitan Borough Council,http://www.sandwell.gov.uk/info/200202/performance_and_spending/1079/payments_over_500,01-Jan-2022,Housing & Communities,HELP2RENT LTD,Neighbourhoods,2296.00,Rents,2122P10_CR00328,155180
Sandwell Metropolitan Borough Council,http://www.sandwell.gov.uk/info/200202/performance_and_spending/1079/payments_over_500,01-Jan-2022,Housing & Communities,HILL INTERIOR CONTRACTS LTD,Neighbourhoods,598.00,Rents,2122P10_CR00329,17158
Sandwell Metropolitan Borough Council,http://www.sandwell.gov.uk/info/200202/performance_and_spending/1079/payments_over_500,01-Jan-2022,Housing & Communities,HOARE LEA LLP,Neighbourhoods,3550.00,Consultancy,2122P10_CR00330,137607
Sandwell Metropolitan Borough Council,http://www.sandwell.gov.uk/info/200202/performance_and_spending/1079/payments_over_500,01-Jan-2022,Housing & Communities,HOUSING SYSTEMS LTD,Neighbourhoods,595.00,Subscriptions,2122P10_CR00331,155593
Sandwell Metropolitan Borough Council,http://www.sandwell.gov.uk/info/200202/performance_and_spending/1079/payments_over_500,15-Jan-2022,Housing & Communities,IAN CASEY,Neighbourhoods,600.00,Civic Events,2122P10_CR00332,93442
Sandwell Metropolitan Borough Council,http://www.sandwell.gov.uk/info/200202/performance_and_spending/1079/payments_over_500,01-Jan-2022,Housing & Communities,ID SECURITY SYSTEMS LIMITED,Neighbourhoods,535.00,Security,2122P10_CR00333,118533
Sandwell Metropolitan Borough Council,http://www.sandwell.gov.uk/info/200202/performance_and_spending/1079/payments_over_500,07-Jan-2022,Housing & Communities,INFAMOUS COMMUNITY ARTS,Neighbourhoods,5300.00,Civic Events,2122P10_CR00334,102940
Sandwell Metropolitan Borough Council,http://www.sandwell.gov.uk/info/200202/performance_and_spending/1079/payments_over_500,01-Jan-2022,Housing & Communities,INSTANT PROMOTION (UK) LTD,Neighbourhoods,3136.00,Equipment & Furniture ,2122P10_CR00335,112209
Sandwell Metropolitan Borough Council,http://www.sandwell.gov.uk/info/200202/performance_and_spending/1079/payments_over_500,19-Jan-2022,Housing & Communities,INTERCLASS PLC,Housing & Communities,204228.20,"CIP - New Construction,Conversion, Enhancement & Reno",2122P10_CR00336,77001959
Sandwell Metropolitan Borough Council,http://www.sandwell.gov.uk/info/200202/performance_and_spending/1079/payments_over_500,01-Jan-2022,Housing & Communities,INVICTA BUSINESS MACHINES LTD,Neighbourhoods,1170.00,ICT ,2122P10_CR00337,142027
Sandwell Metropolitan Borough Council,http://www.sandwell.gov.uk/info/200202/performance_and_spending/1079/payments_over_500,01-Jan-2022,Housing & Communities,INVICTA BUSINESS MACHINES LTD,Neighbourhoods,2797.20,ICT ,2122P10_CR00338,142027
Sandwell Metropolitan Borough Council,http://www.sandwell.gov.uk/info/200202/performance_and_spending/1079/payments_over_500,01-Jan-2022,Housing & Communities,KRUNCH UK,Neighbourhoods,7500.00,Grant Payments,2122P10_CR00339,08588452
Sandwell Metropolitan Borough Council,http://www.sandwell.gov.uk/info/200202/performance_and_spending/1079/payments_over_500,01-Jan-2022,Housing & Communities,KRUNCH UK,Neighbourhoods,3581.75,Grant Payments,2122P10_CR00340,08588452
Sandwell Metropolitan Borough Council,http://www.sandwell.gov.uk/info/200202/performance_and_spending/1079/payments_over_500,12-Jan-2022,Housing & Communities,LAPWING UK LTD,Neighbourhoods,700.00,Protective Clothing & Uniforms,2122P10_CR00341,54666
Sandwell Metropolitan Borough Council,http://www.sandwell.gov.uk/info/200202/performance_and_spending/1079/payments_over_500,04-Jan-2022,Housing & Communities,LOUDMOUTH EDUCATION & TRAINING LIMITED,Neighbourhoods,2060.00,Grant Payments,2122P10_CR00342,7182
Sandwell Metropolitan Borough Council,http://www.sandwell.gov.uk/info/200202/performance_and_spending/1079/payments_over_500,01-Jan-2022,Housing & Communities,MACE LTD,Neighbourhoods,9060.00,Consultancy,2122P10_CR00343,30882
Sandwell Metropolitan Borough Council,http://www.sandwell.gov.uk/info/200202/performance_and_spending/1079/payments_over_500,01-Jan-2022,Housing & Communities,MANOR ABBEY FOODS LTD,Neighbourhoods,2164.82,Catering Provisions,2122P10_CR00344,63063
Sandwell Metropolitan Borough Council,http://www.sandwell.gov.uk/info/200202/performance_and_spending/1079/payments_over_500,01-Jan-2022,Housing & Communities,MANOR ABBEY FOODS LTD,Neighbourhoods,759.03,Catering Provisions,2122P10_CR00345,63063
Sandwell Metropolitan Borough Council,http://www.sandwell.gov.uk/info/200202/performance_and_spending/1079/payments_over_500,01-Jan-2022,Housing & Communities,MANOR ABBEY FOODS LTD,Neighbourhoods,1280.59,Catering Provisions,2122P10_CR00346,63063
Sandwell Metropolitan Borough Council,http://www.sandwell.gov.uk/info/200202/performance_and_spending/1079/payments_over_500,01-Jan-2022,Housing & Communities,MICHAELS MENTORS,Neighbourhoods,1000.00,Grant Payments,2122P10_CR00347,156994
Sandwell Metropolitan Borough Council,http://www.sandwell.gov.uk/info/200202/performance_and_spending/1079/payments_over_500,01-Jan-2022,Housing & Communities,MIDLAND CHILLED FOODS LIMITED,Neighbourhoods,1423.27,Catering Provisions,2122P10_CR00348,106924
Sandwell Metropolitan Borough Council,http://www.sandwell.gov.uk/info/200202/performance_and_spending/1079/payments_over_500,01-Jan-2022,Housing & Communities,MIDLAND CHILLED FOODS LIMITED,Neighbourhoods,709.81,Catering Provisions,2122P10_CR00349,106924
Sandwell Metropolitan Borough Council,http://www.sandwell.gov.uk/info/200202/performance_and_spending/1079/payments_over_500,01-Jan-2022,Housing & Communities,MIDLAND FORESTRY LIMITED,Neighbourhoods,3980.00,Externally Purchased Professional Services ,2122P10_CR00350,45812
Sandwell Metropolitan Borough Council,http://www.sandwell.gov.uk/info/200202/performance_and_spending/1079/payments_over_500,01-Jan-2022,Housing & Communities,MIDLAND FORESTRY LIMITED,Neighbourhoods,704.00,Externally Purchased Professional Services ,2122P10_CR00351,45812
Sandwell Metropolitan Borough Council,http://www.sandwell.gov.uk/info/200202/performance_and_spending/1079/payments_over_500,01-Jan-2022,Housing & Communities,MIDLAND FORESTRY LIMITED,Neighbourhoods,616.00,Externally Purchased Professional Services ,2122P10_CR00352,45812
Sandwell Metropolitan Borough Council,http://www.sandwell.gov.uk/info/200202/performance_and_spending/1079/payments_over_500,01-Jan-2022,Housing & Communities,MIDLAND FORESTRY LIMITED,Neighbourhoods,528.00,Externally Purchased Professional Services ,2122P10_CR00353,45812
Sandwell Metropolitan Borough Council,http://www.sandwell.gov.uk/info/200202/performance_and_spending/1079/payments_over_500,01-Jan-2022,Housing & Communities,MIDLAND FORESTRY LIMITED,Neighbourhoods,616.00,Externally Purchased Professional Services ,2122P10_CR00354,45812
Sandwell Metropolitan Borough Council,http://www.sandwell.gov.uk/info/200202/performance_and_spending/1079/payments_over_500,01-Jan-2022,Housing & Communities,MIDLAND FORESTRY LIMITED,Neighbourhoods,528.00,Externally Purchased Professional Services ,2122P10_CR00355,45812
Sandwell Metropolitan Borough Council,http://www.sandwell.gov.uk/info/200202/performance_and_spending/1079/payments_over_500,04-Jan-2022,Housing & Communities,MIDLAND FORESTRY LIMITED,Neighbourhoods,684.00,Externally Purchased Professional Services ,2122P10_CR00356,45812
Sandwell Metropolitan Borough Council,http://www.sandwell.gov.uk/info/200202/performance_and_spending/1079/payments_over_500,05-Jan-2022,Housing & Communities,MIDLAND FORESTRY LIMITED,Neighbourhoods,704.00,Externally Purchased Professional Services ,2122P10_CR00357,45812
Sandwell Metropolitan Borough Council,http://www.sandwell.gov.uk/info/200202/performance_and_spending/1079/payments_over_500,05-Jan-2022,Housing & Communities,MIDLAND FORESTRY LIMITED,Neighbourhoods,616.00,Externally Purchased Professional Services ,2122P10_CR00358,45812
Sandwell Metropolitan Borough Council,http://www.sandwell.gov.uk/info/200202/performance_and_spending/1079/payments_over_500,07-Jan-2022,Housing & Communities,MIDLAND FORESTRY LIMITED,Neighbourhoods,980.00,Externally Purchased Professional Services ,2122P10_CR00359,45812
Sandwell Metropolitan Borough Council,http://www.sandwell.gov.uk/info/200202/performance_and_spending/1079/payments_over_500,07-Jan-2022,Housing & Communities,MIDLAND FORESTRY LIMITED,Neighbourhoods,798.00,Externally Purchased Professional Services ,2122P10_CR00360,45812
Sandwell Metropolitan Borough Council,http://www.sandwell.gov.uk/info/200202/performance_and_spending/1079/payments_over_500,07-Jan-2022,Housing & Communities,MIDLAND FORESTRY LIMITED,Neighbourhoods,682.00,Externally Purchased Professional Services ,2122P10_CR00361,45812
Sandwell Metropolitan Borough Council,http://www.sandwell.gov.uk/info/200202/performance_and_spending/1079/payments_over_500,13-Jan-2022,Housing & Communities,MIDLAND FORESTRY LIMITED,Neighbourhoods,2980.00,Externally Purchased Professional Services ,2122P10_CR00362,45812
Sandwell Metropolitan Borough Council,http://www.sandwell.gov.uk/info/200202/performance_and_spending/1079/payments_over_500,12-Jan-2022,Housing & Communities,MIDLAND FORESTRY LIMITED,Neighbourhoods,6820.00,Externally Purchased Professional Services ,2122P10_CR00363,45812
Sandwell Metropolitan Borough Council,http://www.sandwell.gov.uk/info/200202/performance_and_spending/1079/payments_over_500,14-Jan-2022,Housing & Communities,MIDLAND FORESTRY LIMITED,Neighbourhoods,3280.00,Externally Purchased Professional Services ,2122P10_CR00364,45812
Sandwell Metropolitan Borough Council,http://www.sandwell.gov.uk/info/200202/performance_and_spending/1079/payments_over_500,18-Jan-2022,Housing & Communities,MIDLAND FORESTRY LIMITED,Neighbourhoods,1056.00,Externally Purchased Professional Services ,2122P10_CR00365,45812
Sandwell Metropolitan Borough Council,http://www.sandwell.gov.uk/info/200202/performance_and_spending/1079/payments_over_500,18-Jan-2022,Housing & Communities,MIDLAND FORESTRY LIMITED,Neighbourhoods,700.00,Externally Purchased Professional Services ,2122P10_CR00366,45812
Sandwell Metropolitan Borough Council,http://www.sandwell.gov.uk/info/200202/performance_and_spending/1079/payments_over_500,18-Jan-2022,Housing & Communities,MIDLAND FORESTRY LIMITED,Neighbourhoods,4660.00,Externally Purchased Professional Services ,2122P10_CR00367,45812
Sandwell Metropolitan Borough Council,http://www.sandwell.gov.uk/info/200202/performance_and_spending/1079/payments_over_500,01-Jan-2022,Housing & Communities,MIDLAND NEWS ASSOCIATION LTD,Neighbourhoods,1135.00,Advertising & Publicity,2122P10_CR00368,01038645
Sandwell Metropolitan Borough Council,http://www.sandwell.gov.uk/info/200202/performance_and_spending/1079/payments_over_500,13-Jan-2022,Housing & Communities,P CASEY LTD,Housing & Communities,140077.91,"CIP - New Construction,Conversion, Enhancement & Reno",2122P10_CR00369,149276
Sandwell Metropolitan Borough Council,http://www.sandwell.gov.uk/info/200202/performance_and_spending/1079/payments_over_500,01-Jan-2022,Housing & Communities,PB TRAINING SERVICES,Neighbourhoods,895.00,Externally Purchased Professional Services ,2122P10_CR00370,01750377
Sandwell Metropolitan Borough Council,http://www.sandwell.gov.uk/info/200202/performance_and_spending/1079/payments_over_500,11-Jan-2022,Housing & Communities,PENNON WATER SERVICES T/A SOURCE FOR BUSINESS,Neighbourhoods,902.99,Water Services,2122P10_CR00371,131726
Sandwell Metropolitan Borough Council,http://www.sandwell.gov.uk/info/200202/performance_and_spending/1079/payments_over_500,01-Jan-2022,Housing & Communities,PENNON WATER SERVICES T/A SOURCE FOR BUSINESS,Neighbourhoods,783.24,Water Services,2122P10_CR00372,131726
Sandwell Metropolitan Borough Council,http://www.sandwell.gov.uk/info/200202/performance_and_spending/1079/payments_over_500,01-Jan-2022,Housing & Communities,PENNON WATER SERVICES T/A SOURCE FOR BUSINESS,Neighbourhoods,1829.63,Water Services,2122P10_CR00373,131726
Sandwell Metropolitan Borough Council,http://www.sandwell.gov.uk/info/200202/performance_and_spending/1079/payments_over_500,19-Jan-2022,Housing & Communities,PENNON WATER SERVICES T/A SOURCE FOR BUSINESS,Neighbourhoods,601.99,Water Services,2122P10_CR00374,131726
Sandwell Metropolitan Borough Council,http://www.sandwell.gov.uk/info/200202/performance_and_spending/1079/payments_over_500,13-Jan-2022,Housing & Communities,PHOENIX SOFTWARE LTD,Neighbourhoods,824.85,ICT ,2122P10_CR00375,01504689
Sandwell Metropolitan Borough Council,http://www.sandwell.gov.uk/info/200202/performance_and_spending/1079/payments_over_500,01-Jan-2022,Housing & Communities,PLACES FOR PEOPLE LEISURE MANAGEMENT LTD,Neighbourhoods,238595.00,SH Payments,2122P10_CR00376,118956
Sandwell Metropolitan Borough Council,http://www.sandwell.gov.uk/info/200202/performance_and_spending/1079/payments_over_500,01-Jan-2022,Housing & Communities,PROFILE SECURITY SERVICES LTD,Neighbourhoods,2108.30,Security,2122P10_CR00377,131253
Sandwell Metropolitan Borough Council,http://www.sandwell.gov.uk/info/200202/performance_and_spending/1079/payments_over_500,01-Jan-2022,Housing & Communities,PROFILE SECURITY SERVICES LTD,Neighbourhoods,964.18,Security,2122P10_CR00378,131253
Sandwell Metropolitan Borough Council,http://www.sandwell.gov.uk/info/200202/performance_and_spending/1079/payments_over_500,01-Jan-2022,Housing & Communities,PROFILE SECURITY SERVICES LTD,Neighbourhoods,10999.80,Security,2122P10_CR00379,131253
Sandwell Metropolitan Borough Council,http://www.sandwell.gov.uk/info/200202/performance_and_spending/1079/payments_over_500,10-Jan-2022,Housing & Communities,PROMARCO PROMOTIONS LTD,Neighbourhoods,2295.00,Civic Events,2122P10_CR00380,01577242
Sandwell Metropolitan Borough Council,http://www.sandwell.gov.uk/info/200202/performance_and_spending/1079/payments_over_500,11-Jan-2022,Housing & Communities,PROMARCO PROMOTIONS LTD,Neighbourhoods,1720.00,Civic Events,2122P10_CR00381,01577242
Sandwell Metropolitan Borough Council,http://www.sandwell.gov.uk/info/200202/performance_and_spending/1079/payments_over_500,11-Jan-2022,Housing & Communities,Q TECHNICAL SERVICES UK LTD,Neighbourhoods,510.00,Security,2122P10_CR00382,135645
Sandwell Metropolitan Borough Council,http://www.sandwell.gov.uk/info/200202/performance_and_spending/1079/payments_over_500,01-Jan-2022,Housing & Communities,RAYTON ELECTRICAL WHOLESALE LTD,Neighbourhoods,3166.67,Equipment & Furniture ,2122P10_CR00383,156814
Sandwell Metropolitan Borough Council,http://www.sandwell.gov.uk/info/200202/performance_and_spending/1079/payments_over_500,24-Jan-2022,Housing & Communities,REDACTED PERSONAL DATA,Neighbourhoods,1500.00,Tenants Expenses,2122P10_CR00384,REDACTED PERSONAL DATA
Sandwell Metropolitan Borough Council,http://www.sandwell.gov.uk/info/200202/performance_and_spending/1079/payments_over_500,01-Jan-2022,Housing & Communities,REDACTED PERSONAL DATA T/A PARTY STOP,Neighbourhoods,2905.00,Civic Events,2122P10_CR00385,REDACTED PERSONAL DATA
Sandwell Metropolitan Borough Council,http://www.sandwell.gov.uk/info/200202/performance_and_spending/1079/payments_over_500,05-Jan-2022,Housing & Communities,REDACTED PERSONAL DATAT/A IAN LIVIE AND HIS WORLD WIDE DISCO,Neighbourhoods,3865.00,Civic Events,2122P10_CR00386,REDACTED PERSONAL DATA
Sandwell Metropolitan Borough Council,http://www.sandwell.gov.uk/info/200202/performance_and_spending/1079/payments_over_500,19-Jan-2022,Housing & Communities,REDACTED PERSONAL DATAT/A IAN LIVIE AND HIS WORLD WIDE DISCO,Neighbourhoods,4000.00,Civic Events,2122P10_CR00387,REDACTED PERSONAL DATA
Sandwell Metropolitan Borough Council,http://www.sandwell.gov.uk/info/200202/performance_and_spending/1079/payments_over_500,01-Jan-2022,Housing & Communities,RENAISSANCE CREATIVE DESIGN & PRINT LTD,Neighbourhoods,1460.00,"Printing, Stationery & General Office Expenses",2122P10_CR00388,97376
Sandwell Metropolitan Borough Council,http://www.sandwell.gov.uk/info/200202/performance_and_spending/1079/payments_over_500,01-Jan-2022,Housing & Communities,REWIND UK EDUCATION AND INTERVENTIONS LTD,Neighbourhoods,1800.00,Grant Payments,2122P10_CR00389,110507
Sandwell Metropolitan Borough Council,http://www.sandwell.gov.uk/info/200202/performance_and_spending/1079/payments_over_500,01-Jan-2022,Housing & Communities,RIDDELL TPS LIMITED,Neighbourhoods,18528.08,Rents,2122P10_CR00390,132427
Sandwell Metropolitan Borough Council,http://www.sandwell.gov.uk/info/200202/performance_and_spending/1079/payments_over_500,01-Jan-2022,Housing & Communities,SANDWELL LEISURE TRUST,Neighbourhoods,2966.50,SH Payments,2122P10_CR00391,23305
Sandwell Metropolitan Borough Council,http://www.sandwell.gov.uk/info/200202/performance_and_spending/1079/payments_over_500,01-Jan-2022,Housing & Communities,SANDWELL LIFT PROJECT COMPANY (NO 3) LIMITED,Neighbourhoods,111833.08,SH Payments,2122P10_CR00392,113986
Sandwell Metropolitan Borough Council,http://www.sandwell.gov.uk/info/200202/performance_and_spending/1079/payments_over_500,01-Jan-2022,Housing & Communities,SANDWELL LIFT PROJECT COMPANY (NO 3) LIMITED,Neighbourhoods,4819.49,Water Services,2122P10_CR00393,113986
Sandwell Metropolitan Borough Council,http://www.sandwell.gov.uk/info/200202/performance_and_spending/1079/payments_over_500,07-Jan-2022,Housing & Communities,SERCO LIMITED,Neighbourhoods,14214.53,Waste Disposal Charges,2122P10_CR00394,53771
Sandwell Metropolitan Borough Council,http://www.sandwell.gov.uk/info/200202/performance_and_spending/1079/payments_over_500,07-Jan-2022,Housing & Communities,SERCO LIMITED,Neighbourhoods,514788.28,Waste Disposal Charges,2122P10_CR00395,53771
Sandwell Metropolitan Borough Council,http://www.sandwell.gov.uk/info/200202/performance_and_spending/1079/payments_over_500,07-Jan-2022,Housing & Communities,SERCO LIMITED,Neighbourhoods,1516278.79,Waste Disposal Charges,2122P10_CR00396,53771
Sandwell Metropolitan Borough Council,http://www.sandwell.gov.uk/info/200202/performance_and_spending/1079/payments_over_500,07-Jan-2022,Housing & Communities,SERCO LIMITED,Neighbourhoods,1517755.34,Waste Disposal Charges,2122P10_CR00397,53771
Sandwell Metropolitan Borough Council,http://www.sandwell.gov.uk/info/200202/performance_and_spending/1079/payments_over_500,05-Jan-2022,Housing & Communities,SERCO LIMITED,Neighbourhoods,728.37,Waste Disposal Charges,2122P10_CR00398,53771
Sandwell Metropolitan Borough Council,http://www.sandwell.gov.uk/info/200202/performance_and_spending/1079/payments_over_500,11-Jan-2022,Housing & Communities,SHARP,Neighbourhoods,2201.22,Rents,2122P10_CR00399,08280972
Sandwell Metropolitan Borough Council,http://www.sandwell.gov.uk/info/200202/performance_and_spending/1079/payments_over_500,11-Jan-2022,Housing & Communities,SHARP,Neighbourhoods,2201.22,Rents,2122P10_CR00400,08280972
Sandwell Metropolitan Borough Council,http://www.sandwell.gov.uk/info/200202/performance_and_spending/1079/payments_over_500,01-Jan-2022,Housing & Communities,SHARP,Neighbourhoods,2201.22,Rents,2122P10_CR00401,08280972
Sandwell Metropolitan Borough Council,http://www.sandwell.gov.uk/info/200202/performance_and_spending/1079/payments_over_500,01-Jan-2022,Housing & Communities,SHARP,Neighbourhoods,2201.22,Rents,2122P10_CR00402,08280972
Sandwell Metropolitan Borough Council,http://www.sandwell.gov.uk/info/200202/performance_and_spending/1079/payments_over_500,01-Jan-2022,Housing & Communities,SHERRIFFS FOODS LIMITED T/A FOSTERS,Neighbourhoods,2380.48,Materials & Consumables,2122P10_CR00403,139776
Sandwell Metropolitan Borough Council,http://www.sandwell.gov.uk/info/200202/performance_and_spending/1079/payments_over_500,06-Jan-2022,Housing & Communities,SPECIALISED CANVAS SERVICES LTD T/A FLAGMAKERS,Neighbourhoods,730.23,Equipment & Furniture ,2122P10_CR00404,151458
Sandwell Metropolitan Borough Council,http://www.sandwell.gov.uk/info/200202/performance_and_spending/1079/payments_over_500,07-Jan-2022,Housing & Communities,STAFFORDSHIRE COUNTY COUNCIL,Neighbourhoods,386789.36,Waste Disposal Charges,2122P10_CR00405,01124861
Sandwell Metropolitan Borough Council,http://www.sandwell.gov.uk/info/200202/performance_and_spending/1079/payments_over_500,07-Jan-2022,Housing & Communities,STAFFORDSHIRE COUNTY COUNCIL,Neighbourhoods,386789.36,Waste Disposal Charges,2122P10_CR00406,01124861
Sandwell Metropolitan Borough Council,http://www.sandwell.gov.uk/info/200202/performance_and_spending/1079/payments_over_500,01-Jan-2022,Housing & Communities,SUEZ RECYLING AND RECOVERY HOLDINGS UK LTD,Neighbourhoods,2088.09,Waste Disposal Charges,2122P10_CR00407,129939
Sandwell Metropolitan Borough Council,http://www.sandwell.gov.uk/info/200202/performance_and_spending/1079/payments_over_500,01-Jan-2022,Housing & Communities,TOTALENERGIES GAS & POWER LTD,Housing & Communities,3374.70,"CIP - New Construction,Conversion, Enhancement & Reno",2122P10_CR00408,107605
Sandwell Metropolitan Borough Council,http://www.sandwell.gov.uk/info/200202/performance_and_spending/1079/payments_over_500,01-Jan-2022,Housing & Communities,TOTALENERGIES GAS & POWER LTD,Housing & Communities,7968.48,"CIP - New Construction,Conversion, Enhancement & Reno",2122P10_CR00409,107605
Sandwell Metropolitan Borough Council,http://www.sandwell.gov.uk/info/200202/performance_and_spending/1079/payments_over_500,08-Jan-2022,Housing & Communities,TOTALENERGIES GAS & POWER LTD,Neighbourhoods,1214.45,Electricity,2122P10_CR00410,107605
Sandwell Metropolitan Borough Council,http://www.sandwell.gov.uk/info/200202/performance_and_spending/1079/payments_over_500,11-Jan-2022,Housing & Communities,TOTALENERGIES GAS & POWER LTD,Neighbourhoods,665.96,Gas,2122P10_CR00411,107605
Sandwell Metropolitan Borough Council,http://www.sandwell.gov.uk/info/200202/performance_and_spending/1079/payments_over_500,10-Jan-2022,Housing & Communities,TSA SPORTS AND EDUCATION CIC,Neighbourhoods,5817.75,Grant Payments,2122P10_CR00412,139844
Sandwell Metropolitan Borough Council,http://www.sandwell.gov.uk/info/200202/performance_and_spending/1079/payments_over_500,01-Jan-2022,Housing & Communities,VALUE HOTELS LIMITED,Neighbourhoods,525.00,Rents,2122P10_CR00413,146264
Sandwell Metropolitan Borough Council,http://www.sandwell.gov.uk/info/200202/performance_and_spending/1079/payments_over_500,10-Jan-2022,Housing & Communities,VALUE HOTELS LIMITED,Neighbourhoods,3150.00,Rents,2122P10_CR00414,146264
Sandwell Metropolitan Borough Council,http://www.sandwell.gov.uk/info/200202/performance_and_spending/1079/payments_over_500,01-Jan-2022,Housing & Communities,WATER PLUS SELECT LIMITED,Neighbourhoods,676.80,Water Services,2122P10_CR00415,129644
Sandwell Metropolitan Borough Council,http://www.sandwell.gov.uk/info/200202/performance_and_spending/1079/payments_over_500,11-Jan-2022,Housing & Communities,WATER PLUS SELECT LIMITED,Neighbourhoods,1048.32,Water Services,2122P10_CR00416,129644
Sandwell Metropolitan Borough Council,http://www.sandwell.gov.uk/info/200202/performance_and_spending/1079/payments_over_500,01-Jan-2022,Housing & Communities,WATER PLUS SELECT LIMITED,Neighbourhoods,1157.33,Water Services,2122P10_CR00417,129644
Sandwell Metropolitan Borough Council,http://www.sandwell.gov.uk/info/200202/performance_and_spending/1079/payments_over_500,05-Jan-2022,Housing & Communities,WATER PLUS SELECT LIMITED,Neighbourhoods,770.14,Water Services,2122P10_CR00418,129644
Sandwell Metropolitan Borough Council,http://www.sandwell.gov.uk/info/200202/performance_and_spending/1079/payments_over_500,01-Jan-2022,Housing & Communities,WATER PLUS SELECT LIMITED,Neighbourhoods,2714.19,Water Services,2122P10_CR00419,129644
Sandwell Metropolitan Borough Council,http://www.sandwell.gov.uk/info/200202/performance_and_spending/1079/payments_over_500,01-Jan-2022,Housing & Communities,WATER PLUS SELECT LIMITED,Neighbourhoods,709.55,Water Services,2122P10_CR00420,129644
Sandwell Metropolitan Borough Council,http://www.sandwell.gov.uk/info/200202/performance_and_spending/1079/payments_over_500,13-Jan-2022,Housing & Communities,WATES CONSTRUCTION LTD                                 01,Housing & Communities,796072.18,"CIP - New Construction,Conversion, Enhancement & Reno",2122P10_CR00421,77000882
Sandwell Metropolitan Borough Council,http://www.sandwell.gov.uk/info/200202/performance_and_spending/1079/payments_over_500,24-Jan-2022,Housing & Communities,WATES CONSTRUCTION LTD                                 01,Housing & Communities,649636.27,"CIP - New Construction,Conversion, Enhancement & Reno",2122P10_CR00422,77000882
Sandwell Metropolitan Borough Council,http://www.sandwell.gov.uk/info/200202/performance_and_spending/1079/payments_over_500,01-Jan-2022,Housing & Communities,WEST MIDLANDS HOUSING SOLUTIONS LTD,Neighbourhoods,2900.00,Equipment & Furniture ,2122P10_CR00423,150318
Sandwell Metropolitan Borough Council,http://www.sandwell.gov.uk/info/200202/performance_and_spending/1079/payments_over_500,01-Jan-2022,Housing & Communities,WEST MIDLANDS HOUSING SOLUTIONS LTD,Neighbourhoods,3105.00,Equipment & Furniture ,2122P10_CR00424,150318
Sandwell Metropolitan Borough Council,http://www.sandwell.gov.uk/info/200202/performance_and_spending/1079/payments_over_500,01-Jan-2022,Housing & Communities,WEST MIDLANDS HOUSING SOLUTIONS LTD,Neighbourhoods,1200.00,Equipment & Furniture ,2122P10_CR00425,150318
Sandwell Metropolitan Borough Council,http://www.sandwell.gov.uk/info/200202/performance_and_spending/1079/payments_over_500,01-Jan-2022,Housing & Communities,WEST MIDLANDS HOUSING SOLUTIONS LTD,Neighbourhoods,1240.00,Equipment & Furniture ,2122P10_CR00426,150318
Sandwell Metropolitan Borough Council,http://www.sandwell.gov.uk/info/200202/performance_and_spending/1079/payments_over_500,01-Jan-2022,Housing & Communities,WEST MIDLANDS HOUSING SOLUTIONS LTD,Neighbourhoods,1440.00,Equipment & Furniture ,2122P10_CR00427,150318
Sandwell Metropolitan Borough Council,http://www.sandwell.gov.uk/info/200202/performance_and_spending/1079/payments_over_500,01-Jan-2022,Housing & Communities,WEST MIDLANDS POLICE,Neighbourhoods,2496.00,Grant Payments,2122P10_CR00428,01517827
Sandwell Metropolitan Borough Council,http://www.sandwell.gov.uk/info/200202/performance_and_spending/1079/payments_over_500,01-Jan-2022,Housing & Communities,WILLOW BLINDS LTD,Neighbourhoods,1540.00,Equipment & Furniture ,2122P10_CR00429,01486246
Sandwell Metropolitan Borough Council,http://www.sandwell.gov.uk/info/200202/performance_and_spending/1079/payments_over_500,01-Jan-2022,Housing & Communities,WYNNSTAY (AGRICULTURAL SUPPLIES) LIMITED,Neighbourhoods,1405.78,Materials & Consumables,2122P10_CR00430,121165
Sandwell Metropolitan Borough Council,http://www.sandwell.gov.uk/info/200202/performance_and_spending/1079/payments_over_500,01-Jan-2022,Housing & Communities,WYNNSTAY (AGRICULTURAL SUPPLIES) LIMITED,Neighbourhoods,2276.07,Materials & Consumables,2122P10_CR00431,121165
Sandwell Metropolitan Borough Council,http://www.sandwell.gov.uk/info/200202/performance_and_spending/1079/payments_over_500,01-Jan-2022,Housing & Communities,WYNNSTAY (AGRICULTURAL SUPPLIES) LIMITED,Neighbourhoods,546.02,Materials & Consumables,2122P10_CR00432,121165
Sandwell Metropolitan Borough Council,http://www.sandwell.gov.uk/info/200202/performance_and_spending/1079/payments_over_500,11-Jan-2022,Housing & Communities,WYNNSTAY (AGRICULTURAL SUPPLIES) LIMITED,Neighbourhoods,1509.22,Materials & Consumables,2122P10_CR00433,121165
Sandwell Metropolitan Borough Council,http://www.sandwell.gov.uk/info/200202/performance_and_spending/1079/payments_over_500,07-Jan-2022,Housing & Communities,XEROX FINANCE LTD,Neighbourhoods,2402.82,Equipment & Furniture ,2122P10_CR00434,2269
Sandwell Metropolitan Borough Council,http://www.sandwell.gov.uk/info/200202/performance_and_spending/1079/payments_over_500,13-Jan-2022,Housing & Communities,E.ON ENERGY SOLUTIONS LIMITED,Neighbourhoods,1387.09,CIP - Infrastructure,2122P10_CR00435,104959
Sandwell Metropolitan Borough Council,http://www.sandwell.gov.uk/info/200202/performance_and_spending/1079/payments_over_500,13-Jan-2022,Housing & Communities,STOURBRIDGE PAVING COMPANY LIMITED,Neighbourhoods,21391.35,CIP - Infrastructure,2122P10_CR00436,77003641
Sandwell Metropolitan Borough Council,http://www.sandwell.gov.uk/info/200202/performance_and_spending/1079/payments_over_500,01-Jan-2022,Housing & Communities,TELENT TECHNOLOGY SERVICES LIMITED,Neighbourhoods,2790.22,Operational Services ,2122P10_CR00437,26331
Sandwell Metropolitan Borough Council,http://www.sandwell.gov.uk/info/200202/performance_and_spending/1079/payments_over_500,27-Jan-2022,Housing & Communities,A E HUDSON,Neighbourhoods,500.00,Rents,2122P10_CR00438,107342
Sandwell Metropolitan Borough Council,http://www.sandwell.gov.uk/info/200202/performance_and_spending/1079/payments_over_500,27-Jan-2022,Housing & Communities,A PRASHER,Neighbourhoods,500.00,Rents,2122P10_CR00439,112229
Sandwell Metropolitan Borough Council,http://www.sandwell.gov.uk/info/200202/performance_and_spending/1079/payments_over_500,27-Jan-2022,Housing & Communities,BALIJIT KAUR,Neighbourhoods,500.00,Rents,2122P10_CR00440,101860
Sandwell Metropolitan Borough Council,http://www.sandwell.gov.uk/info/200202/performance_and_spending/1079/payments_over_500,27-Jan-2022,Housing & Communities,BALJIT PUREWAL,Neighbourhoods,550.00,Rents,2122P10_CR00441,113595
Sandwell Metropolitan Borough Council,http://www.sandwell.gov.uk/info/200202/performance_and_spending/1079/payments_over_500,27-Jan-2022,Housing & Communities,BALWANT SINGH,Neighbourhoods,500.00,Rents,2122P10_CR00442,84433
Sandwell Metropolitan Borough Council,http://www.sandwell.gov.uk/info/200202/performance_and_spending/1079/payments_over_500,27-Jan-2022,Housing & Communities,C M REID,Neighbourhoods,500.00,Rents,2122P10_CR00443,106129
Sandwell Metropolitan Borough Council,http://www.sandwell.gov.uk/info/200202/performance_and_spending/1079/payments_over_500,27-Jan-2022,Housing & Communities,CHRISTINE ANN CADDEN,Neighbourhoods,500.00,Rents,2122P10_CR00444,112728
Sandwell Metropolitan Borough Council,http://www.sandwell.gov.uk/info/200202/performance_and_spending/1079/payments_over_500,27-Jan-2022,Housing & Communities,ELEANOR MCGEE,Neighbourhoods,550.00,Rents,2122P10_CR00445,109162
Sandwell Metropolitan Borough Council,http://www.sandwell.gov.uk/info/200202/performance_and_spending/1079/payments_over_500,27-Jan-2022,Housing & Communities,J S GARCHA,Neighbourhoods,500.00,Rents,2122P10_CR00446,106491
Sandwell Metropolitan Borough Council,http://www.sandwell.gov.uk/info/200202/performance_and_spending/1079/payments_over_500,27-Jan-2022,Housing & Communities,K PAREKH,Neighbourhoods,550.00,Rents,2122P10_CR00447,43404
Sandwell Metropolitan Borough Council,http://www.sandwell.gov.uk/info/200202/performance_and_spending/1079/payments_over_500,27-Jan-2022,Housing & Communities,LORNA DOUGLAS,Neighbourhoods,550.00,Rents,2122P10_CR00448,124809
Sandwell Metropolitan Borough Council,http://www.sandwell.gov.uk/info/200202/performance_and_spending/1079/payments_over_500,27-Jan-2022,Housing & Communities,MOHANAD ABBAS,Neighbourhoods,550.00,Rents,2122P10_CR00449,108876
Sandwell Metropolitan Borough Council,http://www.sandwell.gov.uk/info/200202/performance_and_spending/1079/payments_over_500,27-Jan-2022,Housing & Communities,NARINDER SINGH,Neighbourhoods,500.00,Rents,2122P10_CR00450,114091
Sandwell Metropolitan Borough Council,http://www.sandwell.gov.uk/info/200202/performance_and_spending/1079/payments_over_500,27-Jan-2022,Housing & Communities,RINABAHEN PATEL,Neighbourhoods,500.00,Rents,2122P10_CR00451,122295
Sandwell Metropolitan Borough Council,http://www.sandwell.gov.uk/info/200202/performance_and_spending/1079/payments_over_500,27-Jan-2022,Housing & Communities,SAKANDAR SINGH,Neighbourhoods,1000.00,Rents,2122P10_CR00452,117913
Sandwell Metropolitan Borough Council,http://www.sandwell.gov.uk/info/200202/performance_and_spending/1079/payments_over_500,04-Jan-2022,Housing & Communities,MULTISTORY,Neighbourhoods,28541.50,Grant Payments,2122P10_CR00453,6471
Sandwell Metropolitan Borough Council,http://www.sandwell.gov.uk/info/200202/performance_and_spending/1079/payments_over_500,04-Jan-2022,Housing & Communities,REWIND UK EDUCATION AND INTERVENTIONS LTD,Neighbourhoods,6250.00,Grant Payments,2122P10_CR00454,110507
Sandwell Metropolitan Borough Council,http://www.sandwell.gov.uk/info/200202/performance_and_spending/1079/payments_over_500,11-Jan-2022,Housing Revenue Account Capital,AXIS EUROPE PLC ,Housing Revenue Account Capital,2880.00,Deferred Charges/Grant Payments,2122P10_CR00455,64946
Sandwell Metropolitan Borough Council,http://www.sandwell.gov.uk/info/200202/performance_and_spending/1079/payments_over_500,01-Jan-2022,Housing Revenue Account Capital,AXIS EUROPE PLC ,Housing Revenue Account Capital,5059.60,Deferred Charges/Grant Payments,2122P10_CR00456,64946
Sandwell Metropolitan Borough Council,http://www.sandwell.gov.uk/info/200202/performance_and_spending/1079/payments_over_500,07-Jan-2022,Housing Revenue Account Capital,AXIS EUROPE PLC ,Housing Revenue Account Capital,5170.16,Deferred Charges/Grant Payments,2122P10_CR00457,64946
Sandwell Metropolitan Borough Council,http://www.sandwell.gov.uk/info/200202/performance_and_spending/1079/payments_over_500,11-Jan-2022,Housing Revenue Account Capital,AXIS EUROPE PLC ,Housing Revenue Account Capital,5720.23,Deferred Charges/Grant Payments,2122P10_CR00458,64946
Sandwell Metropolitan Borough Council,http://www.sandwell.gov.uk/info/200202/performance_and_spending/1079/payments_over_500,11-Jan-2022,Housing Revenue Account Capital,AXIS EUROPE PLC ,Housing Revenue Account Capital,5933.09,Deferred Charges/Grant Payments,2122P10_CR00459,64946
Sandwell Metropolitan Borough Council,http://www.sandwell.gov.uk/info/200202/performance_and_spending/1079/payments_over_500,01-Jan-2022,Housing Revenue Account Capital,AXIS EUROPE PLC ,Housing Revenue Account Capital,31511.64,Deferred Charges/Grant Payments,2122P10_CR00460,64946
Sandwell Metropolitan Borough Council,http://www.sandwell.gov.uk/info/200202/performance_and_spending/1079/payments_over_500,01-Jan-2022,Housing Revenue Account Capital,AXIS EUROPE PLC ,Housing Revenue Account Capital,56539.25,Deferred Charges/Grant Payments,2122P10_CR00461,64946
Sandwell Metropolitan Borough Council,http://www.sandwell.gov.uk/info/200202/performance_and_spending/1079/payments_over_500,07-Jan-2022,Housing Revenue Account Capital,DOLPHIN LIFTS MIDLANDS LTD,Housing Revenue Account Capital,1360.00,Deferred Charges/Grant Payments,2122P10_CR00462,123852
Sandwell Metropolitan Borough Council,http://www.sandwell.gov.uk/info/200202/performance_and_spending/1079/payments_over_500,07-Jan-2022,Housing Revenue Account Capital,DOLPHIN LIFTS MIDLANDS LTD,Housing Revenue Account Capital,1000.00,Deferred Charges/Grant Payments,2122P10_CR00463,123852
Sandwell Metropolitan Borough Council,http://www.sandwell.gov.uk/info/200202/performance_and_spending/1079/payments_over_500,07-Jan-2022,Housing Revenue Account Capital,DOLPHIN LIFTS MIDLANDS LTD,Housing Revenue Account Capital,1300.00,Deferred Charges/Grant Payments,2122P10_CR00464,123852
Sandwell Metropolitan Borough Council,http://www.sandwell.gov.uk/info/200202/performance_and_spending/1079/payments_over_500,07-Jan-2022,Housing Revenue Account Capital,DOLPHIN LIFTS MIDLANDS LTD,Housing Revenue Account Capital,3495.00,Deferred Charges/Grant Payments,2122P10_CR00465,123852
Sandwell Metropolitan Borough Council,http://www.sandwell.gov.uk/info/200202/performance_and_spending/1079/payments_over_500,11-Jan-2022,Housing Revenue Account Capital,DOLPHIN LIFTS MIDLANDS LTD,Housing Revenue Account Capital,3660.00,Deferred Charges/Grant Payments,2122P10_CR00466,123852
Sandwell Metropolitan Borough Council,http://www.sandwell.gov.uk/info/200202/performance_and_spending/1079/payments_over_500,27-Jan-2022,Housing Revenue Account Capital,HIGGS LLP ,Housing Revenue Account Capital,93613.00,CIP - Acquisition of Land & Existing Buildings,2122P10_CR00467,120965
Sandwell Metropolitan Borough Council,http://www.sandwell.gov.uk/info/200202/performance_and_spending/1079/payments_over_500,26-Jan-2022,Housing Revenue Account Capital,HILL INTERIOR CONTRACTS LTD,Housing Revenue Account Capital,33746.37,"CIP - New Construction,Conversion, Enhancement & Reno",2122P10_CR00468,17158
Sandwell Metropolitan Borough Council,http://www.sandwell.gov.uk/info/200202/performance_and_spending/1079/payments_over_500,19-Jan-2022,Housing Revenue Account Capital,J.HARPER & SONS (LEOMINSTER) LIMITED,Housing Revenue Account Capital,186872.74,"CIP - New Construction,Conversion, Enhancement & Reno",2122P10_CR00469,111814
Sandwell Metropolitan Borough Council,http://www.sandwell.gov.uk/info/200202/performance_and_spending/1079/payments_over_500,01-Jan-2022,Housing Revenue Account Capital,LIFT & ENGINEERING SERVICES LTD,Housing Revenue Account Capital,651.76,"CIP - New Construction,Conversion, Enhancement & Reno",2122P10_CR00470,77003962
Sandwell Metropolitan Borough Council,http://www.sandwell.gov.uk/info/200202/performance_and_spending/1079/payments_over_500,01-Jan-2022,Housing Revenue Account Capital,LOVELL PARTNERSHIPS  LTD,Housing Revenue Account Capital,443499.29,"CIP - New Construction,Conversion, Enhancement & Reno",2122P10_CR00471,77007398
Sandwell Metropolitan Borough Council,http://www.sandwell.gov.uk/info/200202/performance_and_spending/1079/payments_over_500,01-Jan-2022,Housing Revenue Account Capital,LOVELL PARTNERSHIPS  LTD,Housing Revenue Account Capital,71693.02,"CIP - New Construction,Conversion, Enhancement & Reno",2122P10_CR00472,77007398
Sandwell Metropolitan Borough Council,http://www.sandwell.gov.uk/info/200202/performance_and_spending/1079/payments_over_500,01-Jan-2022,Housing Revenue Account Capital,LOVELL PARTNERSHIPS  LTD,Housing Revenue Account Capital,5581.14,"CIP - New Construction,Conversion, Enhancement & Reno",2122P10_CR00473,77007398
Sandwell Metropolitan Borough Council,http://www.sandwell.gov.uk/info/200202/performance_and_spending/1079/payments_over_500,01-Jan-2022,Housing Revenue Account Capital,M & H SURVEY SERVICES LIMITED,Housing Revenue Account Capital,14400.00,"CIP - New Construction,Conversion, Enhancement & Reno",2122P10_CR00474,114657
Sandwell Metropolitan Borough Council,http://www.sandwell.gov.uk/info/200202/performance_and_spending/1079/payments_over_500,01-Jan-2022,Housing Revenue Account Capital,POWRED HEATING COMPONENTS LIMITED,Housing Revenue Account Capital,2662.53,Materials & Consumables,2122P10_CR00475,133978
Sandwell Metropolitan Borough Council,http://www.sandwell.gov.uk/info/200202/performance_and_spending/1079/payments_over_500,01-Jan-2022,Housing Revenue Account Capital,POWRED HEATING COMPONENTS LIMITED,Housing Revenue Account Capital,2735.68,Materials & Consumables,2122P10_CR00476,133978
Sandwell Metropolitan Borough Council,http://www.sandwell.gov.uk/info/200202/performance_and_spending/1079/payments_over_500,19-Jan-2022,Housing Revenue Account Capital,POWRED HEATING COMPONENTS LIMITED,Housing Revenue Account Capital,3181.00,Materials & Consumables,2122P10_CR00477,133978
Sandwell Metropolitan Borough Council,http://www.sandwell.gov.uk/info/200202/performance_and_spending/1079/payments_over_500,07-Jan-2022,Housing Revenue Account Capital,PR PROPERTY MAINTENANCE,Housing Revenue Account Capital,9354.65,Deferred Charges/Grant Payments,2122P10_CR00478,33836
Sandwell Metropolitan Borough Council,http://www.sandwell.gov.uk/info/200202/performance_and_spending/1079/payments_over_500,07-Jan-2022,Housing Revenue Account Capital,PR PROPERTY MAINTENANCE,Housing Revenue Account Capital,6498.49,Deferred Charges/Grant Payments,2122P10_CR00479,33836
Sandwell Metropolitan Borough Council,http://www.sandwell.gov.uk/info/200202/performance_and_spending/1079/payments_over_500,07-Jan-2022,Housing Revenue Account Capital,PR PROPERTY MAINTENANCE,Housing Revenue Account Capital,8026.93,Deferred Charges/Grant Payments,2122P10_CR00480,33836
Sandwell Metropolitan Borough Council,http://www.sandwell.gov.uk/info/200202/performance_and_spending/1079/payments_over_500,01-Jan-2022,Housing Revenue Account Capital,PR PROPERTY MAINTENANCE,Housing Revenue Account Capital,8812.24,Deferred Charges/Grant Payments,2122P10_CR00481,33836
Sandwell Metropolitan Borough Council,http://www.sandwell.gov.uk/info/200202/performance_and_spending/1079/payments_over_500,01-Jan-2022,Housing Revenue Account Capital,RIDGE & PARTNERS LLP,Housing Revenue Account Capital,860.00,CIP - Acquisition of Land & Existing Buildings,2122P10_CR00482,134994
Sandwell Metropolitan Borough Council,http://www.sandwell.gov.uk/info/200202/performance_and_spending/1079/payments_over_500,01-Jan-2022,Housing Revenue Account Capital,SEDDON CONSTRUCTION LIMITED,Housing Revenue Account Capital,470382.00,"CIP - New Construction,Conversion, Enhancement & Reno",2122P10_CR00483,132999
Sandwell Metropolitan Borough Council,http://www.sandwell.gov.uk/info/200202/performance_and_spending/1079/payments_over_500,01-Jan-2022,Housing Revenue Account Capital,SEDDON CONSTRUCTION LIMITED,Housing Revenue Account Capital,239368.42,"CIP - New Construction,Conversion, Enhancement & Reno",2122P10_CR00484,132999
Sandwell Metropolitan Borough Council,http://www.sandwell.gov.uk/info/200202/performance_and_spending/1079/payments_over_500,01-Jan-2022,Housing Revenue Account Capital,SEDDON CONSTRUCTION LIMITED,Housing Revenue Account Capital,126136.16,"CIP - New Construction,Conversion, Enhancement & Reno",2122P10_CR00485,132999
Sandwell Metropolitan Borough Council,http://www.sandwell.gov.uk/info/200202/performance_and_spending/1079/payments_over_500,01-Jan-2022,Housing Revenue Account Capital,SELECT WINDOWS (HOME IMPROVEMENTS) LIMITED,Housing Revenue Account Capital,1087.47,Contract Payments,2122P10_CR00486,42616
Sandwell Metropolitan Borough Council,http://www.sandwell.gov.uk/info/200202/performance_and_spending/1079/payments_over_500,01-Jan-2022,Housing Revenue Account Capital,SELECT WINDOWS (HOME IMPROVEMENTS) LIMITED,Housing Revenue Account Capital,845.59,Contract Payments,2122P10_CR00487,42616
Sandwell Metropolitan Borough Council,http://www.sandwell.gov.uk/info/200202/performance_and_spending/1079/payments_over_500,01-Jan-2022,Housing Revenue Account Capital,SELECT WINDOWS (HOME IMPROVEMENTS) LIMITED,Housing Revenue Account Capital,712.66,Contract Payments,2122P10_CR00488,42616
Sandwell Metropolitan Borough Council,http://www.sandwell.gov.uk/info/200202/performance_and_spending/1079/payments_over_500,01-Jan-2022,Housing Revenue Account Capital,SELECT WINDOWS (HOME IMPROVEMENTS) LIMITED,Housing Revenue Account Capital,507.47,Contract Payments,2122P10_CR00489,42616
Sandwell Metropolitan Borough Council,http://www.sandwell.gov.uk/info/200202/performance_and_spending/1079/payments_over_500,01-Jan-2022,Housing Revenue Account Capital,SELECT WINDOWS (HOME IMPROVEMENTS) LIMITED,Housing Revenue Account Capital,875.92,Contract Payments,2122P10_CR00490,42616
Sandwell Metropolitan Borough Council,http://www.sandwell.gov.uk/info/200202/performance_and_spending/1079/payments_over_500,01-Jan-2022,Housing Revenue Account Capital,SOUND ADVICE ACOUSTICS LTD,Housing Revenue Account Capital,1400.00,"CIP - New Construction,Conversion, Enhancement & Reno",2122P10_CR00491,24362
Sandwell Metropolitan Borough Council,http://www.sandwell.gov.uk/info/200202/performance_and_spending/1079/payments_over_500,19-Jan-2022,Housing Revenue Account Capital,SPELLER METCALFE MALVERN LIMITED,Housing Revenue Account Capital,5335.27,"CIP - New Construction,Conversion, Enhancement & Reno",2122P10_CR00492,92473
Sandwell Metropolitan Borough Council,http://www.sandwell.gov.uk/info/200202/performance_and_spending/1079/payments_over_500,20-Jan-2022,Housing Revenue Account Capital,SURE MAINTENANCE LIMITED,Housing Revenue Account Capital,362652.54,"CIP - New Construction,Conversion, Enhancement & Reno",2122P10_CR00493,93926
Sandwell Metropolitan Borough Council,http://www.sandwell.gov.uk/info/200202/performance_and_spending/1079/payments_over_500,11-Jan-2022,Housing Revenue Account Capital,TERRY GROUP LIMITED,Housing Revenue Account Capital,9873.75,Deferred Charges/Grant Payments,2122P10_CR00494,77002029
Sandwell Metropolitan Borough Council,http://www.sandwell.gov.uk/info/200202/performance_and_spending/1079/payments_over_500,01-Jan-2022,Housing Revenue Account Capital,TOTALENERGIES GAS & POWER LTD,Housing Revenue Account Capital,500.92,"CIP - New Construction,Conversion, Enhancement & Reno",2122P10_CR00495,107605
Sandwell Metropolitan Borough Council,http://www.sandwell.gov.uk/info/200202/performance_and_spending/1079/payments_over_500,14-Jan-2022,Housing Revenue Account Capital,VINCI CONSTRUCTION LTD,Housing Revenue Account Capital,145609.30,"CIP - New Construction,Conversion, Enhancement & Reno",2122P10_CR00496,36361
Sandwell Metropolitan Borough Council,http://www.sandwell.gov.uk/info/200202/performance_and_spending/1079/payments_over_500,11-Jan-2022,Housing Revenue Account Capital,VINCI CONSTRUCTION LTD,Housing Revenue Account Capital,6451.99,Deferred Charges/Grant Payments,2122P10_CR00497,36361
Sandwell Metropolitan Borough Council,http://www.sandwell.gov.uk/info/200202/performance_and_spending/1079/payments_over_500,11-Jan-2022,Housing Revenue Account Capital,VINCI CONSTRUCTION LTD,Housing Revenue Account Capital,5029.41,Deferred Charges/Grant Payments,2122P10_CR00498,36361
Sandwell Metropolitan Borough Council,http://www.sandwell.gov.uk/info/200202/performance_and_spending/1079/payments_over_500,11-Jan-2022,Housing Revenue Account Capital,VINCI CONSTRUCTION LTD,Housing Revenue Account Capital,5673.50,Deferred Charges/Grant Payments,2122P10_CR00499,36361
Sandwell Metropolitan Borough Council,http://www.sandwell.gov.uk/info/200202/performance_and_spending/1079/payments_over_500,11-Jan-2022,Housing Revenue Account Capital,VINCI CONSTRUCTION LTD,Housing Revenue Account Capital,6447.42,Deferred Charges/Grant Payments,2122P10_CR00500,36361
Sandwell Metropolitan Borough Council,http://www.sandwell.gov.uk/info/200202/performance_and_spending/1079/payments_over_500,11-Jan-2022,Housing Revenue Account Capital,VINCI CONSTRUCTION LTD,Housing Revenue Account Capital,6435.76,Deferred Charges/Grant Payments,2122P10_CR00501,36361
Sandwell Metropolitan Borough Council,http://www.sandwell.gov.uk/info/200202/performance_and_spending/1079/payments_over_500,01-Jan-2022,Housing Revenue Account Capital,WESSEX LIFT CO LTD,Housing Revenue Account Capital,6275.00,Building Maintenance & Improvements,2122P10_CR00502,01095737
Sandwell Metropolitan Borough Council,http://www.sandwell.gov.uk/info/200202/performance_and_spending/1079/payments_over_500,01-Jan-2022,Housing Revenue Account Capital,WESSEX LIFT CO LTD,Housing Revenue Account Capital,5646.00,Building Maintenance & Improvements,2122P10_CR00503,01095737
Sandwell Metropolitan Borough Council,http://www.sandwell.gov.uk/info/200202/performance_and_spending/1079/payments_over_500,01-Jan-2022,Housing Revenue Account Capital,AA PROJECTS LIMITED,Housing Revenue Account Capital,1380.00,Deferred Charges/Grant Payments,2122P10_CR00504,116074
Sandwell Metropolitan Borough Council,http://www.sandwell.gov.uk/info/200202/performance_and_spending/1079/payments_over_500,21-Jan-2022,Individual School Budgets With Inclusion,5 STAR DAY NURSERY - OLDBURY,Individual School Budgets With Inclusion,10478.16,Grant Payments,2122P10_CR00505,120730
Sandwell Metropolitan Borough Council,http://www.sandwell.gov.uk/info/200202/performance_and_spending/1079/payments_over_500,21-Jan-2022,Individual School Budgets With Inclusion,5 STAR DAY NURSERY LIMITED,Individual School Budgets With Inclusion,8287.49,Grant Payments,2122P10_CR00506,105382
Sandwell Metropolitan Borough Council,http://www.sandwell.gov.uk/info/200202/performance_and_spending/1079/payments_over_500,21-Jan-2022,Individual School Budgets With Inclusion,ABC DAY NURSERY & PRE SCHOOL LTD,Individual School Budgets With Inclusion,12690.21,Grant Payments,2122P10_CR00507,01472823
Sandwell Metropolitan Borough Council,http://www.sandwell.gov.uk/info/200202/performance_and_spending/1079/payments_over_500,21-Jan-2022,Individual School Budgets With Inclusion,ABIGAIL CRUMPTON,Individual School Budgets With Inclusion,707.27,Grant Payments,2122P10_CR00508,130863
Sandwell Metropolitan Borough Council,http://www.sandwell.gov.uk/info/200202/performance_and_spending/1079/payments_over_500,21-Jan-2022,Individual School Budgets With Inclusion,ADVENTURE QUEST (GREAT BRIDGE) LTD,Individual School Budgets With Inclusion,5697.65,Grant Payments,2122P10_CR00509,153563
Sandwell Metropolitan Borough Council,http://www.sandwell.gov.uk/info/200202/performance_and_spending/1079/payments_over_500,21-Jan-2022,Individual School Budgets With Inclusion,AL KAHIR SCHOOL,Individual School Budgets With Inclusion,3973.86,Grant Payments,2122P10_CR00510,128728
Sandwell Metropolitan Borough Council,http://www.sandwell.gov.uk/info/200202/performance_and_spending/1079/payments_over_500,21-Jan-2022,Individual School Budgets With Inclusion,BANANA MOON DAY NURSERY,Individual School Budgets With Inclusion,11568.35,Grant Payments,2122P10_CR00511,124220
Sandwell Metropolitan Borough Council,http://www.sandwell.gov.uk/info/200202/performance_and_spending/1079/payments_over_500,21-Jan-2022,Individual School Budgets With Inclusion,BLOXCIDGE HOUSE DAY NURSERY,Individual School Budgets With Inclusion,7596.66,Grant Payments,2122P10_CR00512,82862
Sandwell Metropolitan Borough Council,http://www.sandwell.gov.uk/info/200202/performance_and_spending/1079/payments_over_500,21-Jan-2022,Individual School Budgets With Inclusion,BLUEBELLS DAY NURSERY,Individual School Budgets With Inclusion,4191.26,Grant Payments,2122P10_CR00513,01721314
Sandwell Metropolitan Borough Council,http://www.sandwell.gov.uk/info/200202/performance_and_spending/1079/payments_over_500,21-Jan-2022,Individual School Budgets With Inclusion,BOOKWORMS DAYCARE BRICKHOUSE,Individual School Budgets With Inclusion,1012.17,Grant Payments,2122P10_CR00514,127727
Sandwell Metropolitan Borough Council,http://www.sandwell.gov.uk/info/200202/performance_and_spending/1079/payments_over_500,21-Jan-2022,Individual School Budgets With Inclusion,BOOKWORMS DAYCARE LIMITED,Individual School Budgets With Inclusion,12835.74,Grant Payments,2122P10_CR00515,114741
Sandwell Metropolitan Borough Council,http://www.sandwell.gov.uk/info/200202/performance_and_spending/1079/payments_over_500,21-Jan-2022,Individual School Budgets With Inclusion,BRIGHT LIGHTS DAY NURSERY,Individual School Budgets With Inclusion,12459.74,Grant Payments,2122P10_CR00516,89877
Sandwell Metropolitan Borough Council,http://www.sandwell.gov.uk/info/200202/performance_and_spending/1079/payments_over_500,21-Jan-2022,Individual School Budgets With Inclusion,BUSY BEE NURSERY,Individual School Budgets With Inclusion,10861.88,Grant Payments,2122P10_CR00517,01222577
Sandwell Metropolitan Borough Council,http://www.sandwell.gov.uk/info/200202/performance_and_spending/1079/payments_over_500,21-Jan-2022,Individual School Budgets With Inclusion,CAP DAY NURSERY,Individual School Budgets With Inclusion,8488.85,Grant Payments,2122P10_CR00518,51154
Sandwell Metropolitan Borough Council,http://www.sandwell.gov.uk/info/200202/performance_and_spending/1079/payments_over_500,21-Jan-2022,Individual School Budgets With Inclusion,CARA PRATT,Individual School Budgets With Inclusion,1640.23,Grant Payments,2122P10_CR00519,140537
Sandwell Metropolitan Borough Council,http://www.sandwell.gov.uk/info/200202/performance_and_spending/1079/payments_over_500,21-Jan-2022,Individual School Budgets With Inclusion,CAROLINE HENDERSON,Individual School Budgets With Inclusion,1035.93,Grant Payments,2122P10_CR00520,129980
Sandwell Metropolitan Borough Council,http://www.sandwell.gov.uk/info/200202/performance_and_spending/1079/payments_over_500,21-Jan-2022,Individual School Budgets With Inclusion,CATHERINE HOUSE DAY NURSERY,Individual School Budgets With Inclusion,3929.31,Grant Payments,2122P10_CR00521,08587767
Sandwell Metropolitan Borough Council,http://www.sandwell.gov.uk/info/200202/performance_and_spending/1079/payments_over_500,21-Jan-2022,Individual School Budgets With Inclusion,CLAIRE PARTRIDGE,Individual School Budgets With Inclusion,517.97,Grant Payments,2122P10_CR00522,123143
Sandwell Metropolitan Borough Council,http://www.sandwell.gov.uk/info/200202/performance_and_spending/1079/payments_over_500,21-Jan-2022,Individual School Budgets With Inclusion,CLARE O'DRISCOLL,Individual School Budgets With Inclusion,543.86,Grant Payments,2122P10_CR00523,129659
Sandwell Metropolitan Borough Council,http://www.sandwell.gov.uk/info/200202/performance_and_spending/1079/payments_over_500,21-Jan-2022,Individual School Budgets With Inclusion,CONFEDERATION OF BANGLADESHI ORGANISATIONS (CBO) LIMITED,Individual School Budgets With Inclusion,1916.84,Grant Payments,2122P10_CR00524,10034
Sandwell Metropolitan Borough Council,http://www.sandwell.gov.uk/info/200202/performance_and_spending/1079/payments_over_500,21-Jan-2022,Individual School Budgets With Inclusion,CONIFERS DAY NURSERY LTD,Individual School Budgets With Inclusion,8382.53,Grant Payments,2122P10_CR00525,131957
Sandwell Metropolitan Borough Council,http://www.sandwell.gov.uk/info/200202/performance_and_spending/1079/payments_over_500,21-Jan-2022,Individual School Budgets With Inclusion,DAFFODILS NURSERY LTD,Individual School Budgets With Inclusion,6229.87,Grant Payments,2122P10_CR00526,120066
Sandwell Metropolitan Borough Council,http://www.sandwell.gov.uk/info/200202/performance_and_spending/1079/payments_over_500,21-Jan-2022,Individual School Budgets With Inclusion,DAWN PERRY,Individual School Budgets With Inclusion,1095.33,Grant Payments,2122P10_CR00527,118604
Sandwell Metropolitan Borough Council,http://www.sandwell.gov.uk/info/200202/performance_and_spending/1079/payments_over_500,21-Jan-2022,Individual School Budgets With Inclusion,DONNA CLEARY,Individual School Budgets With Inclusion,529.85,Grant Payments,2122P10_CR00528,118531
Sandwell Metropolitan Borough Council,http://www.sandwell.gov.uk/info/200202/performance_and_spending/1079/payments_over_500,21-Jan-2022,Individual School Budgets With Inclusion,ELAINE SLATER,Individual School Budgets With Inclusion,821.50,Grant Payments,2122P10_CR00529,90028
Sandwell Metropolitan Borough Council,http://www.sandwell.gov.uk/info/200202/performance_and_spending/1079/payments_over_500,21-Jan-2022,Individual School Budgets With Inclusion,FAIRYTALES NURSERY LTD,Individual School Budgets With Inclusion,21305.59,Grant Payments,2122P10_CR00530,106247
Sandwell Metropolitan Borough Council,http://www.sandwell.gov.uk/info/200202/performance_and_spending/1079/payments_over_500,21-Jan-2022,Individual School Budgets With Inclusion,FATIMA DAY NURSERY,Individual School Budgets With Inclusion,7596.66,Grant Payments,2122P10_CR00531,131343
Sandwell Metropolitan Borough Council,http://www.sandwell.gov.uk/info/200202/performance_and_spending/1079/payments_over_500,21-Jan-2022,Individual School Budgets With Inclusion,FIREFLIES NURSERY LIMITED,Individual School Budgets With Inclusion,10067.11,Grant Payments,2122P10_CR00532,124120
Sandwell Metropolitan Borough Council,http://www.sandwell.gov.uk/info/200202/performance_and_spending/1079/payments_over_500,21-Jan-2022,Individual School Budgets With Inclusion,FIRST STEPS DAY NURSERY,Individual School Budgets With Inclusion,8742.49,Grant Payments,2122P10_CR00533,51155
Sandwell Metropolitan Borough Council,http://www.sandwell.gov.uk/info/200202/performance_and_spending/1079/payments_over_500,21-Jan-2022,Individual School Budgets With Inclusion,FIRST STEPS OLDBURY,Individual School Budgets With Inclusion,9430.34,Grant Payments,2122P10_CR00534,118886
Sandwell Metropolitan Borough Council,http://www.sandwell.gov.uk/info/200202/performance_and_spending/1079/payments_over_500,01-Jan-2022,Individual School Budgets With Inclusion,FIRST STEPS OLDBURY,Individual School Budgets With Inclusion,1230.00,Grant Payments,2122P10_CR00535,118886
Sandwell Metropolitan Borough Council,http://www.sandwell.gov.uk/info/200202/performance_and_spending/1079/payments_over_500,21-Jan-2022,Individual School Budgets With Inclusion,GAIL FAY PREECE,Individual School Budgets With Inclusion,1059.69,Grant Payments,2122P10_CR00536,61415
Sandwell Metropolitan Borough Council,http://www.sandwell.gov.uk/info/200202/performance_and_spending/1079/payments_over_500,21-Jan-2022,Individual School Budgets With Inclusion,GEMMA ADAMS,Individual School Budgets With Inclusion,1553.90,Grant Payments,2122P10_CR00537,129661
Sandwell Metropolitan Borough Council,http://www.sandwell.gov.uk/info/200202/performance_and_spending/1079/payments_over_500,21-Jan-2022,Individual School Budgets With Inclusion,GNG NURSERY,Individual School Budgets With Inclusion,9272.34,Grant Payments,2122P10_CR00538,114805
Sandwell Metropolitan Borough Council,http://www.sandwell.gov.uk/info/200202/performance_and_spending/1079/payments_over_500,21-Jan-2022,Individual School Budgets With Inclusion,HAPPY DAYS NURSERY (GREETS GREEN),Individual School Budgets With Inclusion,7042.46,Grant Payments,2122P10_CR00539,125840
Sandwell Metropolitan Borough Council,http://www.sandwell.gov.uk/info/200202/performance_and_spending/1079/payments_over_500,01-Jan-2022,Individual School Budgets With Inclusion,HARGATE PRIMARY SCHOOL                                   02,Individual School Budgets With Inclusion,615.00,Grant Payments,2122P10_CR00540,60999
Sandwell Metropolitan Borough Council,http://www.sandwell.gov.uk/info/200202/performance_and_spending/1079/payments_over_500,21-Jan-2022,Individual School Budgets With Inclusion,HAYLEY GODDARD,Individual School Budgets With Inclusion,821.50,Grant Payments,2122P10_CR00541,139835
Sandwell Metropolitan Borough Council,http://www.sandwell.gov.uk/info/200202/performance_and_spending/1079/payments_over_500,21-Jan-2022,Individual School Budgets With Inclusion,HUMPTY DUMPTYS DAY NURSERY,Individual School Budgets With Inclusion,11193.04,Grant Payments,2122P10_CR00542,08510771
Sandwell Metropolitan Borough Council,http://www.sandwell.gov.uk/info/200202/performance_and_spending/1079/payments_over_500,21-Jan-2022,Individual School Budgets With Inclusion,JACQUELINE HEHIR,Individual School Budgets With Inclusion,1059.69,Grant Payments,2122P10_CR00543,75203
Sandwell Metropolitan Borough Council,http://www.sandwell.gov.uk/info/200202/performance_and_spending/1079/payments_over_500,21-Jan-2022,Individual School Budgets With Inclusion,JANE JACKSON.,Individual School Budgets With Inclusion,673.36,Grant Payments,2122P10_CR00544,128220
Sandwell Metropolitan Borough Council,http://www.sandwell.gov.uk/info/200202/performance_and_spending/1079/payments_over_500,21-Jan-2022,Individual School Budgets With Inclusion,JAQUELINE CHANCE,Individual School Budgets With Inclusion,1309.77,Grant Payments,2122P10_CR00545,123463
Sandwell Metropolitan Borough Council,http://www.sandwell.gov.uk/info/200202/performance_and_spending/1079/payments_over_500,21-Jan-2022,Individual School Budgets With Inclusion,JENNIE THOMAS,Individual School Budgets With Inclusion,771.72,Grant Payments,2122P10_CR00546,134322
Sandwell Metropolitan Borough Council,http://www.sandwell.gov.uk/info/200202/performance_and_spending/1079/payments_over_500,21-Jan-2022,Individual School Budgets With Inclusion,JENNIFER LOUISE LEATHERLAND,Individual School Budgets With Inclusion,3143.45,Grant Payments,2122P10_CR00547,131850
Sandwell Metropolitan Borough Council,http://www.sandwell.gov.uk/info/200202/performance_and_spending/1079/payments_over_500,21-Jan-2022,Individual School Budgets With Inclusion,JOYFUL CHILDRENS NURSERY,Individual School Budgets With Inclusion,2411.64,Grant Payments,2122P10_CR00548,150961
Sandwell Metropolitan Borough Council,http://www.sandwell.gov.uk/info/200202/performance_and_spending/1079/payments_over_500,21-Jan-2022,Individual School Budgets With Inclusion,JULIE BAINES,Individual School Budgets With Inclusion,517.97,Grant Payments,2122P10_CR00549,129408
Sandwell Metropolitan Borough Council,http://www.sandwell.gov.uk/info/200202/performance_and_spending/1079/payments_over_500,21-Jan-2022,Individual School Budgets With Inclusion,JUNIPER'S PRESCHOOL,Individual School Budgets With Inclusion,6358.17,Grant Payments,2122P10_CR00550,154579
Sandwell Metropolitan Borough Council,http://www.sandwell.gov.uk/info/200202/performance_and_spending/1079/payments_over_500,21-Jan-2022,Individual School Budgets With Inclusion,KAI DRUMS,Individual School Budgets With Inclusion,15717.24,Grant Payments,2122P10_CR00551,120729
Sandwell Metropolitan Borough Council,http://www.sandwell.gov.uk/info/200202/performance_and_spending/1079/payments_over_500,21-Jan-2022,Individual School Budgets With Inclusion,KANGAROO POUCH AT GREAT BRIDGE,Individual School Budgets With Inclusion,6286.89,Grant Payments,2122P10_CR00552,129771
Sandwell Metropolitan Borough Council,http://www.sandwell.gov.uk/info/200202/performance_and_spending/1079/payments_over_500,21-Jan-2022,Individual School Budgets With Inclusion,KANGAROO POUCH AT TIVIDALE,Individual School Budgets With Inclusion,8382.53,Grant Payments,2122P10_CR00553,113715
Sandwell Metropolitan Borough Council,http://www.sandwell.gov.uk/info/200202/performance_and_spending/1079/payments_over_500,21-Jan-2022,Individual School Budgets With Inclusion,KANGAROO POUCH CHARLEMONT,Individual School Budgets With Inclusion,5563.40,Grant Payments,2122P10_CR00554,117283
Sandwell Metropolitan Borough Council,http://www.sandwell.gov.uk/info/200202/performance_and_spending/1079/payments_over_500,21-Jan-2022,Individual School Budgets With Inclusion,KANGAROO POUCH LIMITED,Individual School Budgets With Inclusion,5563.40,Grant Payments,2122P10_CR00555,106981
Sandwell Metropolitan Borough Council,http://www.sandwell.gov.uk/info/200202/performance_and_spending/1079/payments_over_500,21-Jan-2022,Individual School Budgets With Inclusion,LAVENDER FARM DAY NURSERY,Individual School Budgets With Inclusion,35499.81,Grant Payments,2122P10_CR00556,65596
Sandwell Metropolitan Borough Council,http://www.sandwell.gov.uk/info/200202/performance_and_spending/1079/payments_over_500,01-Jan-2022,Individual School Budgets With Inclusion,LAVENDER FARM DAY NURSERY,Individual School Budgets With Inclusion,615.00,Grant Payments,2122P10_CR00557,65596
Sandwell Metropolitan Borough Council,http://www.sandwell.gov.uk/info/200202/performance_and_spending/1079/payments_over_500,21-Jan-2022,Individual School Budgets With Inclusion,LEEANNE ADAMS,Individual School Budgets With Inclusion,1035.93,Grant Payments,2122P10_CR00558,134517
Sandwell Metropolitan Borough Council,http://www.sandwell.gov.uk/info/200202/performance_and_spending/1079/payments_over_500,21-Jan-2022,Individual School Budgets With Inclusion,LEKA HOWE,Individual School Budgets With Inclusion,1095.33,Grant Payments,2122P10_CR00559,119503
Sandwell Metropolitan Borough Council,http://www.sandwell.gov.uk/info/200202/performance_and_spending/1079/payments_over_500,21-Jan-2022,Individual School Budgets With Inclusion,LILLIPUT LODGE CHILDRENS DAY NURSERY,Individual School Budgets With Inclusion,9692.30,Grant Payments,2122P10_CR00560,2980
Sandwell Metropolitan Borough Council,http://www.sandwell.gov.uk/info/200202/performance_and_spending/1079/payments_over_500,21-Jan-2022,Individual School Budgets With Inclusion,LISA HINTON,Individual School Budgets With Inclusion,1035.93,Grant Payments,2122P10_CR00561,92923
Sandwell Metropolitan Borough Council,http://www.sandwell.gov.uk/info/200202/performance_and_spending/1079/payments_over_500,21-Jan-2022,Individual School Budgets With Inclusion,LITTLE ACADEMY NURSERY,Individual School Budgets With Inclusion,3973.86,Grant Payments,2122P10_CR00562,81904
Sandwell Metropolitan Borough Council,http://www.sandwell.gov.uk/info/200202/performance_and_spending/1079/payments_over_500,21-Jan-2022,Individual School Budgets With Inclusion,LITTLE ANGELS DAY NURSERY LIMITED,Individual School Budgets With Inclusion,2914.16,Grant Payments,2122P10_CR00563,10207
Sandwell Metropolitan Borough Council,http://www.sandwell.gov.uk/info/200202/performance_and_spending/1079/payments_over_500,21-Jan-2022,Individual School Budgets With Inclusion,LITTLE EXPLORERS (WEST MIDLANDS) LTD,Individual School Budgets With Inclusion,19436.98,Grant Payments,2122P10_CR00564,114804
Sandwell Metropolitan Borough Council,http://www.sandwell.gov.uk/info/200202/performance_and_spending/1079/payments_over_500,21-Jan-2022,Individual School Budgets With Inclusion,LITTLE LEARNERS LTD,Individual School Budgets With Inclusion,6771.60,Grant Payments,2122P10_CR00565,01424133
Sandwell Metropolitan Borough Council,http://www.sandwell.gov.uk/info/200202/performance_and_spending/1079/payments_over_500,21-Jan-2022,Individual School Budgets With Inclusion,LITTLE LEGEND NURSERIES LTD,Individual School Budgets With Inclusion,3289.57,Grant Payments,2122P10_CR00566,117890
Sandwell Metropolitan Borough Council,http://www.sandwell.gov.uk/info/200202/performance_and_spending/1079/payments_over_500,21-Jan-2022,Individual School Budgets With Inclusion,LITTLE SAPLINGS CHILDCARE CENTRES,Individual School Budgets With Inclusion,8477.57,Grant Payments,2122P10_CR00567,131043
Sandwell Metropolitan Borough Council,http://www.sandwell.gov.uk/info/200202/performance_and_spending/1079/payments_over_500,21-Jan-2022,Individual School Budgets With Inclusion,LITTLE STEPPERS,Individual School Budgets With Inclusion,4381.34,Grant Payments,2122P10_CR00568,120240
Sandwell Metropolitan Borough Council,http://www.sandwell.gov.uk/info/200202/performance_and_spending/1079/payments_over_500,21-Jan-2022,Individual School Budgets With Inclusion,LITTLE VALERS PRE SCHOOL,Individual School Budgets With Inclusion,11395.29,Grant Payments,2122P10_CR00569,99107
Sandwell Metropolitan Borough Council,http://www.sandwell.gov.uk/info/200202/performance_and_spending/1079/payments_over_500,21-Jan-2022,Individual School Budgets With Inclusion,LITTLE WENDY HOUSE DAY NURSERY,Individual School Budgets With Inclusion,18544.68,Grant Payments,2122P10_CR00570,91544
Sandwell Metropolitan Borough Council,http://www.sandwell.gov.uk/info/200202/performance_and_spending/1079/payments_over_500,21-Jan-2022,Individual School Budgets With Inclusion,LOLA BELLES PRIVATE DAY NURSERY,Individual School Budgets With Inclusion,9802.19,Grant Payments,2122P10_CR00571,89271
Sandwell Metropolitan Borough Council,http://www.sandwell.gov.uk/info/200202/performance_and_spending/1079/payments_over_500,01-Jan-2022,Individual School Budgets With Inclusion,LOLA BELLES PRIVATE DAY NURSERY,Individual School Budgets With Inclusion,615.00,Grant Payments,2122P10_CR00572,89271
Sandwell Metropolitan Borough Council,http://www.sandwell.gov.uk/info/200202/performance_and_spending/1079/payments_over_500,21-Jan-2022,Individual School Budgets With Inclusion,MINI MONKEYS LTD,Individual School Budgets With Inclusion,9168.39,Grant Payments,2122P10_CR00573,114818
Sandwell Metropolitan Borough Council,http://www.sandwell.gov.uk/info/200202/performance_and_spending/1079/payments_over_500,21-Jan-2022,Individual School Budgets With Inclusion,MINNS LIMITED,Individual School Budgets With Inclusion,8477.57,Grant Payments,2122P10_CR00574,120067
Sandwell Metropolitan Borough Council,http://www.sandwell.gov.uk/info/200202/performance_and_spending/1079/payments_over_500,21-Jan-2022,Individual School Budgets With Inclusion,MONIQUE BROWN.,Individual School Budgets With Inclusion,517.97,Grant Payments,2122P10_CR00575,127112
Sandwell Metropolitan Borough Council,http://www.sandwell.gov.uk/info/200202/performance_and_spending/1079/payments_over_500,21-Jan-2022,Individual School Budgets With Inclusion,MOORLANDS LITTLE LEARNERS PLAYGROUP,Individual School Budgets With Inclusion,7596.66,Grant Payments,2122P10_CR00576,46390
Sandwell Metropolitan Borough Council,http://www.sandwell.gov.uk/info/200202/performance_and_spending/1079/payments_over_500,01-Jan-2022,Individual School Budgets With Inclusion,MOORLANDS LITTLE LEARNERS PLAYGROUP,Individual School Budgets With Inclusion,615.00,Grant Payments,2122P10_CR00577,46390
Sandwell Metropolitan Borough Council,http://www.sandwell.gov.uk/info/200202/performance_and_spending/1079/payments_over_500,21-Jan-2022,Individual School Budgets With Inclusion,N & K VARMA LIMITED T/A (KIDDIES PLAYHOUSE TIPTON),Individual School Budgets With Inclusion,3973.86,Grant Payments,2122P10_CR00578,26124
Sandwell Metropolitan Borough Council,http://www.sandwell.gov.uk/info/200202/performance_and_spending/1079/payments_over_500,21-Jan-2022,Individual School Budgets With Inclusion,NATALIE WESTON,Individual School Budgets With Inclusion,1035.93,Grant Payments,2122P10_CR00579,152056
Sandwell Metropolitan Borough Council,http://www.sandwell.gov.uk/info/200202/performance_and_spending/1079/payments_over_500,21-Jan-2022,Individual School Budgets With Inclusion,OUR LADY AND ST HUBERTS CATHOLIC PRIMARY SCHOOL                                      02,Individual School Budgets With Inclusion,13359.65,Grant Payments,2122P10_CR00580,61053
Sandwell Metropolitan Borough Council,http://www.sandwell.gov.uk/info/200202/performance_and_spending/1079/payments_over_500,21-Jan-2022,Individual School Budgets With Inclusion,PERRYFIELDS PRE SCHOOL,Individual School Budgets With Inclusion,10109.01,Grant Payments,2122P10_CR00581,18879
Sandwell Metropolitan Borough Council,http://www.sandwell.gov.uk/info/200202/performance_and_spending/1079/payments_over_500,21-Jan-2022,Individual School Budgets With Inclusion,PITTA PATTA DAYCARE,Individual School Budgets With Inclusion,5828.33,Grant Payments,2122P10_CR00582,114742
Sandwell Metropolitan Borough Council,http://www.sandwell.gov.uk/info/200202/performance_and_spending/1079/payments_over_500,21-Jan-2022,Individual School Budgets With Inclusion,PLAYHOUSE DAY NURSERY,Individual School Budgets With Inclusion,6024.94,Grant Payments,2122P10_CR00583,01586669
Sandwell Metropolitan Borough Council,http://www.sandwell.gov.uk/info/200202/performance_and_spending/1079/payments_over_500,21-Jan-2022,Individual School Budgets With Inclusion,RAK DAY CARE LTD T/A HAPPY VALLEY PRE SCHOOL LTD,Individual School Budgets With Inclusion,9007.41,Grant Payments,2122P10_CR00584,01572212
Sandwell Metropolitan Borough Council,http://www.sandwell.gov.uk/info/200202/performance_and_spending/1079/payments_over_500,21-Jan-2022,Individual School Budgets With Inclusion,RARE WOOD LIMITED,Individual School Budgets With Inclusion,14084.93,Grant Payments,2122P10_CR00585,20167
Sandwell Metropolitan Borough Council,http://www.sandwell.gov.uk/info/200202/performance_and_spending/1079/payments_over_500,21-Jan-2022,Individual School Budgets With Inclusion,ROOTS & SHOOTS PLAYGROUP,Individual School Budgets With Inclusion,6177.60,Grant Payments,2122P10_CR00586,75502
Sandwell Metropolitan Borough Council,http://www.sandwell.gov.uk/info/200202/performance_and_spending/1079/payments_over_500,21-Jan-2022,Individual School Budgets With Inclusion,ROWINA WINDSOR,Individual School Budgets With Inclusion,1186.61,Grant Payments,2122P10_CR00587,138305
Sandwell Metropolitan Borough Council,http://www.sandwell.gov.uk/info/200202/performance_and_spending/1079/payments_over_500,21-Jan-2022,Individual School Budgets With Inclusion,ROWLEY VILLAGE DAY NURSERY,Individual School Budgets With Inclusion,14145.51,Grant Payments,2122P10_CR00588,24228
Sandwell Metropolitan Borough Council,http://www.sandwell.gov.uk/info/200202/performance_and_spending/1079/payments_over_500,21-Jan-2022,Individual School Budgets With Inclusion,SADWICA DAY NURSERY,Individual School Budgets With Inclusion,7223.04,Grant Payments,2122P10_CR00589,01667892
Sandwell Metropolitan Borough Council,http://www.sandwell.gov.uk/info/200202/performance_and_spending/1079/payments_over_500,21-Jan-2022,Individual School Budgets With Inclusion,SANDWELL NHS TRUST DAY NURSERY,Individual School Budgets With Inclusion,16513.59,Grant Payments,2122P10_CR00590,40788
Sandwell Metropolitan Borough Council,http://www.sandwell.gov.uk/info/200202/performance_and_spending/1079/payments_over_500,21-Jan-2022,Individual School Budgets With Inclusion,SANTOS DAY NURSERIES,Individual School Budgets With Inclusion,9323.42,Grant Payments,2122P10_CR00591,129262
Sandwell Metropolitan Borough Council,http://www.sandwell.gov.uk/info/200202/performance_and_spending/1079/payments_over_500,21-Jan-2022,Individual School Budgets With Inclusion,SATVINDER KAUR,Individual School Budgets With Inclusion,776.95,Grant Payments,2122P10_CR00592,131042
Sandwell Metropolitan Borough Council,http://www.sandwell.gov.uk/info/200202/performance_and_spending/1079/payments_over_500,21-Jan-2022,Individual School Budgets With Inclusion,SMARTY PANTS @ LIGHTWOODS HOUSE LTD,Individual School Budgets With Inclusion,8906.43,Grant Payments,2122P10_CR00593,130645
Sandwell Metropolitan Borough Council,http://www.sandwell.gov.uk/info/200202/performance_and_spending/1079/payments_over_500,21-Jan-2022,Individual School Budgets With Inclusion,SMARTY PANTS PRIVATE DAY NURSERY LTD,Individual School Budgets With Inclusion,17749.91,Grant Payments,2122P10_CR00594,74037
Sandwell Metropolitan Borough Council,http://www.sandwell.gov.uk/info/200202/performance_and_spending/1079/payments_over_500,21-Jan-2022,Individual School Budgets With Inclusion,SPON LANE DAY NURSERY LIMITED,Individual School Budgets With Inclusion,8667.65,Grant Payments,2122P10_CR00595,127024
Sandwell Metropolitan Borough Council,http://www.sandwell.gov.uk/info/200202/performance_and_spending/1079/payments_over_500,21-Jan-2022,Individual School Budgets With Inclusion,ST HUBERTS PRE-SCHOOL PLAYGROUP 2,Individual School Budgets With Inclusion,16765.05,Grant Payments,2122P10_CR00596,123074
Sandwell Metropolitan Borough Council,http://www.sandwell.gov.uk/info/200202/performance_and_spending/1079/payments_over_500,21-Jan-2022,Individual School Budgets With Inclusion,ST MICHAELS DAY NURSERY,Individual School Budgets With Inclusion,3833.67,Grant Payments,2122P10_CR00597,01698538
Sandwell Metropolitan Borough Council,http://www.sandwell.gov.uk/info/200202/performance_and_spending/1079/payments_over_500,21-Jan-2022,Individual School Budgets With Inclusion,STACEY PARTRIDGE (STEP UP CHILDCARE),Individual School Budgets With Inclusion,1035.93,Grant Payments,2122P10_CR00598,151395
Sandwell Metropolitan Borough Council,http://www.sandwell.gov.uk/info/200202/performance_and_spending/1079/payments_over_500,21-Jan-2022,Individual School Budgets With Inclusion,STEPPING STONES NURSERY,Individual School Budgets With Inclusion,7596.66,Grant Payments,2122P10_CR00599,50029
Sandwell Metropolitan Borough Council,http://www.sandwell.gov.uk/info/200202/performance_and_spending/1079/payments_over_500,21-Jan-2022,Individual School Budgets With Inclusion,SUSAN GRIFFITHS.,Individual School Budgets With Inclusion,776.95,Grant Payments,2122P10_CR00600,125492
Sandwell Metropolitan Borough Council,http://www.sandwell.gov.uk/info/200202/performance_and_spending/1079/payments_over_500,21-Jan-2022,Individual School Budgets With Inclusion,THE FAMILY NURSERY COMPANY LTD,Individual School Budgets With Inclusion,11656.65,Grant Payments,2122P10_CR00601,89879
Sandwell Metropolitan Borough Council,http://www.sandwell.gov.uk/info/200202/performance_and_spending/1079/payments_over_500,01-Jan-2022,Individual School Budgets With Inclusion,THE FAMILY NURSERY COMPANY LTD,Individual School Budgets With Inclusion,615.00,Grant Payments,2122P10_CR00602,89879
Sandwell Metropolitan Borough Council,http://www.sandwell.gov.uk/info/200202/performance_and_spending/1079/payments_over_500,21-Jan-2022,Individual School Budgets With Inclusion,THE PATCH DAY NURSERY,Individual School Budgets With Inclusion,10332.03,Grant Payments,2122P10_CR00603,126020
Sandwell Metropolitan Borough Council,http://www.sandwell.gov.uk/info/200202/performance_and_spending/1079/payments_over_500,01-Jan-2022,Individual School Budgets With Inclusion,THE PRIORY PRIMARY,Individual School Budgets With Inclusion,615.00,Grant Payments,2122P10_CR00604,01746051
Sandwell Metropolitan Borough Council,http://www.sandwell.gov.uk/info/200202/performance_and_spending/1079/payments_over_500,21-Jan-2022,Individual School Budgets With Inclusion,THE RIVERS MULTI ACADEMY TRUST,Individual School Budgets With Inclusion,15895.44,Grant Payments,2122P10_CR00605,61014
Sandwell Metropolitan Borough Council,http://www.sandwell.gov.uk/info/200202/performance_and_spending/1079/payments_over_500,21-Jan-2022,Individual School Budgets With Inclusion,THE TODDLER HOUSE LIMITED,Individual School Budgets With Inclusion,8212.64,Grant Payments,2122P10_CR00606,122166
Sandwell Metropolitan Borough Council,http://www.sandwell.gov.uk/info/200202/performance_and_spending/1079/payments_over_500,21-Jan-2022,Individual School Budgets With Inclusion,THE WONDER YEARS DAY NURSERY LIMITED,Individual School Budgets With Inclusion,11391.73,Grant Payments,2122P10_CR00607,01647249
Sandwell Metropolitan Borough Council,http://www.sandwell.gov.uk/info/200202/performance_and_spending/1079/payments_over_500,21-Jan-2022,Individual School Budgets With Inclusion,TICK TOCK DAY NURSERY LTD,Individual School Budgets With Inclusion,20399.15,Grant Payments,2122P10_CR00608,9391
Sandwell Metropolitan Borough Council,http://www.sandwell.gov.uk/info/200202/performance_and_spending/1079/payments_over_500,21-Jan-2022,Individual School Budgets With Inclusion,TIDDLYWINKS KIDDYS NURSERY LIMITED,Individual School Budgets With Inclusion,12573.79,Grant Payments,2122P10_CR00609,110667
Sandwell Metropolitan Borough Council,http://www.sandwell.gov.uk/info/200202/performance_and_spending/1079/payments_over_500,21-Jan-2022,Individual School Budgets With Inclusion,TIMBERTREE NEIGHBOURHOOD NURSERY,Individual School Budgets With Inclusion,15193.33,Grant Payments,2122P10_CR00610,135664
Sandwell Metropolitan Borough Council,http://www.sandwell.gov.uk/info/200202/performance_and_spending/1079/payments_over_500,21-Jan-2022,Individual School Budgets With Inclusion,TINY STEPS,Individual School Budgets With Inclusion,2649.24,Grant Payments,2122P10_CR00611,125778
Sandwell Metropolitan Borough Council,http://www.sandwell.gov.uk/info/200202/performance_and_spending/1079/payments_over_500,21-Jan-2022,Individual School Budgets With Inclusion,TINY TOEZ LIMITED,Individual School Budgets With Inclusion,9064.44,Grant Payments,2122P10_CR00612,23618
Sandwell Metropolitan Borough Council,http://www.sandwell.gov.uk/info/200202/performance_and_spending/1079/payments_over_500,21-Jan-2022,Individual School Budgets With Inclusion,TINY WOODS PRE SCHOOL,Individual School Budgets With Inclusion,22531.61,Grant Payments,2122P10_CR00613,91788
Sandwell Metropolitan Borough Council,http://www.sandwell.gov.uk/info/200202/performance_and_spending/1079/payments_over_500,21-Jan-2022,Individual School Budgets With Inclusion,TIP TOP DAY NURSERY WEDNESBURY,Individual School Budgets With Inclusion,4143.74,Grant Payments,2122P10_CR00614,147082
Sandwell Metropolitan Borough Council,http://www.sandwell.gov.uk/info/200202/performance_and_spending/1079/payments_over_500,21-Jan-2022,Individual School Budgets With Inclusion,TIPTON EXPLORERS NURSERY,Individual School Budgets With Inclusion,1960.44,Grant Payments,2122P10_CR00615,132351
Sandwell Metropolitan Borough Council,http://www.sandwell.gov.uk/info/200202/performance_and_spending/1079/payments_over_500,21-Jan-2022,Individual School Budgets With Inclusion,TIPTON NURSERY,Individual School Budgets With Inclusion,9751.10,Grant Payments,2122P10_CR00616,89881
Sandwell Metropolitan Borough Council,http://www.sandwell.gov.uk/info/200202/performance_and_spending/1079/payments_over_500,21-Jan-2022,Individual School Budgets With Inclusion,TIPTON TODDLERS DAY NURSERY,Individual School Budgets With Inclusion,16531.26,Grant Payments,2122P10_CR00617,4397
Sandwell Metropolitan Borough Council,http://www.sandwell.gov.uk/info/200202/performance_and_spending/1079/payments_over_500,01-Jan-2022,Individual School Budgets With Inclusion,TIVIDALE HALL PRIMARY SCHOOL                                     02,Individual School Budgets With Inclusion,615.00,Grant Payments,2122P10_CR00618,61070
Sandwell Metropolitan Borough Council,http://www.sandwell.gov.uk/info/200202/performance_and_spending/1079/payments_over_500,21-Jan-2022,Individual School Budgets With Inclusion,TRACEY RALLEY,Individual School Budgets With Inclusion,517.97,Grant Payments,2122P10_CR00619,139205
Sandwell Metropolitan Borough Council,http://www.sandwell.gov.uk/info/200202/performance_and_spending/1079/payments_over_500,21-Jan-2022,Individual School Budgets With Inclusion,TULIP DAY NURSERY LTD,Individual School Budgets With Inclusion,2330.85,Grant Payments,2122P10_CR00620,152250
Sandwell Metropolitan Borough Council,http://www.sandwell.gov.uk/info/200202/performance_and_spending/1079/payments_over_500,21-Jan-2022,Individual School Budgets With Inclusion,TWO STEPS PRE-SCHOOL,Individual School Budgets With Inclusion,1854.47,Grant Payments,2122P10_CR00621,109186
Sandwell Metropolitan Borough Council,http://www.sandwell.gov.uk/info/200202/performance_and_spending/1079/payments_over_500,21-Jan-2022,Individual School Budgets With Inclusion,UNICORN DAY NURSERY,Individual School Budgets With Inclusion,30423.49,Grant Payments,2122P10_CR00622,91543
Sandwell Metropolitan Borough Council,http://www.sandwell.gov.uk/info/200202/performance_and_spending/1079/payments_over_500,21-Jan-2022,Individual School Budgets With Inclusion,UNITED KIDS CHILDCARE,Individual School Budgets With Inclusion,10332.03,Grant Payments,2122P10_CR00623,134806
Sandwell Metropolitan Borough Council,http://www.sandwell.gov.uk/info/200202/performance_and_spending/1079/payments_over_500,21-Jan-2022,Individual School Budgets With Inclusion,UNITED KIDS LIMITED,Individual School Budgets With Inclusion,10216.20,Grant Payments,2122P10_CR00624,136360
Sandwell Metropolitan Borough Council,http://www.sandwell.gov.uk/info/200202/performance_and_spending/1079/payments_over_500,21-Jan-2022,Individual School Budgets With Inclusion,VANESSA BILLINGSLEY,Individual School Budgets With Inclusion,1324.62,Grant Payments,2122P10_CR00625,125216
Sandwell Metropolitan Borough Council,http://www.sandwell.gov.uk/info/200202/performance_and_spending/1079/payments_over_500,21-Jan-2022,Individual School Budgets With Inclusion,VICTORIA HARRISON,Individual School Budgets With Inclusion,1294.92,Grant Payments,2122P10_CR00626,127111
Sandwell Metropolitan Borough Council,http://www.sandwell.gov.uk/info/200202/performance_and_spending/1079/payments_over_500,21-Jan-2022,Individual School Budgets With Inclusion,WENDY MAXWELL,Individual School Budgets With Inclusion,3143.45,Grant Payments,2122P10_CR00627,37344
Sandwell Metropolitan Borough Council,http://www.sandwell.gov.uk/info/200202/performance_and_spending/1079/payments_over_500,21-Jan-2022,Individual School Budgets With Inclusion,WEST BROMWICH & DISTRICT Y.M.C.A. COMMUNITY ENTERPRISES,Individual School Budgets With Inclusion,19448.03,Grant Payments,2122P10_CR00628,01088376
Sandwell Metropolitan Borough Council,http://www.sandwell.gov.uk/info/200202/performance_and_spending/1079/payments_over_500,21-Jan-2022,Individual School Budgets With Inclusion,WIGGLES & GIGGLES LTD,Individual School Budgets With Inclusion,29006.21,Grant Payments,2122P10_CR00629,01674799
Sandwell Metropolitan Borough Council,http://www.sandwell.gov.uk/info/200202/performance_and_spending/1079/payments_over_500,21-Jan-2022,Individual School Budgets With Inclusion,WONDERLAND CHILDRENS DAY NURSERY (UK) LTD,Individual School Budgets With Inclusion,28346.87,Grant Payments,2122P10_CR00630,50852
Sandwell Metropolitan Borough Council,http://www.sandwell.gov.uk/info/200202/performance_and_spending/1079/payments_over_500,05-Jan-2022,Individual School Budgets With Inclusion,ACCESS TO MUSIC LTD T/A ACCESS CREATIVE COLLEGE,Individual School Budgets With Inclusion,851.14,Externally Purchased Professional Services ,2122P10_CR00631,152334
Sandwell Metropolitan Borough Council,http://www.sandwell.gov.uk/info/200202/performance_and_spending/1079/payments_over_500,01-Jan-2022,Individual School Budgets With Inclusion,ACORN CARE AND EDUCATION LIMITED,Individual School Budgets With Inclusion,19883.34,Other Establishments,2122P10_CR00632,115235
Sandwell Metropolitan Borough Council,http://www.sandwell.gov.uk/info/200202/performance_and_spending/1079/payments_over_500,01-Jan-2022,Individual School Budgets With Inclusion,ACORN CARE AND EDUCATION LIMITED,Individual School Budgets With Inclusion,19883.33,Other Establishments,2122P10_CR00633,115235
Sandwell Metropolitan Borough Council,http://www.sandwell.gov.uk/info/200202/performance_and_spending/1079/payments_over_500,01-Jan-2022,Individual School Budgets With Inclusion,ACORN CARE AND EDUCATION LIMITED,Individual School Budgets With Inclusion,19883.33,Other Establishments,2122P10_CR00634,115235
Sandwell Metropolitan Borough Council,http://www.sandwell.gov.uk/info/200202/performance_and_spending/1079/payments_over_500,10-Jan-2022,Individual School Budgets With Inclusion,ACORN CARE AND EDUCATION LIMITED,Individual School Budgets With Inclusion,7321.10,Other Establishments,2122P10_CR00635,115235
Sandwell Metropolitan Borough Council,http://www.sandwell.gov.uk/info/200202/performance_and_spending/1079/payments_over_500,01-Jan-2022,Individual School Budgets With Inclusion,ADVENTURE QUEST (GREAT BRIDGE) LTD,Individual School Budgets With Inclusion,1567.80,Externally Purchased Professional Services ,2122P10_CR00636,153563
Sandwell Metropolitan Borough Council,http://www.sandwell.gov.uk/info/200202/performance_and_spending/1079/payments_over_500,01-Jan-2022,Individual School Budgets With Inclusion,ATOMWIDE LTD,Individual School Budgets With Inclusion,577.88,Telephones,2122P10_CR00637,133177
Sandwell Metropolitan Borough Council,http://www.sandwell.gov.uk/info/200202/performance_and_spending/1079/payments_over_500,01-Jan-2022,Individual School Budgets With Inclusion,BARNET SOUTHGATE COLLEGE,Individual School Budgets With Inclusion,4076.34,Externally Purchased Professional Services ,2122P10_CR00638,141597
Sandwell Metropolitan Borough Council,http://www.sandwell.gov.uk/info/200202/performance_and_spending/1079/payments_over_500,24-Jan-2022,Individual School Budgets With Inclusion,BLACKHEATH PRIMARY SCHOOL                                 01,Individual School Budgets With Inclusion,2412.00,External Contract Hire,2122P10_CR00639,04024198
Sandwell Metropolitan Borough Council,http://www.sandwell.gov.uk/info/200202/performance_and_spending/1079/payments_over_500,01-Jan-2022,Individual School Budgets With Inclusion,BLACKWATER ACADEMY,Individual School Budgets With Inclusion,9537.50,Externally Purchased Professional Services ,2122P10_CR00640,129151
Sandwell Metropolitan Borough Council,http://www.sandwell.gov.uk/info/200202/performance_and_spending/1079/payments_over_500,01-Jan-2022,Individual School Budgets With Inclusion,BOW STREET SCHOOL LTD,Individual School Budgets With Inclusion,136782.00,Other Establishments,2122P10_CR00641,115236
Sandwell Metropolitan Borough Council,http://www.sandwell.gov.uk/info/200202/performance_and_spending/1079/payments_over_500,01-Jan-2022,Individual School Budgets With Inclusion,BRITISH GAS BUSINESS,Individual School Budgets With Inclusion,1097.03,Catering Provisions,2122P10_CR00642,01735076
Sandwell Metropolitan Borough Council,http://www.sandwell.gov.uk/info/200202/performance_and_spending/1079/payments_over_500,01-Jan-2022,Individual School Budgets With Inclusion,CARE FIRST MANAGEMENT,Individual School Budgets With Inclusion,2267.08,Other Establishments,2122P10_CR00643,136901
Sandwell Metropolitan Borough Council,http://www.sandwell.gov.uk/info/200202/performance_and_spending/1079/payments_over_500,01-Jan-2022,Individual School Budgets With Inclusion,CARE FIRST MANAGEMENT,Individual School Budgets With Inclusion,2267.08,Other Establishments,2122P10_CR00644,136901
Sandwell Metropolitan Borough Council,http://www.sandwell.gov.uk/info/200202/performance_and_spending/1079/payments_over_500,01-Jan-2022,Individual School Budgets With Inclusion,CARE FIRST MANAGEMENT,Individual School Budgets With Inclusion,2267.08,Other Establishments,2122P10_CR00645,136901
Sandwell Metropolitan Borough Council,http://www.sandwell.gov.uk/info/200202/performance_and_spending/1079/payments_over_500,14-Jan-2022,Individual School Budgets With Inclusion,CITY UNITED LIMITED,Individual School Budgets With Inclusion,16524.30,Other Establishments,2122P10_CR00646,74261
Sandwell Metropolitan Borough Council,http://www.sandwell.gov.uk/info/200202/performance_and_spending/1079/payments_over_500,14-Jan-2022,Individual School Budgets With Inclusion,CITY UNITED LIMITED,Individual School Budgets With Inclusion,5333.33,Other Establishments,2122P10_CR00647,74261
Sandwell Metropolitan Borough Council,http://www.sandwell.gov.uk/info/200202/performance_and_spending/1079/payments_over_500,01-Jan-2022,Individual School Budgets With Inclusion,COLMORE EDUCATION RECRUITMENT,Individual School Budgets With Inclusion,600.00,Agency Staff,2122P10_CR00648,148720
Sandwell Metropolitan Borough Council,http://www.sandwell.gov.uk/info/200202/performance_and_spending/1079/payments_over_500,01-Jan-2022,Individual School Budgets With Inclusion,COLMORE EDUCATION RECRUITMENT,Individual School Budgets With Inclusion,600.00,Agency Staff,2122P10_CR00649,148720
Sandwell Metropolitan Borough Council,http://www.sandwell.gov.uk/info/200202/performance_and_spending/1079/payments_over_500,01-Jan-2022,Individual School Budgets With Inclusion,COLMORE EDUCATION RECRUITMENT,Individual School Budgets With Inclusion,617.90,Agency Staff,2122P10_CR00650,148720
Sandwell Metropolitan Borough Council,http://www.sandwell.gov.uk/info/200202/performance_and_spending/1079/payments_over_500,01-Jan-2022,Individual School Budgets With Inclusion,COLMORE EDUCATION RECRUITMENT,Individual School Budgets With Inclusion,625.00,Agency Staff,2122P10_CR00651,148720
Sandwell Metropolitan Borough Council,http://www.sandwell.gov.uk/info/200202/performance_and_spending/1079/payments_over_500,01-Jan-2022,Individual School Budgets With Inclusion,COLMORE EDUCATION RECRUITMENT,Individual School Budgets With Inclusion,540.00,Agency Staff,2122P10_CR00652,148720
Sandwell Metropolitan Borough Council,http://www.sandwell.gov.uk/info/200202/performance_and_spending/1079/payments_over_500,01-Jan-2022,Individual School Budgets With Inclusion,COLMORE EDUCATION RECRUITMENT,Individual School Budgets With Inclusion,675.00,Agency Staff,2122P10_CR00653,148720
Sandwell Metropolitan Borough Council,http://www.sandwell.gov.uk/info/200202/performance_and_spending/1079/payments_over_500,01-Jan-2022,Individual School Budgets With Inclusion,COLMORE EDUCATION RECRUITMENT,Individual School Budgets With Inclusion,975.00,Agency Staff,2122P10_CR00654,148720
Sandwell Metropolitan Borough Council,http://www.sandwell.gov.uk/info/200202/performance_and_spending/1079/payments_over_500,13-Jan-2022,Individual School Budgets With Inclusion,COLMORE EDUCATION RECRUITMENT,Individual School Budgets With Inclusion,975.00,Agency Staff,2122P10_CR00655,148720
Sandwell Metropolitan Borough Council,http://www.sandwell.gov.uk/info/200202/performance_and_spending/1079/payments_over_500,01-Jan-2022,Individual School Budgets With Inclusion,COMMUNITY SKILLS AND KNOWLEDGE NETWORK CIC,Individual School Budgets With Inclusion,2365.00,Learning Resources,2122P10_CR00656,133735
Sandwell Metropolitan Borough Council,http://www.sandwell.gov.uk/info/200202/performance_and_spending/1079/payments_over_500,01-Jan-2022,Individual School Budgets With Inclusion,CPI INC.,Individual School Budgets With Inclusion,4560.00,Materials & Consumables,2122P10_CR00657,103260
Sandwell Metropolitan Borough Council,http://www.sandwell.gov.uk/info/200202/performance_and_spending/1079/payments_over_500,01-Jan-2022,Individual School Budgets With Inclusion,CPI INC.,Individual School Budgets With Inclusion,5850.00,Staff Development & Training,2122P10_CR00658,103260
Sandwell Metropolitan Borough Council,http://www.sandwell.gov.uk/info/200202/performance_and_spending/1079/payments_over_500,24-Jan-2022,Individual School Budgets With Inclusion,DRAGON BOOKS LTD,Individual School Budgets With Inclusion,675.51,Materials & Consumables,2122P10_CR00659,161594
Sandwell Metropolitan Borough Council,http://www.sandwell.gov.uk/info/200202/performance_and_spending/1079/payments_over_500,01-Jan-2022,Individual School Budgets With Inclusion,EG (TRAINING) LTD,Individual School Budgets With Inclusion,739.84,Other Local Authorities,2122P10_CR00660,146780
Sandwell Metropolitan Borough Council,http://www.sandwell.gov.uk/info/200202/performance_and_spending/1079/payments_over_500,10-Jan-2022,Individual School Budgets With Inclusion,ELIZABETH SUSAN SINGLETON,Individual School Budgets With Inclusion,810.00,Subscriptions,2122P10_CR00661,120312
Sandwell Metropolitan Borough Council,http://www.sandwell.gov.uk/info/200202/performance_and_spending/1079/payments_over_500,01-Jan-2022,Individual School Budgets With Inclusion,ENVIRONMENTS FOR LEARNING SANDWELL PFI ONE LIMITED,Individual School Budgets With Inclusion,11356.09,PFI & PPP Schemes,2122P10_CR00662,98332
Sandwell Metropolitan Borough Council,http://www.sandwell.gov.uk/info/200202/performance_and_spending/1079/payments_over_500,01-Jan-2022,Individual School Budgets With Inclusion,ENVIRONMENTS FOR LEARNING SANDWELL PFI ONE LIMITED,Individual School Budgets With Inclusion,641439.96,PFI & PPP Schemes,2122P10_CR00663,98332
Sandwell Metropolitan Borough Council,http://www.sandwell.gov.uk/info/200202/performance_and_spending/1079/payments_over_500,01-Jan-2022,Individual School Budgets With Inclusion,ENVIRONMENTS FOR LEARNING SANDWELL PFI ONE LIMITED,Individual School Budgets With Inclusion,3264.67,PFI & PPP Schemes,2122P10_CR00664,98332
Sandwell Metropolitan Borough Council,http://www.sandwell.gov.uk/info/200202/performance_and_spending/1079/payments_over_500,11-Jan-2022,Individual School Budgets With Inclusion,ENVIRONMENTS FOR LEARNING SANDWELL PFI ONE LIMITED,Individual School Budgets With Inclusion,2475.49,PFI & PPP Schemes,2122P10_CR00665,98332
Sandwell Metropolitan Borough Council,http://www.sandwell.gov.uk/info/200202/performance_and_spending/1079/payments_over_500,26-Jan-2022,Individual School Budgets With Inclusion,ENVIRONMENTS FOR LEARNING SANDWELL PFI ONE LIMITED,Individual School Budgets With Inclusion,743.63,PFI & PPP Schemes,2122P10_CR00666,98332
Sandwell Metropolitan Borough Council,http://www.sandwell.gov.uk/info/200202/performance_and_spending/1079/payments_over_500,01-Jan-2022,Individual School Budgets With Inclusion,GL EDUCATION GROUP LIMITED,Individual School Budgets With Inclusion,941.51,Materials & Consumables,2122P10_CR00667,01447883
Sandwell Metropolitan Borough Council,http://www.sandwell.gov.uk/info/200202/performance_and_spending/1079/payments_over_500,05-Jan-2022,Individual School Budgets With Inclusion,GREETS GREEN COMMUNITY ENTERPRISES (DEVELOPMENTS),Individual School Budgets With Inclusion,2040.00,Externally Purchased Professional Services ,2122P10_CR00668,66047
Sandwell Metropolitan Borough Council,http://www.sandwell.gov.uk/info/200202/performance_and_spending/1079/payments_over_500,01-Jan-2022,Individual School Budgets With Inclusion,GRENKE LEASING LTD,Individual School Budgets With Inclusion,9028.95,Equipment & Furniture ,2122P10_CR00669,68802
Sandwell Metropolitan Borough Council,http://www.sandwell.gov.uk/info/200202/performance_and_spending/1079/payments_over_500,01-Jan-2022,Individual School Budgets With Inclusion,HOMECARE DIRECT LTD,Individual School Budgets With Inclusion,1983.62,Other Local Authorities,2122P10_CR00670,146933
Sandwell Metropolitan Borough Council,http://www.sandwell.gov.uk/info/200202/performance_and_spending/1079/payments_over_500,01-Jan-2022,Individual School Budgets With Inclusion,IMPACT EDUCATION AND TRAINING LIMITED,Individual School Budgets With Inclusion,3062.50,Other Establishments,2122P10_CR00671,97667
Sandwell Metropolitan Borough Council,http://www.sandwell.gov.uk/info/200202/performance_and_spending/1079/payments_over_500,14-Jan-2022,Individual School Budgets With Inclusion,IMPACT EDUCATION AND TRAINING LIMITED,Individual School Budgets With Inclusion,2982.50,Other Establishments,2122P10_CR00672,97667
Sandwell Metropolitan Borough Council,http://www.sandwell.gov.uk/info/200202/performance_and_spending/1079/payments_over_500,17-Jan-2022,Individual School Budgets With Inclusion,JENNIFER NOCK TRAINING AND CONSULTANCY,Individual School Budgets With Inclusion,1080.00,Externally Purchased Professional Services ,2122P10_CR00673,140689
Sandwell Metropolitan Borough Council,http://www.sandwell.gov.uk/info/200202/performance_and_spending/1079/payments_over_500,19-Jan-2022,Individual School Budgets With Inclusion,JENNIFER NOCK TRAINING AND CONSULTANCY,Individual School Budgets With Inclusion,580.00,Externally Purchased Professional Services ,2122P10_CR00674,140689
Sandwell Metropolitan Borough Council,http://www.sandwell.gov.uk/info/200202/performance_and_spending/1079/payments_over_500,20-Jan-2022,Individual School Budgets With Inclusion,JENNIFER NOCK TRAINING AND CONSULTANCY,Individual School Budgets With Inclusion,580.00,Externally Purchased Professional Services ,2122P10_CR00675,140689
Sandwell Metropolitan Borough Council,http://www.sandwell.gov.uk/info/200202/performance_and_spending/1079/payments_over_500,01-Jan-2022,Individual School Budgets With Inclusion,K LEE GATES & RAILINGS,Individual School Budgets With Inclusion,990.00,Building Maintenance & Improvements,2122P10_CR00676,141564
Sandwell Metropolitan Borough Council,http://www.sandwell.gov.uk/info/200202/performance_and_spending/1079/payments_over_500,01-Jan-2022,Individual School Budgets With Inclusion,K LEE GATES & RAILINGS,Individual School Budgets With Inclusion,740.00,Building Maintenance & Improvements,2122P10_CR00677,141564
Sandwell Metropolitan Borough Council,http://www.sandwell.gov.uk/info/200202/performance_and_spending/1079/payments_over_500,05-Jan-2022,Individual School Budgets With Inclusion,KAI DRUMS,Individual School Budgets With Inclusion,828.00,Externally Purchased Professional Services ,2122P10_CR00678,120729
Sandwell Metropolitan Borough Council,http://www.sandwell.gov.uk/info/200202/performance_and_spending/1079/payments_over_500,05-Jan-2022,Individual School Budgets With Inclusion,KAI DRUMS,Individual School Budgets With Inclusion,552.00,Externally Purchased Professional Services ,2122P10_CR00679,120729
Sandwell Metropolitan Borough Council,http://www.sandwell.gov.uk/info/200202/performance_and_spending/1079/payments_over_500,05-Jan-2022,Individual School Budgets With Inclusion,KAI DRUMS,Individual School Budgets With Inclusion,1104.00,Externally Purchased Professional Services ,2122P10_CR00680,120729
Sandwell Metropolitan Borough Council,http://www.sandwell.gov.uk/info/200202/performance_and_spending/1079/payments_over_500,01-Jan-2022,Individual School Budgets With Inclusion,KAI DRUMS,Individual School Budgets With Inclusion,1620.00,Externally Purchased Professional Services ,2122P10_CR00681,120729
Sandwell Metropolitan Borough Council,http://www.sandwell.gov.uk/info/200202/performance_and_spending/1079/payments_over_500,07-Jan-2022,Individual School Budgets With Inclusion,KRUNCH UK,Individual School Budgets With Inclusion,3632.63,Externally Purchased Professional Services ,2122P10_CR00682,08588452
Sandwell Metropolitan Borough Council,http://www.sandwell.gov.uk/info/200202/performance_and_spending/1079/payments_over_500,05-Jan-2022,Individual School Budgets With Inclusion,LITTLE EXPLORERS (WEST MIDLANDS) LTD,Individual School Budgets With Inclusion,1425.00,Externally Purchased Professional Services ,2122P10_CR00683,114804
Sandwell Metropolitan Borough Council,http://www.sandwell.gov.uk/info/200202/performance_and_spending/1079/payments_over_500,05-Jan-2022,Individual School Budgets With Inclusion,LITTLE EXPLORERS (WEST MIDLANDS) LTD,Individual School Budgets With Inclusion,1368.00,Externally Purchased Professional Services ,2122P10_CR00684,114804
Sandwell Metropolitan Borough Council,http://www.sandwell.gov.uk/info/200202/performance_and_spending/1079/payments_over_500,01-Jan-2022,Individual School Budgets With Inclusion,MUNCHIES SANDWICHES LTD,Individual School Budgets With Inclusion,618.00,Contract Catering,2122P10_CR00685,145631
Sandwell Metropolitan Borough Council,http://www.sandwell.gov.uk/info/200202/performance_and_spending/1079/payments_over_500,01-Jan-2022,Individual School Budgets With Inclusion,MUNCHIES SANDWICHES LTD,Individual School Budgets With Inclusion,537.00,Contract Catering,2122P10_CR00686,145631
Sandwell Metropolitan Borough Council,http://www.sandwell.gov.uk/info/200202/performance_and_spending/1079/payments_over_500,01-Jan-2022,Individual School Budgets With Inclusion,MUNCHIES SANDWICHES LTD,Individual School Budgets With Inclusion,618.00,Contract Catering,2122P10_CR00687,145631
Sandwell Metropolitan Borough Council,http://www.sandwell.gov.uk/info/200202/performance_and_spending/1079/payments_over_500,26-Jan-2022,Individual School Budgets With Inclusion,MUNCHIES SANDWICHES LTD,Individual School Budgets With Inclusion,553.50,Contract Catering,2122P10_CR00688,145631
Sandwell Metropolitan Borough Council,http://www.sandwell.gov.uk/info/200202/performance_and_spending/1079/payments_over_500,01-Jan-2022,Individual School Budgets With Inclusion,NCFE,Individual School Budgets With Inclusion,500.00,Learning Resources,2122P10_CR00689,6230
Sandwell Metropolitan Borough Council,http://www.sandwell.gov.uk/info/200202/performance_and_spending/1079/payments_over_500,01-Jan-2022,Individual School Budgets With Inclusion,ORBIS EDUCATION AND CARE LTD,Individual School Budgets With Inclusion,43964.55,Other Establishments,2122P10_CR00690,140984
Sandwell Metropolitan Borough Council,http://www.sandwell.gov.uk/info/200202/performance_and_spending/1079/payments_over_500,01-Jan-2022,Individual School Budgets With Inclusion,ORBIS EDUCATION AND CARE LTD,Individual School Budgets With Inclusion,6357.88,Other Establishments,2122P10_CR00691,140984
Sandwell Metropolitan Borough Council,http://www.sandwell.gov.uk/info/200202/performance_and_spending/1079/payments_over_500,01-Jan-2022,Individual School Budgets With Inclusion,PEAK ACTIVITY SERVICES LTD,Individual School Budgets With Inclusion,18880.00,Other Establishments,2122P10_CR00692,151649
Sandwell Metropolitan Borough Council,http://www.sandwell.gov.uk/info/200202/performance_and_spending/1079/payments_over_500,01-Jan-2022,Individual School Budgets With Inclusion,PEARSON EDUCATION LIMITED,Individual School Budgets With Inclusion,604.00,Materials & Consumables,2122P10_CR00693,01625441
Sandwell Metropolitan Borough Council,http://www.sandwell.gov.uk/info/200202/performance_and_spending/1079/payments_over_500,07-Jan-2022,Individual School Budgets With Inclusion,PLAYHOUSE DAY NURSERY,Individual School Budgets With Inclusion,523.20,Externally Purchased Professional Services ,2122P10_CR00694,01586669
Sandwell Metropolitan Borough Council,http://www.sandwell.gov.uk/info/200202/performance_and_spending/1079/payments_over_500,12-Jan-2022,Individual School Budgets With Inclusion,QUEEN ALEXANDRA COLLEGE,Individual School Budgets With Inclusion,464901.38,Externally Purchased Professional Services ,2122P10_CR00695,114126
Sandwell Metropolitan Borough Council,http://www.sandwell.gov.uk/info/200202/performance_and_spending/1079/payments_over_500,12-Jan-2022,Individual School Budgets With Inclusion,RAK DAY CARE LTD T/A HAPPY VALLEY PRE SCHOOL LTD,Individual School Budgets With Inclusion,2160.00,Externally Purchased Professional Services ,2122P10_CR00696,01572212
Sandwell Metropolitan Borough Council,http://www.sandwell.gov.uk/info/200202/performance_and_spending/1079/payments_over_500,01-Jan-2022,Individual School Budgets With Inclusion,REFLECTIONS OFFICE SOLUTIONS LTD,Individual School Budgets With Inclusion,1022.80,Equipment & Furniture ,2122P10_CR00697,135744
Sandwell Metropolitan Borough Council,http://www.sandwell.gov.uk/info/200202/performance_and_spending/1079/payments_over_500,18-Jan-2022,Individual School Budgets With Inclusion,RUGELEY SCHOOL PRIORY,Individual School Budgets With Inclusion,32926.47,Other Establishments,2122P10_CR00698,148250
Sandwell Metropolitan Borough Council,http://www.sandwell.gov.uk/info/200202/performance_and_spending/1079/payments_over_500,01-Jan-2022,Individual School Budgets With Inclusion,SANDWELL FUTURES LTD,Individual School Budgets With Inclusion,141017.83,Private Contractors,2122P10_CR00699,88151
Sandwell Metropolitan Borough Council,http://www.sandwell.gov.uk/info/200202/performance_and_spending/1079/payments_over_500,01-Jan-2022,Individual School Budgets With Inclusion,SANDWELL FUTURES LTD,Individual School Budgets With Inclusion,128968.75,Private Contractors,2122P10_CR00700,88151
Sandwell Metropolitan Borough Council,http://www.sandwell.gov.uk/info/200202/performance_and_spending/1079/payments_over_500,05-Jan-2022,Individual School Budgets With Inclusion,SANDWELL FUTURES LTD,Individual School Budgets With Inclusion,23539.36,Private Contractors,2122P10_CR00701,88151
Sandwell Metropolitan Borough Council,http://www.sandwell.gov.uk/info/200202/performance_and_spending/1079/payments_over_500,01-Jan-2022,Individual School Budgets With Inclusion,SANDWELL FUTURES LTD,Individual School Budgets With Inclusion,119351.04,Private Contractors,2122P10_CR00702,88151
Sandwell Metropolitan Borough Council,http://www.sandwell.gov.uk/info/200202/performance_and_spending/1079/payments_over_500,01-Jan-2022,Individual School Budgets With Inclusion,SANDWELL FUTURES LTD,Individual School Budgets With Inclusion,93582.73,Private Contractors,2122P10_CR00703,88151
Sandwell Metropolitan Borough Council,http://www.sandwell.gov.uk/info/200202/performance_and_spending/1079/payments_over_500,26-Jan-2022,Individual School Budgets With Inclusion,SANDWELL FUTURES LTD,Individual School Budgets With Inclusion,678.87,Private Contractors,2122P10_CR00704,88151
Sandwell Metropolitan Borough Council,http://www.sandwell.gov.uk/info/200202/performance_and_spending/1079/payments_over_500,26-Jan-2022,Individual School Budgets With Inclusion,SANDWELL FUTURES LTD,Individual School Budgets With Inclusion,518.58,Private Contractors,2122P10_CR00705,88151
Sandwell Metropolitan Borough Council,http://www.sandwell.gov.uk/info/200202/performance_and_spending/1079/payments_over_500,11-Jan-2022,Individual School Budgets With Inclusion,SANDWELL FUTURES LTD,Individual School Budgets With Inclusion,2302.56,Private Contractors,2122P10_CR00706,88151
Sandwell Metropolitan Borough Council,http://www.sandwell.gov.uk/info/200202/performance_and_spending/1079/payments_over_500,01-Jan-2022,Individual School Budgets With Inclusion,SANDWELL FUTURES LTD,Individual School Budgets With Inclusion,591.10,Private Contractors,2122P10_CR00707,88151
Sandwell Metropolitan Borough Council,http://www.sandwell.gov.uk/info/200202/performance_and_spending/1079/payments_over_500,01-Jan-2022,Individual School Budgets With Inclusion,SANDWELL FUTURES LTD,Individual School Budgets With Inclusion,799.21,Private Contractors,2122P10_CR00708,88151
Sandwell Metropolitan Borough Council,http://www.sandwell.gov.uk/info/200202/performance_and_spending/1079/payments_over_500,01-Jan-2022,Individual School Budgets With Inclusion,SANDWELL FUTURES LTD,Individual School Budgets With Inclusion,17268.43,Private Contractors,2122P10_CR00709,88151
Sandwell Metropolitan Borough Council,http://www.sandwell.gov.uk/info/200202/performance_and_spending/1079/payments_over_500,05-Jan-2022,Individual School Budgets With Inclusion,SANDWELL FUTURES LTD,Individual School Budgets With Inclusion,6042.12,Private Contractors,2122P10_CR00710,88151
Sandwell Metropolitan Borough Council,http://www.sandwell.gov.uk/info/200202/performance_and_spending/1079/payments_over_500,05-Jan-2022,Individual School Budgets With Inclusion,SANDWELL FUTURES LTD,Individual School Budgets With Inclusion,12437.67,Private Contractors,2122P10_CR00711,88151
Sandwell Metropolitan Borough Council,http://www.sandwell.gov.uk/info/200202/performance_and_spending/1079/payments_over_500,05-Jan-2022,Individual School Budgets With Inclusion,SANDWELL FUTURES LTD,Individual School Budgets With Inclusion,37690.52,Private Contractors,2122P10_CR00712,88151
Sandwell Metropolitan Borough Council,http://www.sandwell.gov.uk/info/200202/performance_and_spending/1079/payments_over_500,11-Jan-2022,Individual School Budgets With Inclusion,SANDWELL FUTURES LTD,Individual School Budgets With Inclusion,667.03,Private Contractors,2122P10_CR00713,88151
Sandwell Metropolitan Borough Council,http://www.sandwell.gov.uk/info/200202/performance_and_spending/1079/payments_over_500,26-Jan-2022,Individual School Budgets With Inclusion,SANDWELL FUTURES LTD,Individual School Budgets With Inclusion,552.50,Private Contractors,2122P10_CR00714,88151
Sandwell Metropolitan Borough Council,http://www.sandwell.gov.uk/info/200202/performance_and_spending/1079/payments_over_500,05-Jan-2022,Individual School Budgets With Inclusion,SANDWELL FUTURES LTD,Individual School Budgets With Inclusion,1452.80,Private Contractors,2122P10_CR00715,88151
Sandwell Metropolitan Borough Council,http://www.sandwell.gov.uk/info/200202/performance_and_spending/1079/payments_over_500,01-Jan-2022,Individual School Budgets With Inclusion,SKYBOUND THERAPIES LTD,Individual School Budgets With Inclusion,4544.98,Other Local Authorities,2122P10_CR00716,144066
Sandwell Metropolitan Borough Council,http://www.sandwell.gov.uk/info/200202/performance_and_spending/1079/payments_over_500,01-Jan-2022,Individual School Budgets With Inclusion,SMARTY PANTS PRIVATE DAY NURSERY LTD,Individual School Budgets With Inclusion,2316.00,Externally Purchased Professional Services ,2122P10_CR00717,74037
Sandwell Metropolitan Borough Council,http://www.sandwell.gov.uk/info/200202/performance_and_spending/1079/payments_over_500,14-Jan-2022,Individual School Budgets With Inclusion,SONOVA UK,Individual School Budgets With Inclusion,1045.50,Equipment & Furniture ,2122P10_CR00718,01576192
Sandwell Metropolitan Borough Council,http://www.sandwell.gov.uk/info/200202/performance_and_spending/1079/payments_over_500,20-Jan-2022,Individual School Budgets With Inclusion,SONOVA UK,Individual School Budgets With Inclusion,1636.93,Equipment & Furniture ,2122P10_CR00719,01576192
Sandwell Metropolitan Borough Council,http://www.sandwell.gov.uk/info/200202/performance_and_spending/1079/payments_over_500,24-Jan-2022,Individual School Budgets With Inclusion,SONOVA UK,Individual School Budgets With Inclusion,591.43,Equipment & Furniture ,2122P10_CR00720,01576192
Sandwell Metropolitan Borough Council,http://www.sandwell.gov.uk/info/200202/performance_and_spending/1079/payments_over_500,26-Jan-2022,Individual School Budgets With Inclusion,SOUTH STAFFORDSHIRE COLLEGE,Individual School Budgets With Inclusion,3202.49,Externally Purchased Professional Services ,2122P10_CR00721,13528
Sandwell Metropolitan Borough Council,http://www.sandwell.gov.uk/info/200202/performance_and_spending/1079/payments_over_500,26-Jan-2022,Individual School Budgets With Inclusion,SOUTH STAFFORDSHIRE COLLEGE,Individual School Budgets With Inclusion,3202.48,Externally Purchased Professional Services ,2122P10_CR00722,13528
Sandwell Metropolitan Borough Council,http://www.sandwell.gov.uk/info/200202/performance_and_spending/1079/payments_over_500,01-Jan-2022,Individual School Budgets With Inclusion,SPRING HILL HIGH SCHOOL,Individual School Budgets With Inclusion,71762.68,Other Establishments,2122P10_CR00723,105656
Sandwell Metropolitan Borough Council,http://www.sandwell.gov.uk/info/200202/performance_and_spending/1079/payments_over_500,06-Jan-2022,Individual School Budgets With Inclusion,ST GEORGES SCHOOL EDGBASTON,Individual School Budgets With Inclusion,6046.67,Other Establishments,2122P10_CR00724,131335
Sandwell Metropolitan Borough Council,http://www.sandwell.gov.uk/info/200202/performance_and_spending/1079/payments_over_500,26-Jan-2022,Individual School Budgets With Inclusion,STAFF SELECT LTD T/A NOVA TRAINING,Individual School Budgets With Inclusion,747.50,Externally Purchased Professional Services ,2122P10_CR00725,25564
Sandwell Metropolitan Borough Council,http://www.sandwell.gov.uk/info/200202/performance_and_spending/1079/payments_over_500,11-Jan-2022,Individual School Budgets With Inclusion,STAFF SELECT LTD T/A NOVA TRAINING,Individual School Budgets With Inclusion,1477.60,Externally Purchased Professional Services ,2122P10_CR00726,25564
Sandwell Metropolitan Borough Council,http://www.sandwell.gov.uk/info/200202/performance_and_spending/1079/payments_over_500,11-Jan-2022,Individual School Budgets With Inclusion,STAFF SELECT LTD T/A NOVA TRAINING,Individual School Budgets With Inclusion,1855.60,Externally Purchased Professional Services ,2122P10_CR00727,25564
Sandwell Metropolitan Borough Council,http://www.sandwell.gov.uk/info/200202/performance_and_spending/1079/payments_over_500,18-Jan-2022,Individual School Budgets With Inclusion,STAFFORDSHIRE COUNTY COUNCIL,Individual School Budgets With Inclusion,13913.00,Other Local Authorities,2122P10_CR00728,01124861
Sandwell Metropolitan Borough Council,http://www.sandwell.gov.uk/info/200202/performance_and_spending/1079/payments_over_500,01-Jan-2022,Individual School Budgets With Inclusion,TARGETED PROVISION LTD,Individual School Budgets With Inclusion,1870.00,Externally Purchased Professional Services ,2122P10_CR00729,153248
Sandwell Metropolitan Borough Council,http://www.sandwell.gov.uk/info/200202/performance_and_spending/1079/payments_over_500,01-Jan-2022,Individual School Budgets With Inclusion,TEACHERACTIVE LIMITED,Individual School Budgets With Inclusion,985.00,Agency Staff,2122P10_CR00730,83931
Sandwell Metropolitan Borough Council,http://www.sandwell.gov.uk/info/200202/performance_and_spending/1079/payments_over_500,01-Jan-2022,Individual School Budgets With Inclusion,TEACHERACTIVE LIMITED,Individual School Budgets With Inclusion,985.00,Agency Staff,2122P10_CR00731,83931
Sandwell Metropolitan Borough Council,http://www.sandwell.gov.uk/info/200202/performance_and_spending/1079/payments_over_500,01-Jan-2022,Individual School Budgets With Inclusion,TEACHERACTIVE LIMITED,Individual School Budgets With Inclusion,992.50,Agency Staff,2122P10_CR00732,83931
